{"text_format":"1","workbook":"xlsx","n_sheets":6,"sheets":["Sheet1","Login","CashBankAccount","WorkingTrn","Swift","CounterParty"],"not_rendered":{"charts":0,"images":5,"macros":1,"external_links":1,"defined_names":24,"comments":0,"pivot_tables":0},"unopened":[],"bounds":{"document_bytes":16777216,"sheet_cells":100000,"rows_first":2000,"rows_last":500,"rows_between":2000,"halvings":0,"cell_chars":16384,"cell_head_chars":4096},"cells_cut":0,"cells_raw":0,"read":"whole","date_system":"1900"}

{"sheet":"Sheet1","index":0,"n_rows":26,"n_cols":5,"rows_kept":26,"cut":false,"hidden":true,"merged":[]}
[]
[null,null,"Trustee","Placement Type","Instruction Required"]
[null,null,"Citibank","New Placement","MT599 & MT202"]
[null,null,null,"Early Upliftment","MT599"]
[null,null,null,"Rollover, P+I","MT599"]
[null,null,null,"Maturity","Nil"]
[null,null,"CIMB ","New Placement","MT599"]
[null,null,null,"Early Upliftment","MT599"]
[null,null,null,"Rollover, P+I","MT599"]
[null,null,null,"Maturity","Nil"]
[null,null,"Maybank","New Placement","MT599"]
[null,null,null,"Early Upliftment","MT599"]
[null,null,null,"Rollover, P+I","MT599"]
[null,null,null,"Maturity","Nil"]
[null,null,"Deutsche Trustees ","New Placement","MT599 or Manual Instruction"]
[null,null,null,"Early Upliftment","MT599 or Manual Instruction"]
[null,null,null,"Rollover, P+I","MT599 or Manual Instruction"]
[null,null,null,"Maturity","MT599 or Manual Instruction"]
[null,null,"HSBC","New Placement","MT299"]
[null,null,null,"Early Upliftment","MT299"]
[null,null,null,"Rollover, P+I","MT299"]
[null,null,null,"Maturity","MT299"]
[null,null,"Mtrustee","New Placement","Manual Instruction"]
[null,null,null,"Early Upliftment","Manual Instruction"]
[null,null,null,"Rollover, P+I","Manual Instruction"]
[null,null,null,"Maturity","Manual Instruction"]

{"sheet":"Login","index":1,"n_rows":12,"n_cols":8,"rows_kept":12,"cut":false,"hidden":false,"merged":[[1,7,4,12]]}
[]
[null,null,null,null,null,null,null,"Box 389, Lot 7.16, Wisma Central, Jln Ampang, 50450 Kuala Lumpur"]
[]
[]
[]
[]
[]
[]
[]
[]
[]
[null,"Nomura Swift Report"]

{"sheet":"CashBankAccount","index":2,"n_rows":38,"n_cols":2,"rows_kept":38,"cut":false,"hidden":true,"merged":[]}
["Fund Code","Bank Account Number"]
["NRBF2","0042176000"]
["NGDBF","425234001"]
["NGSEF",428124001]
["i-INCOME2","4001525000"]
["RHBI-GDMF","052-000171-301"]
["MSIG-EQ","0599006001"]
["EPF","0599388095"]
["EPFMSIANFI","0599388281"]
["KWAP","0599399054"]
["SOCSO",105272777025]
["EPF-DMSUKUK",1599388024]
["EPF-NIAMEQ",1599388121]
["KWAP-NIAM",1599399093]
["UJSB-EQ2",1599474184]
["TNB-RBTF","211-201-201127-0"]
["i-CASH",4000519000]
["i-MONEY",4000527000]
["NGSSGF",40014344001]
["BNMMF","514012-074895"]
["BNM-NTF-FI","514012082989"]
["BNM-MEDF-FI","514012082996"]
["CGC","514012087512"]
["BNM-NTF","514012-090217"]
["BNM-ICLIF-FI2","514012-432484"]
["BNM-INCEIF","564016-627342"]
["BNM-ICLIF","564016-627366"]
["BNM-INCEIF-FI","564016629781"]
["TNB-RBTFI","564016661913"]
["EPF","0599388095"]
["LAB-NGBF","704252"]
["SLMAB-LFNP","8007882516"]
["NGHC","8008327843"]
["NRBF1","8009839299"]
["PET-ACF","8009857841"]
["PET-FI","8010205303"]
["SLMAB-LNUL","8010370374"]
["SLMTB-FTFPA","8602451955"]

{"sheet":"WorkingTrn","index":3,"n_rows":20,"n_cols":30,"rows_kept":20,"cut":false,"hidden":true,"merged":[]}
[null,null,3,null,null,6,null,{"$f":"COLUMN()","v":8},9,null,11,12,13,14,15,16,17,null,{"$f":"COLUMN()","v":19},20,null,22,null,{"$f":"COLUMN()","v":24},25,null,{"$f":"PROPER(AA12)","v":""},{"$f":"COLUMN()","v":28},null,{"$f":"COLUMN()","v":30}]
["qCshTrnID","qStockCode","qTrnCode","qFundCode","Rate","MaturityPrinciple","FaceValue","SettCurrency","TradeDate","ValueDate","MaturityDate","qCshType","qCPCode","CPName","BNMAcc","RolloverFlag","Tenor","FIDealer","InterestRM","FundName","qCompanyID","PaymentEntity","SourceBankName","qBankAccNo","CshTypeDesc","Basis","Remarks","Trustee","ClientBankAccName","ADINO"]
["CSH*220200610","RPF*MYR*PBK","RP","EPF",1.7500000000000002E-2,0,172450000,"MYR","2022-02-14","2022-02-14","2022-02-15","RPF","PBK","PUBLIC BANK BERHAD","XXX",0,1,null,0,"EMPLOYEES PROVIDENT FUND BOARD","NM","CITIT-EPF","CITIT","0599388095MYR","Short Term Placement",365,null,"CITIT","EMPLOYEES PROVIDENT FUND BOARD","5993880008"]
["CSH*220200612","RPF*MYR*PBK","RP","KWAP",1.7500000000000002E-2,0,61580000,"MYR","2022-02-14","2022-02-14","2022-02-15","RPF","PBK","PUBLIC BANK BERHAD","XXX",0,1,null,0,"KUMPULAN WANG PERSARAAN","NM","CITIT-KWAP","CITIT","0599399054MYR","Short Term Placement",365,null,"CITIT","KUMPULAN WANG PERSARAAN","5993990005"]
["CSH*220200614","RPF*MYR*PBK","RP","SOCSO",1.7500000000000002E-2,0,16330000,"MYR","2022-02-14","2022-02-14","2022-02-15","RPF","PBK","PUBLIC BANK BERHAD","XXX",0,1,null,0,"PERTUBUHAN KESELAMATAN SOSIAL(SOCSO)","NM","HSBCT-SOCSO","HSK","105272777025MYR","Short Term Placement",365,null,"HSBCT","PERTUBUHAN KESELAMATAN SOCIAL(SOCSO)","318-280351-085"]
["CSH*220200616","RPF*MYR*PBK","RP","SLMAB-LFNP",1.7500000000000002E-2,0,4290000,"MYR","2022-02-14","2022-02-14","2022-02-15","RPF","PBK","PUBLIC BANK BERHAD","XXX",0,1,null,0,"SUN LIFE (LIFE FUND NON PAR-NA)","NM","CIMBBNK-SLMAB-LFNP","CIMBBNK","8007882516MYR","Short Term Placement",365,null,"CIMBBNK","SUN LIFE MALAYSIA ASSURANCE BERHAD (LIFE FUND NON PAR-NA)","SLMAB-LFNP-NA"]
["CSH*220200621","RPF*MYR*CBB","RP","MSIG-EQ",1.7000000000000001E-2,0,14905000,"MYR","2022-02-14","2022-02-14","2022-02-15","RPF","CBB","CIMB BANK BERHAD","XXX",0,1,null,0,"NOMURA FOR MSIG INSURANCE (MALAYSIA)BHD (EQ)","NM","CITIT-MSIG-EQ","CITIT","0599006001MYR","Short Term Placement",365,null,"CITIT","NOMURA FOR MSIG INSURANCE (MALAYSIA)BHD (EQ)","5990060001"]
["CSH*220200623","RPF*MYR*CMI","RP","TNB-RBTFI",1.7000000000000001E-2,0,22812000,"MYR","2022-02-14","2022-02-14","2022-02-15","RPF","CMI","CIMB ISLAMIC BANK","XXX",0,1,null,0,"MTRUSTEE BHD FOR NOMURA TNB RBTF (EQ)","NI","MTRUSTEE-TNB-RBTFI","MTRUSTEE",564016661913,"Short Term Placement",365,null,"MTRUSTEE","MTRUSTEE BHD FOR NOMURA TNB RBTF (EQ)","N14011433137"]
["CSH*220200625","RPF*MYR*CMI","RP","UJSB-EQ2",1.7000000000000001E-2,0,41887000,"MYR","2022-02-14","2022-02-14","2022-02-15","RPF","CMI","CIMB ISLAMIC BANK","XXX",0,1,null,0,"URUSHARTA JAMAAH SDN BHD (NOMURA 2)","NI","CITIT-UJSB-EQ","CITIT","1599474184MYR","Short Term Placement",365,null,"CITIT","URUSHARTA JAMAAH SDN BHD (NOMURA 2)","5994740014"]
["CSH*220200627","RPF*MYR*CMI","RP","EPF-NIAMEQ",1.7000000000000001E-2,0,65220000,"MYR","2022-02-14","2022-02-14","2022-02-15","RPF","CMI","CIMB ISLAMIC BANK","XXX",0,1,null,0,"EMPLOYEES PROVIDENT FUND BOARD (NIAM EQ)","NI","CITIT-EPF-NIAMEQ","CITIT","1599388121MYR","Short Term Placement",365,null,"CITIT","EMPLOYEES PROVIDENT FUND BOARD (NIAM EQ)","5993880036"]
["CSH*220200629","RPF*MYR*CMI","RP","SLMTB-FTFPA",1.7000000000000001E-2,0,9164000,"MYR","2022-02-14","2022-02-14","2022-02-15","RPF","CMI","CIMB ISLAMIC BANK","XXX",0,1,null,0,"SUN LIFE TAKAFUL(FTFPA)","NI","CIMBISLA-SLMTB-FTFPA","CIMBISLA","8602451955MYR","Short Term Placement",365,null,"CIMBISLA","SUN LIFE MALAYSIA TAKAFUL BERHAD (FAMILY TAKAFUL FUND PARTICIPANT ACCOUNT-NA)","SLMTB-FTFPA-NA"]
["CSH*220200631","RPF*MYR*HLI","RP","i-CASH",1.6E-2,0,5264000,"MYR","2022-02-14","2022-02-14","2022-02-16","RPF","HLI","HONG LEONG ISLAMIC BANK","XXX",0,2,null,0,"NOMURA i-CASH FUND","NI","DEUT-i-CASH","DEUBNK","4000519000MYR","Short Term Placement",365,null,"DEUT","NOMURA i-CASH FUND","40005194001"]
["CSH*220200634","RPF*MYR*CMI","RP","i-MONEY",1.7000000000000001E-2,0,5130000,"MYR","2022-02-14","2022-02-14","2022-02-15","RPF","CMI","CIMB ISLAMIC BANK","XXX",0,1,null,0,"NOMURA i-INCOME FUND","NI","DEUT-i-MONEY","DEUBNK","4000527000MYR","Short Term Placement",365,null,"DEUT","NOMURA i-INCOME FUND","40005274001"]
["CSH*220200637","RPF*MYR*CMI","RP","KWAP-NIAM",1.7000000000000001E-2,15262000,15264843.33,"MYR","2022-02-14","2022-02-14","2022-02-15","RPF","CMI","CIMB ISLAMIC BANK","XXX",2,1,null,2843.33,"KWAP (NOMURA ISLAMIC AM)","NI","CITIT-KWAP-NIAM","CITIT","1599399093MYR","Short Term Placement",365,null,"CITIT","KWAP (NOMURA ISLAMIC AM)","5993990020"]
["CSH*220200638","RPF*MYR*CMI","RP","EPF-DMSUKUK",1.7000000000000001E-2,105347761.45999999,105367387.89,"MYR","2022-02-14","2022-02-14","2022-02-15","RPF","CMI","CIMB ISLAMIC BANK","XXX",2,1,null,19626.43,"EMPLOYEES PROVIDENT FUND BOARD (NIAM-FI RR) - IC","NI","CITIT-EPF-DMSUKUK","CITIT","1599388024MYR","Short Term Placement",365,null,"CITIT","EMPLOYEES PROVIDENT FUND BOARD (NIAM-FI RR) - IC","5993880027"]
["CSH*220200642","RPF*MYR*PBK","RP","CGC",1.7500000000000002E-2,14933000,14935863.859999999,"MYR","2022-02-14","2022-02-14","2022-02-15","RPF","PBK","PUBLIC BANK BERHAD","XXX",2,1,null,2863.86,"CREDIT GUARANTEE CORPORATION MALAYSIA BERHAD","NM","MBBT-CGC","MBBT","514012087512MYR","Short Term Placement",365,null,"MBBT","CREDIT GUARANTEE CORPORATION MALAYSIA BERHAD (NOMURA)","N14011412863"]
["CSH*220200643","RPF*MYR*PBK","RP","EPFMSIANFI",1.7500000000000002E-2,127011177.98999999,127035536.3,"MYR","2022-02-14","2022-02-14","2022-02-15","RPF","PBK","PUBLIC BANK BERHAD","XXX",2,1,null,24358.31,"EMPLOYEES PROVIDENT FUND BOARD (NAM-FI RR)","NM","CITIT-EPFMSIANFI","CITIT","0599388281MYR","Short Term Placement",365,null,"CITIT","EMPLOYEES PROVIDENT FUND BOARD (NAM-FI RR)","5993880023"]
["CSH*220200644","RPF*MYR*PBK","RP","NRBF1",1.7500000000000002E-2,19376857.879999999,19380573.989999998,"MYR","2022-02-14","2022-02-14","2022-02-15","RPF","PBK","PUBLIC BANK BERHAD","XXX",2,1,null,3716.11,"NOMURA RINGGIT BOND FUND 1","NM","CIMBCOMTRT-NRBF1","CIMBBNK","8009839299MYR","Short Term Placement",365,null,"CIMBCOMTRT","CCTB-NOMURA RINGGIT BOND FUND1","CCTB-NRBF1"]
["CSH*220200645","RPF*MYR*PBK","RP","NRBF2",1.7500000000000002E-2,7199690.3200000003,7201071.0800000001,"MYR","2022-02-14","2022-02-14","2022-02-15","RPF","PBK","PUBLIC BANK BERHAD","XXX",2,1,null,1380.76,"NOMURA RINGGIT BOND FUND 2","NM","DEUT-NRBF2","DEUBNK","0042176000MYR","Short Term Placement",365,null,"DEUT","DTMB FOR NOMURA RINGGIT BOND FUND 2","000421764001"]
["CSH*220200646","RPF*MYR*PBK","RP","PET-FI",1.7500000000000002E-2,5037483,5038449.09,"MYR","2022-02-14","2022-02-14","2022-02-15","RPF","PBK","PUBLIC BANK BERHAD","XXX",2,1,null,966.09,"PETRONAS EFM (NOMURA-FI) ","NM","CIMBBNK-PET-FI","CIMBBNK","8010205303MYR","Short Term Placement",365,null,"CIMBBNK","PETRONAS EFM (NOMURA ASSET MANAGEMENT MALAYSIA SDN BHD-FI) ","0001NOMURA-FI"]

{"sheet":"Swift","index":4,"n_rows":26,"n_cols":35,"rows_kept":26,"cut":false,"hidden":true,"merged":[[0,25,1,25],[1,0,4,2],[6,0,7,2],[9,1,9,2],[0,14,1,14],[0,15,1,15],[0,16,1,16],[0,22,1,22]]}
[null,null,null,null,null,null,null,null,null,null,null,null,null,null,"Ref. No.","Account Name","Bank","Tenure","Eff Int","Deal","Value","Maturity","Currency","Principal","Interest","Remark",null,null,null,null,null,null,null,{"$f":"VLOOKUP(AE1,CounterParty!$A:$S,19,0)","v":"N/A"},{"$f":"IF(AH1=\"IS\",\"PROFIT AMOUNT:\", \"INTEREST AMOUNT:\")","v":"INTEREST AMOUNT:"}]
["Nomura Swift",null,null,null,null,"Sender",{"$f":"IF(ISBLANK($P$4),\"\",\"NOCMMYKLXXX\")","v":"NOCMMYKLXXX"},null,null,"Sender",{"$f":"IF(AA4<>\"CITIT\",\"\",IF(OR($Z$4=\"New Placement\",$Z$4=\"Top up\"),\"NOCMMYKLXXX\",\"\"))","v":""},null,null,null,null,null,null,"(days)","rate(%)","Date"," Date","Date",null,"Amt","Amt",null,null,null,{"$f":"COLUMN()","v":29},null,null,null,null,{"$f":"COLUMN()","v":34},35]
[null,null,null,null,null,"Recipient",{"$f":"IF(ISBLANK($P$4),\"\",VLOOKUP($AA$4,CounterParty!A:L,12,0))","v":"CITIMYKLXXX"},null,null,"Recipient",{"$f":"IF($AA$4<>\"CITIT\",\"\",IF(OR($Z$4=\"New Placement\",$L$5=\"Top up\"),VLOOKUP($AA$4,CounterParty!A:L,12,0),\"\"))","v":""},null,null,null,"qCshTrnID","qFundCode","CPName","Tenor","Rate","TradeDate","ValueDate","MaturityDate","SettCurrency","FaceValue","Interest Amount","Remarks","Trustee","ClientBankAccName","Safekeeping Acc No","Cash Acc No","qCPCOde","Source Bank ","Source Bank ","Islamic FI  ? ","PROFIT OR INTEREST"]
[null,null,null,null,null,"Type of Message",{"$f":"IF(ISBLANK($P$4),\"\",IF(AA4=\"HSBCT\",\"299\",\"599\"))","v":"599"},null,null,"Type of Message",{"$f":"IF($AA$4<>\"CITIT\",\"\",IF(OR($Z$4=\"New Placement\",$Z$4=\"Top up\"),\"202\",\"\"))","v":""},null,null,null,"CSH*220200610","EPF","PUBLIC BANK BERHAD",1,1.7500000000000002E-2,"2022-02-14","2022-02-14","2022-02-15","MYR",0,0,null,"CITIT","EMPLOYEES PROVIDENT FUND BOARD","5993880008","0599388095MYR","PBK","CITIT","NM",{"$f":"VLOOKUP(AE4,CounterParty!$A:$S,19,0)","v":"N/A"},{"$f":"IF(AH4=\"IS\",\"PROFIT AMOUNT:\", \"INTEREST AMOUNT:\")","v":"INTEREST AMOUNT:"}]
[null,null,null,null,null,"Client Reference Number",{"$f":"IF(ISBLANK($P$4),\"\",TEXT(TODAY(),\"yymmdd\")&LEFT(extractAlpha($P$4),6)&\"-\"&UPPER(LEFT(Z4,3)))","v":"220214EPF-"},null,null,"Client Reference Number",{"$f":"IF($AA$4<>\"CITIT\",\"\",IF(OR($Z$4=\"New Placement\",$Z$4=\"Top up\"),LEFT($P$4,6)&\"-\"&UPPER(LEFT($Z$4,3))&TEXT(TODAY(),\"yymmdd\"),\"\"))","v":""}]
[null,null,null,null,null,"Related Reference Number",{"$f":"IF(ISBLANK($P$4)=\"\",\"\",\"-\")","v":"-"},null,null,"Related Reference Number",{"$f":"IF($AA$4<>\"CITIT\",\"\",IF(OR($Z$4=\"New Placement\",$Z$4=\"Top up\"),MID(O4,5,LEN(O4)-1),\"\"))","v":""}]
["Method 1: By Row",null,null,null,null,"Message Narrative",{"$f":"IF(ISBLANK($P$4),\"\",\"ATTN: CASH TEAM\")","v":"ATTN: CASH TEAM"},null,null,"Amount to Transfer",{"$f":"IF($AA$4<>\"CITIT\",\"\",IF(OR($Z$4=\"New Placement\",$Z$4=\"Top up\"),TEXT(X4,\"00.00\"),\"\"))","v":""}]
[null,null,null,null,null,null,".",null,null,"Currency to Transfer",{"$f":"IF($AA$4<>\"CITIT\",\"\",IF(OR($Z$4=\"New Placement\",$Z$4=\"Top up\"),\"MYR\",\"\"))","v":""}]
[null,null,null,null,null,null,"PLEASE REFER TO BELOW FOR MONEY MARKET PLACEMENT DETAILS",null,null,"Value Date",{"$f":"IF($AA$4<>\"CITIT\",\"\",IF(OR($Z$4=\"New Placement\",$Z$4=\"Top up\"),$U$4,\"\"))","v":""}]
["Total Transaction:","18 record(s) of transaction.",null,null,null,null,".",null,null,"Beneficiary Institution"]
["Row:",1,null,null,null,null,{"$f":"IF(ISBLANK($P$4),\"\",\"PLACEMENT TYPE:\"&\" \"&PROPER($Z$4))","v":"PLACEMENT TYPE: "},null,null,"Beneficiary BIC",{"$f":"IF($AA$4<>\"CITIT\",\"\",IF(OR($Z$4=\"New Placement\",$Z$4=\"Top up\"),VLOOKUP($AE$4,CounterParty!A:L,12,0)))","v":false}]
[null,null,null,null,null,null,{"$f":"IF(ISBLANK($P$4),\"\",\"OUR REF:\"&\" \"&$K$5)","v":"OUR REF: "},null,null,"Beneficiary ID",{"$f":"IF($AA$4<>\"CITIT\",\"\",IF(OR($Z$4=\"New Placement\",$Z$4=\"Top up\"),VLOOKUP($AE$4,CounterParty!A:O,15,0)))","v":false}]
[null,null,null,null,null,null,{"$f":"IF(ISBLANK($P$4),\"\",\"ACCOUNT NAME:\"&Swift!$AB$4)","v":"ACCOUNT NAME:EMPLOYEES PROVIDENT FUND BOARD"},null,null,"Account with Institution"]
[null,null,null,null,null,null,{"$f":"IF(ISBLANK($P$4),\"\",\"SF AC:\"&\" \"&AC4)","v":"SF AC: 5993880008"},null,null,"Account with Institution BIC",{"$f":"K11","v":false}]
[null,null,null,null,null,null,{"$f":"IF(ISBLANK($P$4),\"\",\"CASH AC:\"&\" \"&VLOOKUP($P$4,CashBankAccount!A:B,2,0))","v":"CASH AC: 0599388095"},null,null,"Ordering Institution"]
[null,null,null,null,null,null,{"$f":"IF(ISBLANK($P$4),\"\",\"PLACEMENT BANK:\"&\" \"&Q4)","v":"PLACEMENT BANK: PUBLIC BANK BERHAD"},null,null,"Ordering Institution BIC",{"$f":"IF($AA$4<>\"CITIT\",\"\",IF(OR($Z$4=\"New Placement\",$Z$4=\"Top up\"),\"NOCMMYKLXXX\",\"\"))","v":""}]
[null,null,null,null,null,null,{"$f":"IF(ISBLANK($P$4)=\"\",\"\",\"PLACEMENT DATE:\"&\" \"&TEXT(U4,\"dd-mm-yyyy\"))","v":"PLACEMENT DATE: 14-02-2022"},null,null,"Correspondents"]
[null,null,null,null,null,null,{"$f":"IF(ISBLANK($P$4),\"\",\"MATURITY DATE:\"&\" \"&TEXT(V4,\"dd-mm-yyyy\"))","v":"MATURITY DATE: 15-02-2022"},null,null,"Sender's Correspondent Type",{"$f":"IF($AA$4<>\"CITIT\",\"\",IF(OR($Z$4=\"New Placement\",$Z$4=\"Top up\"),\"Location\",\"\"))","v":""}]
[null,null,null,null,null,null,{"$f":"IF(ISBLANK($P$4),\"\",\"PLACEMENT RATE:\"&\" \"&(S4*100)&\" PERCENT P.A\")","v":"PLACEMENT RATE: 1.75 PERCENT P.A"},null,null,"Sender's Correspondent",{"$f":"IF($AA$4<>\"CITIT\",\"\",\"/\"&IF(OR($Z$4=\"New Placement\",$Z$4=\"Top up\"),VLOOKUP($P$4,CashBankAccount!A:B,2,0),\"\"))","v":"/"}]
[null,null,null,null,null,null,{"$f":"IF(ISBLANK($P$4),\"\",\"PRINCIPAL AMOUNT:\"&\" \"&TEXT(X4,\"0,00.00\"))","v":"PRINCIPAL AMOUNT: 000.00"},null,null,"Sender to Receiver Information"]
[null,null,null,null,null,null,{"$f":"IF(ISBLANK($P$4)=\"\",\"\", AI4&IF(OR(Z4=\"New Placement\",Z4=\"Rollover, P+I\"), TEXT(X4*S4*R4/365,\"0,00.00\"),TEXT(Y4,\"0,00.00\")))","v":"INTEREST AMOUNT:000.00"},null,null,"Special Instructions Type",{"$f":"IF($AA$4<>\"CITIT\",\"\",IF(OR($Z$4=\"New Placement\",$Z$4=\"Top up\"),\"Instructing Party Instructions\",\"\"))","v":""}]
[null,null,null,null,null,null,".",null,null,"Special Instructions",{"$f":"IF($AA$4<>\"CITIT\",\"\",IF(OR($Z$4=\"New Placement\",$Z$4=\"Top up\"),\"DEPOSIT VD\"&TEXT(U4,\" dd-mmm-yyyy\")))","v":false}]
[null,null,null,null,null,null,"UNLESS RENEWED BY US, KINDLY INSTRUCT PLACEMENT"]
[null,null,null,null,null,null,{"$f":"IF(AH4<>\"IS\",\"BANK REMIT THE PRINCIPAL AND INTEREST EARNED TO\", \"BANK REMIT THE PRINCIPAL AND PROFIT EARNED TO\")","v":"BANK REMIT THE PRINCIPAL AND INTEREST EARNED TO"}]
[null,null,null,null,null,null,"THE CLIENT'S CASH ACCOUNT NO. STATED ABOVE"]
[null,null,null,null,null,null,{"$f":"IF(ISBLANK($P$4),\"\",\"MAINTAINED WITH \"&VLOOKUP(AF4,CounterParty!A:B,2,0))","v":"MAINTAINED WITH CITIBANK BERHAD"}]

{"sheet":"CounterParty","index":5,"n_rows":1026,"n_cols":28,"rows_kept":1026,"cut":false,"hidden":true,"merged":[]}
[null,null,3,null,null,6,null,null,null,10,null,null,13,null,null,null,null,18,"Use for Nomura in Islamic tagging"]
["qCPCode","CPName","CPTel","CPFax","CPContactPerson","CPAddress","CPPostCode","StateName","CityName","CPEmail","CPWebsite","BICCode","TradeAccount","SwiftCode","SwiftBankAccNo","CPBankName","BNMAcc","CPBankAdd","qCPGroup",null,null,null,null,null,null,null,null,"Product Type"]
[0,"NOMURA SECURITIES","03-2166 2636","03-2166 2636","Riskk","Riskk",50050,"WILAYAH PERSEKUTUAN","Kuala Lumpur","NIL","NIL","N/A","N/A","N/A","N/A",null,null,null,"N/A"]
[7,"NOMURA SECURITIES","03-2166 2636","03-2166 2636","Riskk","Riskk",50050,"WILAYAH PERSEKUTUAN","Kuala Lumpur","NIL","NIL","N/A","N/A","N/A","N/A",null,null,null,"N/A"]
["0BI","NOMURA INTERNATIONAL PLC","03-2166 2636","03-2166 2636","Riskk","Riskk",50050,"WILAYAH PERSEKUTUAN","Kuala Lumpur","NIL","NIL","N/A","N/A","N/A","N/A",null,null,null,"N/A"]
["0LX","NOMURA BANK LUXEMBOURG","03-2166 2636","03-2166 2636","Riskk","Riskk",50050,"WILAYAH PERSEKUTUAN","Kuala Lumpur","NIL","NIL","N/A","N/A","N/A","N/A",null,null,null,"N/A"]
["0TB","NOMURA TRUST & BANKING","03-2166 2636","03-2166 2636","Riskk","Riskk",50050,"WILAYAH PERSEKUTUAN","Kuala Lumpur","NIL","NIL","N/A","N/A","N/A","N/A",null,null,null,"N/A"]
["AAA","AAA",20748953,"3-20709387","Ms.Amalina / Mr. Abdullah Tahir","8th,Menara Maybank, 100 Jln Tun Perak,",50050,"WILAYAH PERSEKUTUAN","Kuala Lumpur","abdullah.tahir@maybank.com.my","NIL","N/A","N/A","N/A","N/A",null,null,null,"N/A"]
["AAB","ABN AMRO BANK","03-2166 2636","03-2166 2636","Riskk","Riskk",50050,"WILAYAH PERSEKUTUAN","Kuala Lumpur","NIL","NIL","N/A","N/A","N/A","N/A",null,null,null,"N/A"]
["AAM","AAM","03-2166 2636","03-2166 2636","Riskk","Riskk",50050,"WILAYAH PERSEKUTUAN","Kuala Lumpur","NIL","NIL","N/A","N/A","N/A","N/A",null,null,null,"N/A"]
["AB","A.B. ASESORES BURSATILES","03-2166 2636","03-2166 2636","Riskk","Riskk",50050,"WILAYAH PERSEKUTUAN","Kuala Lumpur","NIL","NIL","N/A","N/A","N/A","N/A",null,null,null,"N/A"]
["ABA","ABN AMRO CLEARING BK NV","03-2166 2636","03-2166 2636","Riskk","Riskk",50050,"WILAYAH PERSEKUTUAN","Kuala Lumpur","NIL","NIL","N/A","N/A","N/A","N/A",null,null,null,"N/A"]
["ABC","AGRICULTURAL BANK OF CHINA","03-2166 2636","03-2166 2636","Riskk","Riskk",50050,"WILAYAH PERSEKUTUAN","Kuala Lumpur","NIL","NIL","N/A","N/A","N/A","N/A",null,null,null,"N/A"]
["ABE","ABEL NOSER","03-2166 2636","03-2166 2636","Riskk","Riskk",50050,"WILAYAH PERSEKUTUAN","Kuala Lumpur","NIL","NIL","N/A","N/A","N/A","N/A",null,null,null,"N/A"]
["ABG","ABG SECURITIES","03-2166 2636","03-2166 2636","Riskk","Riskk",50050,"WILAYAH PERSEKUTUAN","Kuala Lumpur","NIL","NIL","N/A","N/A","N/A","N/A",null,null,null,"N/A"]
["ABK","AMBANK","03-2166 2636","03-2166 2636","Riskk","Riskk",50050,"WILAYAH PERSEKUTUAN","Kuala Lumpur","NIL","NIL","N/A","N/A","N/A","N/A","AMBANK (M) BERHAD",null,null,"N/A"]
["ABL","ABSA BANK LIMITED","03-2166 2636","03-2166 2636","Riskk","Riskk",50050,"WILAYAH PERSEKUTUAN","Kuala Lumpur","NIL","NIL","N/A","N/A","N/A","N/A",null,null,null,"N/A"]
["ABN","ABN AMRO","03-2166 2636","03-2166 2636","Riskk","Riskk",50050,"WILAYAH PERSEKUTUAN","Kuala Lumpur","NIL","NIL","N/A","N/A","N/A","N/A",null,null,null,"N/A"]
["ABS","ABRAHAM & SONS","03-2166 2636","03-2166 2636","Riskk","Riskk",50050,"WILAYAH PERSEKUTUAN","Kuala Lumpur","NIL","NIL","N/A","N/A","N/A","N/A",null,null,null,"N/A"]
["ACA","ACADEMY SECURITIES, INC.","03-2166 2636","03-2166 2636","Riskk","Riskk",50050,"WILAYAH PERSEKUTUAN","Kuala Lumpur","NIL","NIL","N/A","N/A","N/A","N/A",null,null,null,"N/A"]
["ACB","ALLIANCE BANK","03-2166 2636","03-2166 2636","Riskk","Riskk",50050,"WILAYAH PERSEKUTUAN","Kuala Lumpur","NIL","NIL","N/A","N/A","N/A","N/A",null,null,null,"N/A"]
["ACE","ACE SEC","03-2166 2636","03-2166 2636","Riskk","Riskk",50050,"WILAYAH PERSEKUTUAN","Kuala Lumpur","NIL","NIL","N/A","N/A","N/A","N/A",null,null,null,"N/A"]
["ACG","A.C. GOODE","03-2166 2636","03-2166 2636","Riskk","Riskk",50050,"WILAYAH PERSEKUTUAN","Kuala Lumpur","NIL","NIL","N/A","N/A","N/A","N/A",null,null,null,"N/A"]
["ACL","AXIS CAPITAL LIMITED","03-2166 2636","03-2166 2636","Riskk","Riskk",50050,"WILAYAH PERSEKUTUAN","Kuala Lumpur","NIL","NIL","N/A","N/A","N/A","N/A",null,null,null,"N/A"]
["ADC","ANDREW DAVIDSON & CO.,INC.","03-2166 2636","03-2166 2636","Riskk","Riskk",50050,"WILAYAH PERSEKUTUAN","Kuala Lumpur","NIL","NIL","N/A","N/A","N/A","N/A",null,null,null,"N/A"]
["ADV","ADVEST DEVELOPMENT & FINANC","03-2166 2636","03-2166 2636","Riskk","Riskk",50050,"WILAYAH PERSEKUTUAN","Kuala Lumpur","NIL","NIL","N/A","N/A","N/A","N/A",null,null,null,"N/A"]
["AEL","ASIA EQUITY LIMITED. HONG","03-2166 2636","03-2166 2636","Riskk","Riskk",50050,"WILAYAH PERSEKUTUAN","Kuala Lumpur","NIL","NIL","N/A","N/A","N/A","N/A",null,null,null,"N/A"]
["AFC","ALBERT FRIED AND COMPANY","03-2166 2636","03-2166 2636","Riskk","Riskk",50050,"WILAYAH PERSEKUTUAN","Kuala Lumpur","NIL","NIL","N/A","N/A","N/A","N/A",null,null,null,"N/A"]
["AFF","AFFIN SECS SDN BHD","03-2166 2636","03-2166 2636","Riskk","Riskk",50050,"WILAYAH PERSEKUTUAN","Kuala Lumpur","NIL","NIL","N/A","N/A","N/A","N/A",null,null,null,"N/A"]
["AFI","AFIN SECURITIES INTL","03-2166 2636","03-2166 2636","Riskk","Riskk",50050,"WILAYAH PERSEKUTUAN","Kuala Lumpur","NIL","NIL","N/A","N/A","N/A","N/A",null,null,null,"N/A"]
["AGE","A.G.,EDWARD & SONS,INC","03-2166 2636","03-2166 2636","Riskk","Riskk",50050,"WILAYAH PERSEKUTUAN","Kuala Lumpur","NIL","NIL","N/A","N/A","N/A","N/A",null,null,null,"N/A"]
["AGF","AMERICAN GENERAL FINANCE","03-2166 2636","03-2166 2636","Riskk","Riskk",50050,"WILAYAH PERSEKUTUAN","Kuala Lumpur","NIL","NIL","N/A","N/A","N/A","N/A",null,null,null,"N/A"]
["AGL","AVIATE GLOBAL LLP","03-2166 2636","03-2166 2636","Riskk","Riskk",50050,"WILAYAH PERSEKUTUAN","Kuala Lumpur","NIL","NIL","N/A","N/A","N/A","N/A",null,null,null,"N/A"]
["AGO","AGORA COR DE TITUL E VAL MO","03-2166 2636","03-2166 2636","Riskk","Riskk",50050,"WILAYAH PERSEKUTUAN","Kuala Lumpur","NIL","NIL","N/A","N/A","N/A","N/A",null,null,null,"N/A"]
["AHG","ABN AMRO HOARE GOVET","03-2166 2636","03-2166 2636","Riskk","Riskk",50050,"WILAYAH PERSEKUTUAN","Kuala Lumpur","NIL","NIL","N/A","N/A","N/A","N/A",null,null,null,"N/A"]
["AHI","AFFIN HWANG INVESTMENT BANK","03-2166 2636","ibops@affinhwang.com","Investment Banking Operations","Riskk",50050,"WILAYAH PERSEKUTUAN","Kuala Lumpur","ibops@affinhwang.com","NIL","N/A","N/A","N/A","N/A",null,"N/A",null,"N/A"]
["AIG","BANQUE AIG","03-2166 2636","03-2166 2636","Riskk","Riskk",50050,"WILAYAH PERSEKUTUAN","Kuala Lumpur","NIL","NIL","N/A","N/A","N/A","N/A",null,null,null,"N/A"]
["AIS","AMBANK ISLAMIC BERHAD","03-2166 2636","03-2166 2636","Riskk","Riskk",50050,"WILAYAH PERSEKUTUAN","Kuala Lumpur","NIL","NIL","N/A","N/A","N/A","N/A","AMISLAMIC","XXX",null,"IS"]
["AIZ","AIZAWA SEC.","03-2166 2636","03-2166 2636","Riskk","Riskk",50050,"WILAYAH PERSEKUTUAN","Kuala Lumpur","NIL","NIL","N/A","N/A","N/A","N/A",null,null,null,"N/A"]
["AKN","ORIX SECURITIES CO.,LTD.","03-2166 2636","03-2166 2636","Riskk","Riskk",50050,"WILAYAH PERSEKUTUAN","Kuala Lumpur","NIL","NIL","N/A","N/A","N/A","N/A",null,null,null,"N/A"]
["AKS","AK SECURITIES","03-2166 2636","03-2166 2636","Riskk","Riskk",50050,"WILAYAH PERSEKUTUAN","Kuala Lumpur","NIL","NIL","YAMGTRI1XXX","N/A","N/A","N/A",null,null,null,"N/A"]
["ALB","ALFRED BERG","03-2166 2636","03-2166 2636","Riskk","Riskk",50050,"WILAYAH PERSEKUTUAN","Kuala Lumpur","NIL","NIL","N/A","N/A","N/A","N/A",null,null,null,"N/A"]
["ALC","ALEXANDERS LAING & CRUICK","03-2166 2636","03-2166 2636","Riskk","Riskk",50050,"WILAYAH PERSEKUTUAN","Kuala Lumpur","NIL","NIL","N/A","N/A","N/A","N/A",null,null,null,"N/A"]
["ALI","ALLIANCE ISLAMIC BANK","03-2166 2636","03-2166 2636","Riskk","Riskk",50050,"WILAYAH PERSEKUTUAN","Kuala Lumpur","NIL","NIL","N/A","N/A","N/A","N/A",null,null,null,"IS"]
["ALL","ALLEN & COMPANY LLC","03-2166 2636","03-2166 2636","Riskk","Riskk",50050,"WILAYAH PERSEKUTUAN","Kuala Lumpur","NIL","NIL","N/A","N/A","N/A","N/A",null,null,null,"N/A"]
["ALV","ALLIANCE INVESTMENT BANK","03-2166 2636","03-2166 2636","Riskk","Riskk",50050,"WILAYAH PERSEKUTUAN","Kuala Lumpur","NIL","NIL","N/A","N/A","N/A","N/A",null,null,null,"N/A"]
["AMB","ARAB MALAYSIAN BANK BHD","03-2166 2636","03-2166 2636","Riskk","Riskk",50050,"WILAYAH PERSEKUTUAN","Kuala Lumpur","NIL","NIL","N/A","N/A","N/A","N/A",null,null,null,"N/A"]
["AMI","ALPHA MANAGEMENT INC","03-2166 2636","03-2166 2636","Riskk","Riskk",50050,"WILAYAH PERSEKUTUAN","Kuala Lumpur","NIL","NIL","N/A","N/A","N/A","N/A",null,null,null,"N/A"]
["AMP","AMHERST PIERPOINT","03-2166 2636","03-2166 2636","Riskk","Riskk",50050,"WILAYAH PERSEKUTUAN","Kuala Lumpur","NIL","NIL","N/A","N/A","N/A","N/A",null,null,null,"N/A"]
["AMS","ANZ MCCAUGHAN SECURITIES","03-2166 2636","03-2166 2636","Riskk","Riskk",50050,"WILAYAH PERSEKUTUAN","Kuala Lumpur","NIL","NIL","N/A","N/A","N/A","N/A",null,null,null,"N/A"]
["AMT","AMBIT","03-2166 2636","03-2166 2636","Riskk","Riskk",50050,"WILAYAH PERSEKUTUAN","Kuala Lumpur","NIL","NIL","N/A","N/A","N/A","N/A",null,null,null,"N/A"]
["ANS","ANZ SECURITIES","03-2166 2636","03-2166 2636","Riskk","Riskk",50050,"WILAYAH PERSEKUTUAN","Kuala Lumpur","NIL","NIL","N/A","N/A","N/A","N/A",null,null,null,"N/A"]
["ANZ","ANZ BANKING GROUP","03-2166 2636","03-2166 2636","Riskk","Riskk",50050,"WILAYAH PERSEKUTUAN","Kuala Lumpur","NIL","NIL","N/A","N/A","N/A","N/A",null,null,null,"N/A"]
["AOZ","AOZORA BANK","03-2166 2636","03-2166 2636","Riskk","Riskk",50050,"WILAYAH PERSEKUTUAN","Kuala Lumpur","NIL","NIL","N/A","N/A","N/A","N/A",null,null,null,"N/A"]
["APC","ASSET PLUS SECURITIES CO","03-2166 2636","03-2166 2636","Riskk","Riskk",50050,"WILAYAH PERSEKUTUAN","Kuala Lumpur","NIL","NIL","N/A","N/A","N/A","N/A",null,null,null,"N/A"]
["AQA","AQUA SECURITIES","03-2166 2636","03-2166 2636","Riskk","Riskk",50050,"WILAYAH PERSEKUTUAN","Kuala Lumpur","NIL","NIL","N/A","N/A","N/A","N/A",null,null,null,"N/A"]
["ARB","AUERBACH GRAYSON","03-2166 2636","03-2166 2636","Riskk","Riskk",50050,"WILAYAH PERSEKUTUAN","Kuala Lumpur","NIL","NIL","N/A","N/A","N/A","N/A",null,null,null,"N/A"]
["ARD","ARDENT FINANCIAL LIMITED","03-2166 2636","03-2166 2636","Riskk","Riskk",50050,"WILAYAH PERSEKUTUAN","Kuala Lumpur","NIL","NIL","N/A","N/A","N/A","N/A",null,null,null,"N/A"]
["ARK","ARK SECURITIES","03-2166 2636","03-2166 2636","Riskk","Riskk",50050,"WILAYAH PERSEKUTUAN","Kuala Lumpur","NIL","NIL","N/A","N/A","N/A","N/A",null,null,null,"N/A"]
["ARQ","ARQAAM SECURITIES LLC","03-2166 2636","03-2166 2636","Riskk","Riskk",50050,"WILAYAH PERSEKUTUAN","Kuala Lumpur","NIL","NIL","N/A","N/A","N/A","N/A",null,null,null,"N/A"]
["ARS","AMINVESTMENT BANK BHD","03-2166 2636","03-2166 2636","Riskk","Riskk",50050,"WILAYAH PERSEKUTUAN","Kuala Lumpur","NIL","NIL","N/A","N/A","N/A","N/A",null,null,null,"N/A"]
["AS","BANC OF AMERICA SECURITIES,","03-2166 2636","03-2166 2636","Riskk","Riskk",50050,"WILAYAH PERSEKUTUAN","Kuala Lumpur","NIL","NIL","N/A","N/A","N/A","N/A",null,null,null,"N/A"]
["ASA","ASAHI SECURITIES","03-2166 2636","03-2166 2636","Riskk","Riskk",50050,"WILAYAH PERSEKUTUAN","Kuala Lumpur","NIL","NIL","N/A","N/A","N/A","N/A",null,null,null,"N/A"]
["ASE","MAYBANK INVESTMENT BANK BER","03-2166 2636","03-2166 2636","Riskk","Riskk",50050,"WILAYAH PERSEKUTUAN","Kuala Lumpur","NIL","NIL","N/A","N/A","N/A","N/A",null,null,null,"N/A"]
["ASL","AVIAN SECURITIES,LLC","03-2166 2636","03-2166 2636","Riskk","Riskk",50050,"WILAYAH PERSEKUTUAN","Kuala Lumpur","NIL","NIL","N/A","N/A","N/A","N/A",null,null,null,"N/A"]
["AT","ATTIMO SPA","03-2166 2636","03-2166 2636","Riskk","Riskk",50050,"WILAYAH PERSEKUTUAN","Kuala Lumpur","NIL","NIL","N/A","N/A","N/A","N/A",null,null,null,"N/A"]
["AUR","AUREL BGC","03-2166 2636","03-2166 2636","Riskk","Riskk",50050,"WILAYAH PERSEKUTUAN","Kuala Lumpur","NIL","NIL","N/A","N/A","N/A","N/A",null,null,null,"N/A"]
["AUS","AUSTOCK SECURITES","03-2166 2636","03-2166 2636","Riskk","Riskk",50050,"WILAYAH PERSEKUTUAN","Kuala Lumpur","NIL","NIL","N/A","N/A","N/A","N/A",null,null,null,"N/A"]
["AUT","AUTONOMOUS LLP","03-2166 2636","03-2166 2636","Riskk","Riskk",50050,"WILAYAH PERSEKUTUAN","Kuala Lumpur","NIL","NIL","N/A","N/A","N/A","N/A",null,null,null,"N/A"]
["AVO","AVONDALE PARTNERS","03-2166 2636","03-2166 2636","Riskk","Riskk",50050,"WILAYAH PERSEKUTUAN","Kuala Lumpur","NIL","NIL","N/A","N/A","N/A","N/A",null,null,null,"N/A"]
["AXE","AXES  SECURITIES","03-2166 2636","03-2166 2636","Riskk","Riskk",50050,"WILAYAH PERSEKUTUAN","Kuala Lumpur","NIL","NIL","N/A","N/A","N/A","N/A",null,null,null,"N/A"]
["BAA","BANC AMERICA SEC MONTOGOM","03-2166 2636","03-2166 2636","Riskk","Riskk",50050,"WILAYAH PERSEKUTUAN","Kuala Lumpur","NIL","NIL","N/A","N/A","N/A","N/A",null,null,null,"N/A"]
["BAB","BARCLAYS TRUST","03-2166 2636","03-2166 2636","Riskk","Riskk",50050,"WILAYAH PERSEKUTUAN","Kuala Lumpur","NIL","NIL","N/A","N/A","N/A","N/A",null,null,null,"N/A"]
["BAJ","BARNARD JACOBS MELLET LONDO","03-2166 2636","03-2166 2636","Riskk","Riskk",50050,"WILAYAH PERSEKUTUAN","Kuala Lumpur","NIL","NIL","N/A","N/A","N/A","N/A",null,null,null,"N/A"]
["BAM","BANC OF AMERICA SECURITIES","03-2166 2636","03-2166 2636","Riskk","Riskk",50050,"WILAYAH PERSEKUTUAN","Kuala Lumpur","NIL","NIL","N/A","N/A","N/A","N/A",null,null,null,"N/A"]
["BAN","BANCO ITAU S/A(HEAD OFFIC","03-2166 2636","03-2166 2636","Riskk","Riskk",50050,"WILAYAH PERSEKUTUAN","Kuala Lumpur","NIL","NIL","N/A","N/A","N/A","N/A",null,null,null,"N/A"]
["BAR","BARCLAYS BANK","03-2166 2636","03-2166 2636","Riskk","Riskk",50050,"WILAYAH PERSEKUTUAN","Kuala Lumpur","NIL","NIL","N/A","N/A","N/A","N/A",null,null,null,"N/A"]
["BARC","BARCLAYS CAP GRP","03-2166 2636","03-2166 2636","Riskk","Riskk",50050,"WILAYAH PERSEKUTUAN","Kuala Lumpur","NIL","NIL","N/A","N/A","N/A","N/A",null,null,null,"N/A"]
["BAS","BACOT ALLAIN SOCIETE DE B","03-2166 2636","03-2166 2636","Riskk","Riskk",50050,"WILAYAH PERSEKUTUAN","Kuala Lumpur","NIL","NIL","N/A","N/A","N/A","N/A",null,null,null,"N/A"]
["BAY","BAYPOINT TRADING LLC","03-2166 2636","03-2166 2636","Riskk","Riskk",50050,"WILAYAH PERSEKUTUAN","Kuala Lumpur","NIL","NIL","N/A","N/A","N/A","N/A",null,null,null,"N/A"]
["BBA","BAADER BANK AG","03-2166 2636","03-2166 2636","Riskk","Riskk",50050,"WILAYAH PERSEKUTUAN","Kuala Lumpur","NIL","NIL","N/A","N/A","N/A","N/A",null,null,null,"N/A"]
["BBE","BANK AM BELLEVUE","03-2166 2636","03-2166 2636","Riskk","Riskk",50050,"WILAYAH PERSEKUTUAN","Kuala Lumpur","NIL","NIL","N/A","N/A","N/A","N/A",null,null,null,"N/A"]
["BBH","BROWN BROTHERS HARRIMAN","03-2166 2636","03-2166 2636","Riskk","Riskk",50050,"WILAYAH PERSEKUTUAN","Kuala Lumpur","NIL","NIL","N/A","N/A","N/A","N/A",null,null,null,"N/A"]
["BBHI","BBH INFOMEDIARY","03-2166 2636","03-2166 2636","Riskk","Riskk",50050,"WILAYAH PERSEKUTUAN","Kuala Lumpur","NIL","NIL","N/A","N/A","N/A","N/A",null,null,null,"N/A"]
["BBL","BANQUE BRUXELLES LAMBERT","03-2166 2636","03-2166 2636","Riskk","Riskk",50050,"WILAYAH PERSEKUTUAN","Kuala Lumpur","NIL","NIL","N/A","N/A","N/A","N/A",null,null,null,"N/A"]
["BBR","BUCKMAN, BUCKMAN ＆ REID INC","03-2166 2636","03-2166 2636","Riskk","Riskk",50050,"WILAYAH PERSEKUTUAN","Kuala Lumpur","NIL","NIL","N/A","N/A","N/A","N/A",null,null,null,"N/A"]
["BBS","BBVA SECURITIES INC","03-2166 2636","03-2166 2636","Riskk","Riskk",50050,"WILAYAH PERSEKUTUAN","Kuala Lumpur","NIL","NIL","N/A","N/A","N/A","N/A",null,null,null,"N/A"]
["BBV","BANCO BILBAO VIZCAYA ARGENT","03-2166 2636","03-2166 2636","Riskk","Riskk",50050,"WILAYAH PERSEKUTUAN","Kuala Lumpur","NIL","NIL","N/A","N/A","N/A","N/A",null,null,null,"N/A"]
["BBY","BURDETT BUCKERIDGE YOUNG","03-2166 2636","03-2166 2636","Riskk","Riskk",50050,"WILAYAH PERSEKUTUAN","Kuala Lumpur","NIL","NIL","N/A","N/A","N/A","N/A",null,null,null,"N/A"]
["BCB","BBVA CORREDORES DE BOLSA LT","03-2166 2636","03-2166 2636","Riskk","Riskk",50050,"WILAYAH PERSEKUTUAN","Kuala Lumpur","NIL","NIL","N/A","N/A","N/A","N/A",null,null,null,"N/A"]
["BCC","BMO CAPITAL MARKET CORP","03-2166 2636","03-2166 2636","Riskk","Riskk",50050,"WILAYAH PERSEKUTUAN","Kuala Lumpur","NIL","NIL","N/A","N/A","N/A","N/A",null,null,null,"N/A"]
["BCE","BNY CONVERGEX GROUP LLC","03-2166 2636","03-2166 2636","Riskk","Riskk",50050,"WILAYAH PERSEKUTUAN","Kuala Lumpur","NIL","NIL","N/A","N/A","N/A","N/A",null,null,null,"N/A"]
["BCH","BANK OF CHINA SECURITIES","03-2166 2636","03-2166 2636","Riskk","Riskk",50050,"WILAYAH PERSEKUTUAN","Kuala Lumpur","NIL","NIL","N/A","N/A","N/A","N/A",null,null,null,"N/A"]
["BCI","BROCKHOUSE AND COOPER","03-2166 2636","03-2166 2636","Riskk","Riskk",50050,"WILAYAH PERSEKUTUAN","Kuala Lumpur","NIL","NIL","N/A","N/A","N/A","N/A",null,null,null,"N/A"]
["BCL","THE BENCHMARK COMPANY LLC","03-2166 2636","03-2166 2636","Riskk","Riskk",50050,"WILAYAH PERSEKUTUAN","Kuala Lumpur","NIL","NIL","N/A","N/A","N/A","N/A",null,null,null,"N/A"]
["BCM","BB&T CAPITAL MARKETS","03-2166 2636","03-2166 2636","Riskk","Riskk",50050,"WILAYAH PERSEKUTUAN","Kuala Lumpur","NIL","NIL","N/A","N/A","N/A","N/A",null,null,null,"N/A"]
["BCN","BANK OF CHINA","03-2166 2636","03-2166 2636","Riskk","Riskk",50050,"WILAYAH PERSEKUTUAN","Kuala Lumpur","NIL","NIL","N/A","N/A","N/A","N/A",null,null,null,"N/A"]
["BCO","BANCO SANTANDER","03-2166 2636","03-2166 2636","Riskk","Riskk",50050,"WILAYAH PERSEKUTUAN","Kuala Lumpur","NIL","NIL","N/A","N/A","N/A","N/A",null,null,null,"N/A"]
["BCOI","BCO INV CS GARANTIA BRAZIL","03-2166 2636","03-2166 2636","Riskk","Riskk",50050,"WILAYAH PERSEKUTUAN","Kuala Lumpur","NIL","NIL","N/A","N/A","N/A","N/A",null,null,null,"N/A"]
["BCP","BAY CREST PARTNERS,LLC","03-2166 2636","03-2166 2636","Riskk","Riskk",50050,"WILAYAH PERSEKUTUAN","Kuala Lumpur","NIL","NIL","N/A","N/A","N/A","N/A",null,null,null,"N/A"]
["BCS","BRIDPORT & CIE SA","03-2166 2636","03-2166 2636","Riskk","Riskk",50050,"WILAYAH PERSEKUTUAN","Kuala Lumpur","NIL","NIL","N/A","N/A","N/A","N/A",null,null,null,"N/A"]
["BCU","BANK OF COMMUNICATIONS","03-2166 2636","03-2166 2636","Riskk","Riskk",50050,"WILAYAH PERSEKUTUAN","Kuala Lumpur","NIL","NIL","N/A","N/A","N/A","N/A",null,null,null,"N/A"]
["BCW","BULLOCK COSTIGAN & WELPTO","03-2166 2636","03-2166 2636","Riskk","Riskk",50050,"WILAYAH PERSEKUTUAN","Kuala Lumpur","NIL","NIL","N/A","N/A","N/A","N/A",null,null,null,"N/A"]
["BDG","BANCO DE GALICIA","03-2166 2636","03-2166 2636","Riskk","Riskk",50050,"WILAYAH PERSEKUTUAN","Kuala Lumpur","NIL","NIL","N/A","N/A","N/A","N/A",null,null,null,"N/A"]
["BEAR","BEAR STEARNS UNITED STATES","03-2166 2636","03-2166 2636","Riskk","Riskk",50050,"WILAYAH PERSEKUTUAN","Kuala Lumpur","NIL","NIL","N/A","N/A","N/A","N/A",null,null,null,"N/A"]
["BEL","BELL POTTER SECURITIES","03-2166 2636","03-2166 2636","Riskk","Riskk",50050,"WILAYAH PERSEKUTUAN","Kuala Lumpur","NIL","NIL","N/A","N/A","N/A","N/A",null,null,null,"N/A"]
["BER","BERWEIN","03-2166 2636","03-2166 2636","Riskk","Riskk",50050,"WILAYAH PERSEKUTUAN","Kuala Lumpur","NIL","NIL","N/A","N/A","N/A","N/A",null,null,null,"N/A"]
["BFT","BANQUE DE FINANCEMENT ET","03-2166 2636","03-2166 2636","Riskk","Riskk",50050,"WILAYAH PERSEKUTUAN","Kuala Lumpur","NIL","NIL","N/A","N/A","N/A","N/A",null,null,null,"N/A"]
["BGC","BGC BROKERS L.P.","03-2166 2636","03-2166 2636","Riskk","Riskk",50050,"WILAYAH PERSEKUTUAN","Kuala Lumpur","NIL","NIL","N/A","N/A","N/A","N/A",null,null,null,"N/A"]
["BGS","BANKGESELLSCHAFT","03-2166 2636","03-2166 2636","Riskk","Riskk",50050,"WILAYAH PERSEKUTUAN","Kuala Lumpur","NIL","NIL","N/A","N/A","N/A","N/A",null,null,null,"N/A"]
["BHF","BERLINER HANDELS UND FRAN","03-2166 2636","03-2166 2636","Riskk","Riskk",50050,"WILAYAH PERSEKUTUAN","Kuala Lumpur","NIL","NIL","N/A","N/A","N/A","N/A",null,null,null,"N/A"]
["BHV","BAYERISCHE VEREINSBK","03-2166 2636","03-2166 2636","Riskk","Riskk",50050,"WILAYAH PERSEKUTUAN","Kuala Lumpur","NIL","NIL","N/A","N/A","N/A","N/A",null,null,null,"N/A"]
["BIL","BANQUE INTERNATIONAL LUXE","03-2166 2636","03-2166 2636","Riskk","Riskk",50050,"WILAYAH PERSEKUTUAN","Kuala Lumpur","NIL","NIL","N/A","N/A","N/A","N/A",null,null,null,"N/A"]
["BIS","BANQUE INDOSUEZ","03-2166 2636","03-2166 2636","Riskk","Riskk",50050,"WILAYAH PERSEKUTUAN","Kuala Lumpur","NIL","NIL","N/A","N/A","N/A","N/A",null,null,null,"N/A"]
["BJC","BROADFORD, J.C.","03-2166 2636","03-2166 2636","Riskk","Riskk",50050,"WILAYAH PERSEKUTUAN","Kuala Lumpur","NIL","NIL","N/A","N/A","N/A","N/A",null,null,null,"N/A"]
["BJG","BERENBG JOH GOSSLER UND CO","03-2166 2636","03-2166 2636","Riskk","Riskk",50050,"WILAYAH PERSEKUTUAN","Kuala Lumpur","NIL","NIL","N/A","N/A","N/A","N/A",null,null,null,"N/A"]
["BJS","BJORNSKOV SECURITIES","03-2166 2636","03-2166 2636","Riskk","Riskk",50050,"WILAYAH PERSEKUTUAN","Kuala Lumpur","NIL","NIL","N/A","N/A","N/A","N/A",null,null,null,"N/A"]
["BK1","BANK ONE","03-2166 2636","03-2166 2636","Riskk","Riskk",50050,"WILAYAH PERSEKUTUAN","Kuala Lumpur","NIL","NIL","N/A","N/A","N/A","N/A",null,null,null,"N/A"]
["BKH","BANK HAPOALIM","03-2166 2636","03-2166 2636","Riskk","Riskk",50050,"WILAYAH PERSEKUTUAN","Kuala Lumpur","NIL","NIL","N/A","N/A","N/A","N/A",null,null,null,"N/A"]
["BKS","BATLIVALA & KARANI SEC.","03-2166 2636","03-2166 2636","Riskk","Riskk",50050,"WILAYAH PERSEKUTUAN","Kuala Lumpur","NIL","NIL","N/A","N/A","N/A","N/A",null,null,null,"N/A"]
["BLM","BLOOMBERG TRADEBOOK LLC","03-2166 2636","03-2166 2636","Riskk","Riskk",50050,"WILAYAH PERSEKUTUAN","Kuala Lumpur","NIL","NIL","N/A","N/A","N/A","N/A",null,null,null,"N/A"]
["BLO","BLUE OAK CAPITAL LTD","03-2166 2636","03-2166 2636","Riskk","Riskk",50050,"WILAYAH PERSEKUTUAN","Kuala Lumpur","NIL","NIL","N/A","N/A","N/A","N/A",null,null,null,"N/A"]
["BMA","BNY MELLON ALTERNATIVE IS","03-2166 2636","03-2166 2636","Riskk","Riskk",50050,"WILAYAH PERSEKUTUAN","Kuala Lumpur","NIL","NIL","N/A","N/A","N/A","N/A",null,null,null,"N/A"]
["BML","BOA MERRILL INTER(LONDON)","03-2166 2636","03-2166 2636","Riskk","Riskk",50050,"WILAYAH PERSEKUTUAN","Kuala Lumpur","NIL","NIL","N/A","N/A","N/A","N/A",null,null,null,"N/A"]
["BMN","BANK OF MONTREAL","03-2166 2636","03-2166 2636","Riskk","Riskk",50050,"WILAYAH PERSEKUTUAN","Kuala Lumpur","NIL","NIL","N/A","N/A","N/A","N/A",null,null,null,"N/A"]
["BMO","BMO NESBITT","03-2166 2636","03-2166 2636","Riskk","Riskk",50050,"WILAYAH PERSEKUTUAN","Kuala Lumpur","NIL","NIL","N/A","N/A","N/A","N/A",null,null,null,"N/A"]
["BNB","BMO NESBITT BURNS","03-2166 2636","03-2166 2636","Riskk","Riskk",50050,"WILAYAH PERSEKUTUAN","Kuala Lumpur","NIL","NIL","N/A","N/A","N/A","N/A",null,null,null,"N/A"]
["BNC","BAIN & COMPANY","03-2166 2636","03-2166 2636","Riskk","Riskk",50050,"WILAYAH PERSEKUTUAN","Kuala Lumpur","NIL","NIL","N/A","N/A","N/A","N/A",null,null,null,"N/A"]
["BNDSWAP","BOND SWAP EXERCISE","03-2166 2636","03-2166 2636","Riskk","Riskk",50050,"WILAYAH PERSEKUTUAN","Kuala Lumpur","NIL","NIL","N/A","N/A","N/A","N/A",null,null,null,"N/A"]
["BNM","BANCO NACIONAL DE MEXICO","03-2166 2636","03-2166 2636","Riskk","Riskk",50050,"WILAYAH PERSEKUTUAN","Kuala Lumpur","NIL","NIL","N/A","N/A","N/A","N/A",null,null,null,"N/A"]
["BNP","BNP PARIBAS","03-2166 2636","03-2166 2636","Riskk","Riskk",50050,"WILAYAH PERSEKUTUAN","Kuala Lumpur","NIL","NIL","N/A","N/A","N/A","N/A",null,null,null,"N/A"]
["BNY","BANK OF NEW YORK MELLON","03-2166 2636","03-2166 2636","Riskk","Riskk",50050,"WILAYAH PERSEKUTUAN","Kuala Lumpur","NIL","NIL","N/A","N/A","N/A","N/A",null,null,null,"N/A"]
["BOA","BANK OF AMERICA","03-2166 2636","03-2166 2636","Riskk","Riskk",50050,"WILAYAH PERSEKUTUAN","Kuala Lumpur","NIL","NIL","N/A","N/A","N/A","N/A",null,null,null,"N/A"]
["BOB","BANK OF BERMUDA TRUST","03-2166 2636","03-2166 2636","Riskk","Riskk",50050,"WILAYAH PERSEKUTUAN","Kuala Lumpur","NIL","NIL","N/A","N/A","N/A","N/A",null,null,null,"N/A"]
["BOC","BOC","03-2166 2636","03-2166 2636","Riskk","Riskk",50050,"WILAYAH PERSEKUTUAN","Kuala Lumpur","NIL","NIL","N/A","N/A","N/A","N/A",null,null,null,"N/A"]
["BOCI","BOCI SECURITIES LTD","03-2166 2636","03-2166 2636","Riskk","Riskk",50050,"WILAYAH PERSEKUTUAN","Kuala Lumpur","NIL","NIL","N/A","N/A","N/A","N/A",null,null,null,"N/A"]
["BOM","BANK OF MONTREAL","03-2166 2636","03-2166 2636","Riskk","Riskk",50050,"WILAYAH PERSEKUTUAN","Kuala Lumpur","NIL","NIL","N/A","N/A","N/A","N/A",null,null,null,"N/A"]
["BOY","BOY SECURITIES CO., LTD.","03-2166 2636","03-2166 2636","Riskk","Riskk",50050,"WILAYAH PERSEKUTUAN","Kuala Lumpur","NIL","NIL","N/A","N/A","N/A","N/A",null,null,null,"N/A"]
["BP","BANQUE PARIBAS","03-2166 2636","03-2166 2636","Riskk","Riskk",50050,"WILAYAH PERSEKUTUAN","Kuala Lumpur","NIL","NIL","N/A","N/A","N/A","N/A",null,null,null,"N/A"]
["BPA","BNP PARIBAS ASSET MANAGEMEN","03-2166 2636","03-2166 2636","Riskk","Riskk",50050,"WILAYAH PERSEKUTUAN","Kuala Lumpur","NIL","NIL","N/A","N/A","N/A","N/A",null,null,null,"N/A"]
["BPB","BNP PARIBAS BANK","03-2166 2636","03-2166 2636","Riskk","Riskk",50050,"WILAYAH PERSEKUTUAN","Kuala Lumpur","NIL","NIL","N/A","N/A","N/A","N/A",null,null,null,"N/A"]
["BPC","BRASIL PLURAL CCTVM SA","03-2166 2636","03-2166 2636","Riskk","Riskk",50050,"WILAYAH PERSEKUTUAN","Kuala Lumpur","NIL","NIL","N/A","N/A","N/A","N/A",null,null,null,"N/A"]
["BPL","BESTEX PTY LTD","03-2166 2636","03-2166 2636","Riskk","Riskk",50050,"WILAYAH PERSEKUTUAN","Kuala Lumpur","NIL","NIL","N/A","N/A","N/A","N/A",null,null,null,"N/A"]
["BPS","BCP SECURITIES","03-2166 2636","03-2166 2636","Riskk","Riskk",50050,"WILAYAH PERSEKUTUAN","Kuala Lumpur","NIL","NIL","N/A","N/A","N/A","N/A",null,null,null,"N/A"]
["BR","BUCKINGHAM RESEARCH","03-2166 2636","03-2166 2636","Riskk","Riskk",50050,"WILAYAH PERSEKUTUAN","Kuala Lumpur","NIL","NIL","N/A","N/A","N/A","N/A",null,null,null,"N/A"]
["BRA","BRADESCO","03-2166 2636","03-2166 2636","Riskk","Riskk",50050,"WILAYAH PERSEKUTUAN","Kuala Lumpur","NIL","NIL","N/A","N/A","N/A","N/A",null,null,null,"N/A"]
["BRB","BERENBERG BANK","03-2166 2636","03-2166 2636","Riskk","Riskk",50050,"WILAYAH PERSEKUTUAN","Kuala Lumpur","NIL","NIL","N/A","N/A","N/A","N/A",null,null,null,"N/A"]
["BRG","BERENBERG CAPITAL MARKETS","03-2166 2636","03-2166 2636","Riskk","Riskk",50050,"WILAYAH PERSEKUTUAN","Kuala Lumpur","NIL","NIL","N/A","N/A","N/A","N/A",null,null,null,"N/A"]
["BRI","B.RILEY & CO LLC","03-2166 2636","03-2166 2636","Riskk","Riskk",50050,"WILAYAH PERSEKUTUAN","Kuala Lumpur","NIL","NIL","N/A","N/A","N/A","N/A",null,null,null,"N/A"]
["BRO","BROADCORT CAPITAL CORP","03-2166 2636","03-2166 2636","Riskk","Riskk",50050,"WILAYAH PERSEKUTUAN","Kuala Lumpur","NIL","NIL","N/A","N/A","N/A","N/A",null,null,null,"N/A"]
["BRS","ING BARING SECURITIES","03-2166 2636","03-2166 2636","Riskk","Riskk",50050,"WILAYAH PERSEKUTUAN","Kuala Lumpur","NIL","NIL","N/A","N/A","N/A","N/A",null,null,null,"N/A"]
["BS","BEAR STEARNS","03-2166 2636","03-2166 2636","Riskk","Riskk",50050,"WILAYAH PERSEKUTUAN","Kuala Lumpur","NIL","NIL","N/A","N/A","N/A","N/A",null,null,null,"N/A"]
["BSI","BROWNSTONE INVESTMENT GROUP","03-2166 2636","03-2166 2636","Riskk","Riskk",50050,"WILAYAH PERSEKUTUAN","Kuala Lumpur","NIL","NIL","N/A","N/A","N/A","N/A",null,null,null,"N/A"]
["BST","BOSTON SAFE & TRUST","03-2166 2636","03-2166 2636","Riskk","Riskk",50050,"WILAYAH PERSEKUTUAN","Kuala Lumpur","NIL","NIL","N/A","N/A","N/A","N/A",null,null,null,"N/A"]
["BT","DEUTCHE TRUST ASIA SEC.","03-2166 2636","03-2166 2636","Riskk","Riskk",50050,"WILAYAH PERSEKUTUAN","Kuala Lumpur","NIL","NIL","N/A","N/A","N/A","N/A",null,null,null,"N/A"]
["BTA","BTG CAPITAL CORP","03-2166 2636","03-2166 2636","Riskk","Riskk",50050,"WILAYAH PERSEKUTUAN","Kuala Lumpur","NIL","NIL","N/A","N/A","N/A","N/A",null,null,null,"N/A"]
["BTB","MITSUBISHI TRUST & BANKING","03-2166 2636","03-2166 2636","Riskk","Riskk",50050,"WILAYAH PERSEKUTUAN","Kuala Lumpur","NIL","NIL","N/A","N/A","N/A","N/A",null,null,null,"N/A"]
["BTC","DEUTCHE TRUST BANK LIMITED","03-2166 2636","03-2166 2636","Riskk","Riskk",50050,"WILAYAH PERSEKUTUAN","Kuala Lumpur","NIL","NIL","N/A","N/A","N/A","N/A",null,null,null,"N/A"]
["BTF","BTF","03-2166 2636","03-2166 2636","Riskk","Riskk",50050,"WILAYAH PERSEKUTUAN","Kuala Lumpur","NIL","NIL","N/A","N/A","N/A","N/A",null,null,null,"N/A"]
["BTG","BTIG","03-2166 2636","03-2166 2636","Riskk","Riskk",50050,"WILAYAH PERSEKUTUAN","Kuala Lumpur","NIL","NIL","N/A","N/A","N/A","N/A",null,null,null,"N/A"]
["BTS","B-TRADE SERVICES LLC","03-2166 2636","03-2166 2636","Riskk","Riskk",50050,"WILAYAH PERSEKUTUAN","Kuala Lumpur","NIL","NIL","N/A","N/A","N/A","N/A",null,null,null,"N/A"]
["BUT","BUTTLE WILSON LTD.","03-2166 2636","03-2166 2636","Riskk","Riskk",50050,"WILAYAH PERSEKUTUAN","Kuala Lumpur","NIL","NIL","N/A","N/A","N/A","N/A",null,null,null,"N/A"]
["BV","BV CAPITAL MARKETS","03-2166 2636","03-2166 2636","Riskk","Riskk",50050,"WILAYAH PERSEKUTUAN","Kuala Lumpur","NIL","NIL","N/A","N/A","N/A","N/A",null,null,null,"N/A"]
["BVA","BANK VONTOBEL AG","03-2166 2636","03-2166 2636","Riskk","Riskk",50050,"WILAYAH PERSEKUTUAN","Kuala Lumpur","NIL","NIL","N/A","N/A","N/A","N/A",null,null,null,"N/A"]
["BW","BIRR WILSON & CO","03-2166 2636","03-2166 2636","Riskk","Riskk",50050,"WILAYAH PERSEKUTUAN","Kuala Lumpur","NIL","NIL","N/A","N/A","N/A","N/A",null,null,null,"N/A"]
["BZB","BZ BANK ZURICH","03-2166 2636","03-2166 2636","Riskk","Riskk",50050,"WILAYAH PERSEKUTUAN","Kuala Lumpur","NIL","NIL","N/A","N/A","N/A","N/A",null,null,null,"N/A"]
["BZW","BARCLAYS CAPITAL","03-2166 2636","03-2166 2636","Riskk","Riskk",50050,"WILAYAH PERSEKUTUAN","Kuala Lumpur","NIL","NIL","N/A","N/A","N/A","N/A",null,null,null,"N/A"]
["CAB","CALYON BANK","03-2166 2636","03-2166 2636","Riskk","Riskk",50050,"WILAYAH PERSEKUTUAN","Kuala Lumpur","NIL","NIL","N/A","N/A","N/A","N/A",null,null,null,"N/A"]
["CAC","CACEIS BANK","03-2166 2636","03-2166 2636","Riskk","Riskk",50050,"WILAYAH PERSEKUTUAN","Kuala Lumpur","NIL","NIL","N/A","N/A","N/A","N/A",null,null,null,"N/A"]
["CAG","CREDIT AGRICOLE","03-2166 2636","03-2166 2636","Riskk","Riskk",50050,"WILAYAH PERSEKUTUAN","Kuala Lumpur","NIL","NIL","N/A","N/A","N/A","N/A",null,null,null,"N/A"]
["CAI","BANK AUSTRIA CREDITANSTALT","03-2166 2636","03-2166 2636","Riskk","Riskk",50050,"WILAYAH PERSEKUTUAN","Kuala Lumpur","NIL","NIL","N/A","N/A","N/A","N/A",null,null,null,"N/A"]
["CAN","CANACCORD CAPITAL (EUROPE)","03-2166 2636","03-2166 2636","Riskk","Riskk",50050,"WILAYAH PERSEKUTUAN","Kuala Lumpur","NIL","NIL","N/A","N/A","N/A","N/A",null,null,null,"N/A"]
["CAO","CAPITAL ONE SECURITIES, INC","03-2166 2636","03-2166 2636","Riskk","Riskk",50050,"WILAYAH PERSEKUTUAN","Kuala Lumpur","NIL","NIL","N/A","N/A","N/A","N/A",null,null,null,"N/A"]
["CAP","CAPITAL INSTITUTIONAL","03-2166 2636","03-2166 2636","Riskk","Riskk",50050,"WILAYAH PERSEKUTUAN","Kuala Lumpur","NIL","NIL","N/A","N/A","N/A","N/A",null,null,null,"N/A"]
["CAS","CAPITAL SECURITIES CO.,LTD","03-2166 2636","03-2166 2636","Riskk","Riskk",50050,"WILAYAH PERSEKUTUAN","Kuala Lumpur","NIL","NIL","N/A","N/A","N/A","N/A",null,null,null,"N/A"]
["CASH","CASH","03-2166 2636","03-2166 2636","Riskk","Riskk",50050,"WILAYAH PERSEKUTUAN","Kuala Lumpur","NIL","NIL","N/A","N/A","N/A","N/A",null,null,null,"N/A"]
["CASHDUMMY",0,"03-2166 2636","03-2166 2636","Riskk","Riskk",50050,"WILAYAH PERSEKUTUAN","Kuala Lumpur","NIL","NIL","N/A","N/A","N/A","N/A",null,"XXX",null,"N/A"]
["CAT","CATHAY SECURITIES CORP","03-2166 2636","03-2166 2636","Riskk","Riskk",50050,"WILAYAH PERSEKUTUAN","Kuala Lumpur","NIL","NIL","N/A","N/A","N/A","N/A",null,null,null,"N/A"]
["CAZ","JPMORGAN CAZENOVE INT.","03-2166 2636","03-2166 2636","Riskk","Riskk",50050,"WILAYAH PERSEKUTUAN","Kuala Lumpur","NIL","NIL","N/A","N/A","N/A","N/A",null,null,null,"N/A"]
["CB","CITIBANK","03-2166 2636","603 2383 3000","Treasury Operations","Riskk",50050,"WILAYAH PERSEKUTUAN","Kuala Lumpur","NIL","NIL","N/A","N/A","N/A","N/A",null,null,null,"N/A"]
["CBA","CARNEGIE BANK AS","03-2166 2636","03-2166 2636","Riskk","Riskk",50050,"WILAYAH PERSEKUTUAN","Kuala Lumpur","NIL","NIL","N/A","N/A","N/A","N/A",null,null,null,"N/A"]
["CBB","CIMB BANK BERHAD","03-2166 2636","603 2261 7567","Mr. Cheong Kong Meng","Riskk",50050,"WILAYAH PERSEKUTUAN","Kuala Lumpur","NIL","NIL","CIBBMYKLXXX","N/A","CIBBMYKLXXX",1554010424,"CIMB BANK BERHAD","XXX",null,"N/A"]
["CCB","CCB INTERNATIONAL","03-2166 2636","03-2166 2636","Riskk","Riskk",50050,"WILAYAH PERSEKUTUAN","Kuala Lumpur","NIL","NIL","N/A","N/A","N/A","N/A",null,null,null,"N/A"]
["CCC","CREDICORP CAPITAL","03-2166 2636","03-2166 2636","Riskk","Riskk",50050,"WILAYAH PERSEKUTUAN","Kuala Lumpur","NIL","NIL","N/A","N/A","N/A","N/A",null,null,null,"N/A"]
["CCF","CREDIT COMMERCIALE DE FRA","03-2166 2636","03-2166 2636","Riskk","Riskk",50050,"WILAYAH PERSEKUTUAN","Kuala Lumpur","NIL","NIL","N/A","N/A","N/A","N/A",null,null,null,"N/A"]
["CCI","CHAPDELAINE & CO INC","03-2166 2636","03-2166 2636","Riskk","Riskk",50050,"WILAYAH PERSEKUTUAN","Kuala Lumpur","NIL","NIL","N/A","N/A","N/A","N/A",null,null,null,"N/A"]
["CCM","COMMERZBANK","03-2166 2636","03-2166 2636","Riskk","Riskk",50050,"WILAYAH PERSEKUTUAN","Kuala Lumpur","NIL","NIL","N/A","N/A","N/A","N/A",null,null,null,"N/A"]
["CCP","CRESCENT CAPITAL GROUP LP","03-2166 2636","03-2166 2636","Riskk","Riskk",50050,"WILAYAH PERSEKUTUAN","Kuala Lumpur","NIL","NIL","N/A","N/A","N/A","N/A",null,null,null,"N/A"]
["CCR","COOPERATIEVE CENT RAIFF BOE","03-2166 2636","03-2166 2636","Riskk","Riskk",50050,"WILAYAH PERSEKUTUAN","Kuala Lumpur","NIL","NIL","N/A","N/A","N/A","N/A",null,null,null,"N/A"]
["CCS","CORTVIEW CAPITAL SECURITIES","03-2166 2636","03-2166 2636","Riskk","Riskk",50050,"WILAYAH PERSEKUTUAN","Kuala Lumpur","NIL","NIL","N/A","N/A","N/A","N/A",null,null,null,"N/A"]
["CCV","CONVENCAO S/A CORRETORA DE","03-2166 2636","03-2166 2636","Riskk","Riskk",50050,"WILAYAH PERSEKUTUAN","Kuala Lumpur","NIL","NIL","N/A","N/A","N/A","N/A",null,null,null,"N/A"]
["CCZ","COMMERZ SECURITIES","03-2166 2636","03-2166 2636","Riskk","Riskk",50050,"WILAYAH PERSEKUTUAN","Kuala Lumpur","NIL","NIL","N/A","N/A","N/A","N/A",null,null,null,"N/A"]
["CDC","CDC","03-2166 2636","03-2166 2636","Riskk","Riskk",50050,"WILAYAH PERSEKUTUAN","Kuala Lumpur","NIL","NIL","N/A","N/A","N/A","N/A",null,null,null,"N/A"]
["CDL","CREST DEPOSITORY LIMITED","03-2166 2636","03-2166 2636","Riskk","Riskk",50050,"WILAYAH PERSEKUTUAN","Kuala Lumpur","NIL","NIL","N/A","N/A","N/A","N/A",null,null,null,"N/A"]
["CDV","CHEUVREUX DE VIRIEU SA","03-2166 2636","03-2166 2636","Riskk","Riskk",50050,"WILAYAH PERSEKUTUAN","Kuala Lumpur","NIL","NIL","N/A","N/A","N/A","N/A",null,null,null,"N/A"]
["CEL","CELFIN CAPITAL SA CORREDORE","03-2166 2636","03-2166 2636","Riskk","Riskk",50050,"WILAYAH PERSEKUTUAN","Kuala Lumpur","NIL","NIL","N/A","N/A","N/A","N/A",null,null,null,"N/A"]
["CEN","CENTURY SECURITIES CO.,LTD","03-2166 2636","03-2166 2636","Riskk","Riskk",50050,"WILAYAH PERSEKUTUAN","Kuala Lumpur","NIL","NIL","N/A","N/A","N/A","N/A",null,null,null,"N/A"]
["CF","CHRISTIANIA FORVALTNING A","03-2166 2636","03-2166 2636","Riskk","Riskk",50050,"WILAYAH PERSEKUTUAN","Kuala Lumpur","NIL","NIL","N/A","N/A","N/A","N/A",null,null,null,"N/A"]
["CFB","CREDIT SWISS FIRST BOSTON","03-2166 2636","03-2166 2636","Riskk","Riskk",50050,"WILAYAH PERSEKUTUAN","Kuala Lumpur","NIL","NIL","N/A","N/A","N/A","N/A",null,null,null,"N/A"]
["CFG","CANTOR FITZGERALD","03-2166 2636","03-2166 2636","Riskk","Riskk",50050,"WILAYAH PERSEKUTUAN","Kuala Lumpur","NIL","NIL","N/A","N/A","N/A","N/A",null,null,null,"N/A"]
["CFI","CANACCORD FINANCIAL INC.","03-2166 2636","03-2166 2636","Riskk","Riskk",50050,"WILAYAH PERSEKUTUAN","Kuala Lumpur","NIL","NIL","N/A","N/A","N/A","N/A",null,null,null,"N/A"]
["CGC","CIBC GRENFELL & COLEGRAVE","03-2166 2636","03-2166 2636","Riskk","Riskk",50050,"WILAYAH PERSEKUTUAN","Kuala Lumpur","NIL","NIL","N/A","N/A","N/A","N/A",null,null,null,"N/A"]
["CGK","CGS-CIMB SECURITIES SDN BHD","03-2166 2636","03-2166 2636","Riskk","Riskk",50050,"WILAYAH PERSEKUTUAN","Kuala Lumpur","NIL","NIL","N/A","N/A","N/A","N/A",null,null,null,"N/A"]
["CGR","CIT GROUP","03-2166 2636","03-2166 2636","Riskk","Riskk",50050,"WILAYAH PERSEKUTUAN","Kuala Lumpur","NIL","NIL","N/A","N/A","N/A","N/A",null,null,null,"N/A"]
["CH","CHARTERED SECURITIES","03-2166 2636","03-2166 2636","Riskk","Riskk",50050,"WILAYAH PERSEKUTUAN","Kuala Lumpur","NIL","NIL","N/A","N/A","N/A","N/A",null,null,null,"N/A"]
["CHB","CHIBA BANK","03-2166 2636","03-2166 2636","Riskk","Riskk",50050,"WILAYAH PERSEKUTUAN","Kuala Lumpur","NIL","NIL","N/A","N/A","N/A","N/A",null,null,null,"N/A"]
["CHC","CHINA CONSTRUCTION BANK","03-2166 2636","03-2166 2636","Riskk","Riskk",50050,"WILAYAH PERSEKUTUAN","Kuala Lumpur","NIL","NIL","N/A","N/A","N/A","N/A",null,null,null,"N/A"]
["CHD","CHD","03-2166 2636","03-2166 2636","Riskk","Riskk",50050,"WILAYAH PERSEKUTUAN","Kuala Lumpur","NIL","NIL","N/A","N/A","N/A","N/A",null,null,null,"N/A"]
["CHE","CHEEVERS & COMPANY,INC","03-2166 2636","03-2166 2636","Riskk","Riskk",50050,"WILAYAH PERSEKUTUAN","Kuala Lumpur","NIL","NIL","N/A","N/A","N/A","N/A",null,null,null,"N/A"]
["CHI","CHING WONG","03-2166 2636","03-2166 2636","Riskk","Riskk",50050,"WILAYAH PERSEKUTUAN","Kuala Lumpur","NIL","NIL","N/A","N/A","N/A","N/A",null,null,null,"N/A"]
["CHK","THE NEW CHINA HONG KONG S","03-2166 2636","03-2166 2636","Riskk","Riskk",50050,"WILAYAH PERSEKUTUAN","Kuala Lumpur","NIL","NIL","N/A","N/A","N/A","N/A",null,null,null,"N/A"]
["CHN","CHINA SECURITIES CO LTD","03-2166 2636","03-2166 2636","Riskk","Riskk",50050,"WILAYAH PERSEKUTUAN","Kuala Lumpur","NIL","NIL","N/A","N/A","N/A","N/A",null,null,null,"N/A"]
["CHO","CHOLET DUPONT","03-2166 2636","03-2166 2636","Riskk","Riskk",50050,"WILAYAH PERSEKUTUAN","Kuala Lumpur","NIL","NIL","N/A","N/A","N/A","N/A",null,null,null,"N/A"]
["CHS","CHASE SECURITIES LTD.","03-2166 2636","03-2166 2636","Riskk","Riskk",50050,"WILAYAH PERSEKUTUAN","Kuala Lumpur","NIL","NIL","N/A","N/A","N/A","N/A",null,null,null,"N/A"]
["CHT","CHARTER HOUSE TINLEY","03-2166 2636","03-2166 2636","Riskk","Riskk",50050,"WILAYAH PERSEKUTUAN","Kuala Lumpur","NIL","NIL","N/A","N/A","N/A","N/A",null,null,null,"N/A"]
["CIB","CHINA CITIC BANK","03-2166 2636","03-2166 2636","Riskk","Riskk",50050,"WILAYAH PERSEKUTUAN","Kuala Lumpur","NIL","NIL","N/A","N/A","N/A","N/A",null,null,null,"N/A"]
["CIBC","CANADIAN IMPERIAL BANK","03-2166 2636","03-2166 2636","Riskk","Riskk",50050,"WILAYAH PERSEKUTUAN","Kuala Lumpur","NIL","NIL","N/A","N/A","N/A","N/A",null,null,null,"N/A"]
["CIC","CHINA INTERNATIONAL CAPITAL","03-2166 2636","03-2166 2636","Riskk","Riskk",50050,"WILAYAH PERSEKUTUAN","Kuala Lumpur","NIL","NIL","N/A","N/A","N/A","N/A",null,null,null,"N/A"]
["CIGK","CGS-CIMB SECURITIES SDN BHD","03-2166 2636","03-2166 2636","Riskk","Riskk",50050,"WILAYAH PERSEKUTUAN","Kuala Lumpur","NIL","NIL","N/A","N/A","N/A","N/A",null,null,null,"N/A"]
["CII","CREDIT ITALIANO","03-2166 2636","03-2166 2636","Riskk","Riskk",50050,"WILAYAH PERSEKUTUAN","Kuala Lumpur","NIL","NIL","N/A","N/A","N/A","N/A",null,null,null,"N/A"]
["CIL","CARNEGIE INTERNATIONAL LT","03-2166 2636","03-2166 2636","Riskk","Riskk",50050,"WILAYAH PERSEKUTUAN","Kuala Lumpur","NIL","NIL","N/A","N/A","N/A","N/A",null,null,null,"N/A"]
["CIM","CIMB INVESTMENT BANK BERHAD","03-2166 2636","03-2166 2636","Riskk","Riskk",50050,"WILAYAH PERSEKUTUAN","Kuala Lumpur","NIL","NIL","N/A","N/A","N/A","N/A",null,null,null,"N/A"]
["CIMB","CIMB SECURITIES PTE LTD","03-2166 2636","03-2166 2636","Riskk","Riskk",50050,"WILAYAH PERSEKUTUAN","Kuala Lumpur","NIL","NIL","N/A","N/A","N/A","N/A",null,null,null,"N/A"]
["CIMBBNK","CIMB BANK BHD",20748953,"03-20709387","Ms.Amalina / Mr. Abdullah Tahir","8th,Menara Maybank, 100 Jln Tun Perak,",50050,"WILAYAH PERSEKUTUAN","Kuala Lumpur","abdullah.tahir@maybank.com.my","NIL","CIBBMYKLCUS","N/A","N/A","N/A",null,null,null,"N/A"]
["CIMBCOMTRT","CIMB COMMERCE TRUSTEE BERHAD",20748953,"03-22619889","Amy Maureen Frankie","8th,Menara Maybank, 100 Jln Tun Perak,",50050,"WILAYAH PERSEKUTUAN","Kuala Lumpur","cimbib.corpunittrust@cimb.com; wb.tb-ssfundaccounting@cimb.com","NIL","CIBBMYKLCUS","N/A","N/A","N/A",null,null,null,"N/A"]
["CIMBISLA","CIMB ISLAMIC BANK BHD",20748953,"03-20709387","Ms.Amalina / Mr. Abdullah Tahir","8th,Menara Maybank, 100 Jln Tun Perak,",50050,"WILAYAH PERSEKUTUAN","Kuala Lumpur","abdullah.tahir@maybank.com.my","NIL","N/A","N/A","N/A","N/A",null,"XXX",null,"IS"]
["CIS","CITIC SECURITIES","03-2166 2636","03-2166 2636","Riskk","Riskk",50050,"WILAYAH PERSEKUTUAN","Kuala Lumpur","NIL","NIL","N/A","N/A","N/A","N/A",null,null,null,"N/A"]
["CITI","CITI GROUP (SALOMON S BARNE","03-2166 2636","03-2166 2636","Riskk","Riskk",50050,"WILAYAH PERSEKUTUAN","Kuala Lumpur","NIL","NIL","N/A","N/A","N/A","N/A",null,null,null,"N/A"]
["CITIT","CITIBANK BERHAD",20748953,"03-20709387","Ms.Amalina / Mr. Abdullah Tahir","8th,Menara Maybank, 100 Jln Tun Perak,",50050,"WILAYAH PERSEKUTUAN","Kuala Lumpur","abdullah.tahir@maybank.com.my","NIL","CITIMYKLXXX","N/A","N/A","N/A",null,null,null,"N/A"]
["CIU","CICC US SECURITIES INC","03-2166 2636","03-2166 2636","Riskk","Riskk",50050,"WILAYAH PERSEKUTUAN","Kuala Lumpur","NIL","NIL","N/A","N/A","N/A","N/A",null,null,null,"N/A"]
["CJL","C.J. LAWRENCE","03-2166 2636","03-2166 2636","Riskk","Riskk",50050,"WILAYAH PERSEKUTUAN","Kuala Lumpur","NIL","NIL","N/A","N/A","N/A","N/A",null,null,null,"N/A"]
["CK","CARR KITCAT","03-2166 2636","03-2166 2636","Riskk","Riskk",50050,"WILAYAH PERSEKUTUAN","Kuala Lumpur","NIL","NIL","N/A","N/A","N/A","N/A",null,null,null,"N/A"]
["CKB","CHIBA KOGYO BANK","03-2166 2636","03-2166 2636","Riskk","Riskk",50050,"WILAYAH PERSEKUTUAN","Kuala Lumpur","NIL","NIL","N/A","N/A","N/A","N/A",null,null,null,"N/A"]
["CL","CLSA","03-2166 2636","03-2166 2636","Riskk","Riskk",50050,"WILAYAH PERSEKUTUAN","Kuala Lumpur","NIL","NIL","N/A","N/A","N/A","N/A",null,null,null,"N/A"]
["CLAL","CLAL","03-2166 2636","03-2166 2636","Riskk","Riskk",50050,"WILAYAH PERSEKUTUAN","Kuala Lumpur","NIL","NIL","N/A","N/A","N/A","N/A",null,null,null,"N/A"]
["CLK","CL KING & ASSOCIATES","03-2166 2636","03-2166 2636","Riskk","Riskk",50050,"WILAYAH PERSEKUTUAN","Kuala Lumpur","NIL","NIL","N/A","N/A","N/A","N/A",null,null,null,"N/A"]
["CLS","CLSA","03-2166 2636","03-2166 2636","Riskk","Riskk",50050,"WILAYAH PERSEKUTUAN","Kuala Lumpur","NIL","NIL","N/A","N/A","N/A","N/A",null,null,null,"N/A"]
["CLSA","CREDIT LYONNAIS","03-2166 2636","03-2166 2636","Riskk","Riskk",50050,"WILAYAH PERSEKUTUAN","Kuala Lumpur","NIL","NIL","N/A","N/A","N/A","N/A",null,null,null,"N/A"]
["CMB","JPMORGAN CHASE BANK","03-2166 2636","03-2166 2636","Riskk","Riskk",50050,"WILAYAH PERSEKUTUAN","Kuala Lumpur","NIL","NIL","N/A","N/A","N/A","N/A",null,null,null,"N/A"]
["CMC","CHINA MERCHANTS SEC CO LTD","03-2166 2636","03-2166 2636","Riskk","Riskk",50050,"WILAYAH PERSEKUTUAN","Kuala Lumpur","NIL","NIL","N/A","N/A","N/A","N/A",null,null,null,"N/A"]
["CME","CIBC MELLON","03-2166 2636","03-2166 2636","Riskk","Riskk",50050,"WILAYAH PERSEKUTUAN","Kuala Lumpur","NIL","NIL","N/A","N/A","N/A","N/A",null,null,null,"N/A"]
["CMI","CIMB ISLAMIC BANK","03-2166 2636","03-2166 2636","Riskk","Riskk",50050,"WILAYAH PERSEKUTUAN","Kuala Lumpur","NIL","NIL","CTBBMYKLXXX","N/A","CTBBMYKLXXX",1554020432,"CIMB ISLAMIC BANK","XXX",null,"IS"]
["CML","CRESCENT MEZZANINE 7C LLC","03-2166 2636","03-2166 2636","Riskk","Riskk",50050,"WILAYAH PERSEKUTUAN","Kuala Lumpur","NIL","NIL","N/A","N/A","N/A","N/A",null,null,null,"N/A"]
["CMS","CHASE MANHATTAN SECURITIES","03-2166 2636","03-2166 2636","Riskk","Riskk",50050,"WILAYAH PERSEKUTUAN","Kuala Lumpur","NIL","NIL","N/A","N/A","N/A","N/A",null,null,null,"N/A"]
["CNA","CITIBANK N.A.","03-2166 2636","03-2166 2636","Riskk","Riskk",50050,"WILAYAH PERSEKUTUAN","Kuala Lumpur","NIL","NIL","N/A","N/A","N/A","N/A",null,null,null,"N/A"]
["CNW","GREENWICH NATWEST SECURIT","03-2166 2636","03-2166 2636","Riskk","Riskk",50050,"WILAYAH PERSEKUTUAN","Kuala Lumpur","NIL","NIL","N/A","N/A","N/A","N/A",null,null,null,"N/A"]
["COAC","COAC","03-2166 2636","03-2166 2636","Riskk","Riskk",50050,"WILAYAH PERSEKUTUAN","Kuala Lumpur","NIL","NIL","N/A","N/A","N/A","N/A",null,null,null,"N/A"]
["CON","CONVERGEX EXECUTION","03-2166 2636","03-2166 2636","Riskk","Riskk",50050,"WILAYAH PERSEKUTUAN","Kuala Lumpur","NIL","NIL","N/A","N/A","N/A","N/A",null,null,null,"N/A"]
["COR","CORYO SECURITIES","03-2166 2636","03-2166 2636","Riskk","Riskk",50050,"WILAYAH PERSEKUTUAN","Kuala Lumpur","NIL","NIL","N/A","N/A","N/A","N/A",null,null,null,"N/A"]
["COS","COSMO SECURITIES","03-2166 2636","03-2166 2636","Riskk","Riskk",50050,"WILAYAH PERSEKUTUAN","Kuala Lumpur","NIL","NIL","N/A","N/A","N/A","N/A",null,null,null,"N/A"]
["COW","COWEN & COMPANY","03-2166 2636","03-2166 2636","Riskk","Riskk",50050,"WILAYAH PERSEKUTUAN","Kuala Lumpur","NIL","NIL","N/A","N/A","N/A","N/A",null,null,null,"N/A"]
["CPS","CORE PACIFIC SECURITIES","03-2166 2636","03-2166 2636","Riskk","Riskk",50050,"WILAYAH PERSEKUTUAN","Kuala Lumpur","NIL","NIL","N/A","N/A","N/A","N/A",null,null,null,"N/A"]
["CR","CREDIT STURDIVANT","03-2166 2636","03-2166 2636","Riskk","Riskk",50050,"WILAYAH PERSEKUTUAN","Kuala Lumpur","NIL","NIL","N/A","N/A","N/A","N/A",null,null,null,"N/A"]
["CRA","CREDIT AGRICOLE SECURITIES","03-2166 2636","03-2166 2636","Riskk","Riskk",50050,"WILAYAH PERSEKUTUAN","Kuala Lumpur","NIL","NIL","N/A","N/A","N/A","N/A",null,null,null,"N/A"]
["CRD","RBC DOMINION SECURITIES L","03-2166 2636","03-2166 2636","Riskk","Riskk",50050,"WILAYAH PERSEKUTUAN","Kuala Lumpur","NIL","NIL","N/A","N/A","N/A","N/A",null,null,null,"N/A"]
["CRH","CRAIG HALLUM CAPITAL","03-2166 2636","03-2166 2636","Riskk","Riskk",50050,"WILAYAH PERSEKUTUAN","Kuala Lumpur","NIL","NIL","N/A","N/A","N/A","N/A",null,null,null,"N/A"]
["CRI","CREDIT RESEARCH INC.","03-2166 2636","03-2166 2636","Riskk","Riskk",50050,"WILAYAH PERSEKUTUAN","Kuala Lumpur","NIL","NIL","N/A","N/A","N/A","N/A",null,null,null,"N/A"]
["CRT","CRT CAPITAL GROUP LLC","03-2166 2636","03-2166 2636","Riskk","Riskk",50050,"WILAYAH PERSEKUTUAN","Kuala Lumpur","NIL","NIL","N/A","N/A","N/A","N/A",null,null,null,"N/A"]
["CS","COLLINS STEWART","03-2166 2636","03-2166 2636","Riskk","Riskk",50050,"WILAYAH PERSEKUTUAN","Kuala Lumpur","NIL","NIL","N/A","N/A","N/A","N/A",null,null,null,"N/A"]
["CSA","CREDIT SUISSE AG","03-2166 2636","03-2166 2636","Riskk","Riskk",50050,"WILAYAH PERSEKUTUAN","Kuala Lumpur","NIL","NIL","N/A","N/A","N/A","N/A",null,null,null,"N/A"]
["CSB","CREDIT SUISSE TRUST AND B","03-2166 2636","03-2166 2636","Riskk","Riskk",50050,"WILAYAH PERSEKUTUAN","Kuala Lumpur","NIL","NIL","N/A","N/A","N/A","N/A",null,null,null,"N/A"]
["CSC","CHARLES SCWAB & CO INC.","03-2166 2636","03-2166 2636","Riskk","Riskk",50050,"WILAYAH PERSEKUTUAN","Kuala Lumpur","NIL","NIL","N/A","N/A","N/A","N/A",null,null,null,"N/A"]
["CSE","CS EUROPE LTD CSA","03-2166 2636","03-2166 2636","Riskk","Riskk",50050,"WILAYAH PERSEKUTUAN","Kuala Lumpur","NIL","NIL","N/A","N/A","N/A","N/A",null,null,null,"N/A"]
["CSF","CREDIT SUISSE","03-2166 2636","03-2166 2636","Riskk","Riskk",50050,"WILAYAH PERSEKUTUAN","Kuala Lumpur","NIL","NIL","N/A","N/A","N/A","N/A",null,null,null,"N/A"]
["CSFBBRS1XXX","CSFB BRASIL","03-2166 2636","03-2166 2636","Riskk","Riskk",50050,"WILAYAH PERSEKUTUAN","Kuala Lumpur","NIL","NIL","CSFBBRS1XXX","N/A","N/A","N/A",null,null,null,"N/A"]
["CSFBRA","CSFB (BRASIL)","03-2166 2636","03-2166 2636","Riskk","Riskk",50050,"WILAYAH PERSEKUTUAN","Kuala Lumpur","NIL","NIL","N/A","N/A","N/A","N/A",null,null,null,"N/A"]
["CSV","CITICORP SECURITIES","03-2166 2636","03-2166 2636","Riskk","Riskk",50050,"WILAYAH PERSEKUTUAN","Kuala Lumpur","NIL","NIL","N/A","N/A","N/A","N/A",null,null,null,"N/A"]
["CTD","CITADEL","03-2166 2636","03-2166 2636","Riskk","Riskk",50050,"WILAYAH PERSEKUTUAN","Kuala Lumpur","NIL","NIL","N/A","N/A","N/A","N/A",null,null,null,"N/A"]
["CTR","CENTRAL TANSHI","03-2166 2636","03-2166 2636","Riskk","Riskk",50050,"WILAYAH PERSEKUTUAN","Kuala Lumpur","NIL","NIL","N/A","N/A","N/A","N/A",null,null,null,"N/A"]
["CTS","CHIN TUNG SECURITIES CO.","03-2166 2636","03-2166 2636","Riskk","Riskk",50050,"WILAYAH PERSEKUTUAN","Kuala Lumpur","NIL","NIL","N/A","N/A","N/A","N/A",null,null,null,"N/A"]
["CTT","CITITRUST AND BANKING COR","03-2166 2636","03-2166 2636","Riskk","Riskk",50050,"WILAYAH PERSEKUTUAN","Kuala Lumpur","NIL","NIL","N/A","N/A","N/A","N/A",null,null,null,"N/A"]
["CTZ","CITIZENS CAPITAL MARKETS","03-2166 2636","03-2166 2636","Riskk","Riskk",50050,"WILAYAH PERSEKUTUAN","Kuala Lumpur","NIL","NIL","N/A","N/A","N/A","N/A",null,null,null,"N/A"]
["CUC","CUTTONE & CO.","03-2166 2636","03-2166 2636","Riskk","Riskk",50050,"WILAYAH PERSEKUTUAN","Kuala Lumpur","NIL","NIL","N/A","N/A","N/A","N/A",null,null,null,"N/A"]
["CVL","CRESVALA INTERNATIONAL LT","03-2166 2636","03-2166 2636","Riskk","Riskk",50050,"WILAYAH PERSEKUTUAN","Kuala Lumpur","NIL","NIL","N/A","N/A","N/A","N/A",null,null,null,"N/A"]
["CWB","COMMONWEALTH BANK","03-2166 2636","03-2166 2636","Riskk","Riskk",50050,"WILAYAH PERSEKUTUAN","Kuala Lumpur","NIL","NIL","N/A","N/A","N/A","N/A",null,null,null,"N/A"]
["CWK","CHESWICK SECURITIES INC.","03-2166 2636","03-2166 2636","Riskk","Riskk",50050,"WILAYAH PERSEKUTUAN","Kuala Lumpur","NIL","NIL","N/A","N/A","N/A","N/A",null,null,null,"N/A"]
["CWM","CIBC WORLD MARKETS","03-2166 2636","03-2166 2636","Riskk","Riskk",50050,"WILAYAH PERSEKUTUAN","Kuala Lumpur","NIL","NIL","N/A","N/A","N/A","N/A",null,null,null,"N/A"]
["CWS","COMMONWEALTH SECURITIES","03-2166 2636","03-2166 2636","Riskk","Riskk",50050,"WILAYAH PERSEKUTUAN","Kuala Lumpur","NIL","NIL","N/A","N/A","N/A","N/A",null,null,null,"N/A"]
["CY","CYPRESS SECURITIES GROUP","03-2166 2636","03-2166 2636","Riskk","Riskk",50050,"WILAYAH PERSEKUTUAN","Kuala Lumpur","NIL","NIL","N/A","N/A","N/A","N/A",null,null,null,"N/A"]
["CZI","CAZENOVE INC.","03-2166 2636","03-2166 2636","Riskk","Riskk",50050,"WILAYAH PERSEKUTUAN","Kuala Lumpur","NIL","NIL","N/A","N/A","N/A","N/A",null,null,null,"N/A"]
["DA","DAI-ICHI EUROPE LTD.","03-2166 2636","03-2166 2636","Riskk","Riskk",50050,"WILAYAH PERSEKUTUAN","Kuala Lumpur","NIL","NIL","N/A","N/A","N/A","N/A",null,null,null,"N/A"]
["DAA","DEUTSCHE APOTHEKER UND AERZ","03-2166 2636","03-2166 2636","Riskk","Riskk",50050,"WILAYAH PERSEKUTUAN","Kuala Lumpur","NIL","NIL","N/A","N/A","N/A","N/A",null,null,null,"N/A"]
["DAB","RISONA BANK","03-2166 2636","03-2166 2636","Riskk","Riskk",50050,"WILAYAH PERSEKUTUAN","Kuala Lumpur","NIL","NIL","N/A","N/A","N/A","N/A",null,null,null,"N/A"]
["DAD","D.A. DAVIDSON","03-2166 2636","03-2166 2636","Riskk","Riskk",50050,"WILAYAH PERSEKUTUAN","Kuala Lumpur","NIL","NIL","N/A","N/A","N/A","N/A",null,null,null,"N/A"]
["DAE","DAEWOO","03-2166 2636","03-2166 2636","Riskk","Riskk",50050,"WILAYAH PERSEKUTUAN","Kuala Lumpur","NIL","NIL","N/A","N/A","N/A","N/A",null,null,null,"N/A"]
["DAI","DAIWA SECURITIES CO. LTD.","03-2166 2636","03-2166 2636","Riskk","Riskk",50050,"WILAYAH PERSEKUTUAN","Kuala Lumpur","NIL","NIL","N/A","N/A","N/A","N/A",null,null,null,"N/A"]
["DAN","DANAREKSA SECURITIES PT","03-2166 2636","03-2166 2636","Riskk","Riskk",50050,"WILAYAH PERSEKUTUAN","Kuala Lumpur","NIL","NIL","N/A","N/A","N/A","N/A",null,null,null,"N/A"]
["DAO","DAO","03-2166 2636","03-2166 2636","Riskk","Riskk",50050,"WILAYAH PERSEKUTUAN","Kuala Lumpur","NIL","NIL","N/A","N/A","N/A","N/A",null,null,null,"N/A"]
["DB","DRESDNER BANK","03-2166 2636","03-2166 2636","Riskk","Riskk",50050,"WILAYAH PERSEKUTUAN","Kuala Lumpur","NIL","NIL","N/A","N/A","N/A","N/A",null,null,null,"N/A"]
["DBA","DNB BANK ASA","03-2166 2636","03-2166 2636","Riskk","Riskk",50050,"WILAYAH PERSEKUTUAN","Kuala Lumpur","NIL","NIL","N/A","N/A","N/A","N/A",null,null,null,"N/A"]
["DBB","DBS BANK","03-2166 2636","03-2166 2636","Riskk","Riskk",50050,"WILAYAH PERSEKUTUAN","Kuala Lumpur","NIL","NIL","N/A","N/A","N/A","N/A",null,null,null,"N/A"]
["DBC","DEUTSCHE SECURITIES","03-2166 2636","03-2166 2636","Riskk","Riskk",50050,"WILAYAH PERSEKUTUAN","Kuala Lumpur","NIL","NIL","N/A","N/A","N/A","N/A",null,null,null,"N/A"]
["DBD","DEUTSCHE BANK AG","03-2166 2636","03-2166 2636","Riskk","Riskk",50050,"WILAYAH PERSEKUTUAN","Kuala Lumpur","NIL","NIL","N/A","N/A","N/A","N/A",null,null,null,"N/A"]
["DBL","DREXEL BURNHAM LAMBERT","03-2166 2636","03-2166 2636","Riskk","Riskk",50050,"WILAYAH PERSEKUTUAN","Kuala Lumpur","NIL","NIL","N/A","N/A","N/A","N/A",null,null,null,"N/A"]
["DBS","DBS VICKERS","03-2166 2636","03-2166 2636","Riskk","Riskk",50050,"WILAYAH PERSEKUTUAN","Kuala Lumpur","NIL","NIL","N/A","N/A","N/A","N/A",null,null,null,"N/A"]
["DBT","DEUTSCHE BANK TRUST COMPANY","03-2166 2636","03-2166 2636","Riskk","Riskk",50050,"WILAYAH PERSEKUTUAN","Kuala Lumpur","NIL","NIL","N/A","N/A","N/A","N/A",null,null,null,"N/A"]
["DCA","D.CARNEGIE & CO AB","03-2166 2636","03-2166 2636","Riskk","Riskk",50050,"WILAYAH PERSEKUTUAN","Kuala Lumpur","NIL","NIL","N/A","N/A","N/A","N/A",null,null,null,"N/A"]
["DCI","DONALDSON & CO INC","03-2166 2636","03-2166 2636","Riskk","Riskk",50050,"WILAYAH PERSEKUTUAN","Kuala Lumpur","NIL","NIL","N/A","N/A","N/A","N/A",null,null,null,"N/A"]
["DCM","DRAGON CAPITAL MARKETS","03-2166 2636","03-2166 2636","Riskk","Riskk",50050,"WILAYAH PERSEKUTUAN","Kuala Lumpur","NIL","NIL","N/A","N/A","N/A","N/A",null,null,null,"N/A"]
["DCW","DAKYO COSTIGAN & WELPTON","03-2166 2636","03-2166 2636","Riskk","Riskk",50050,"WILAYAH PERSEKUTUAN","Kuala Lumpur","NIL","NIL","N/A","N/A","N/A","N/A",null,null,null,"N/A"]
["DD","DUCATEL DUVAL SA","03-2166 2636","03-2166 2636","Riskk","Riskk",50050,"WILAYAH PERSEKUTUAN","Kuala Lumpur","NIL","NIL","N/A","N/A","N/A","N/A",null,null,null,"N/A"]
["DDS","DEN DANSKE SEC.","03-2166 2636","03-2166 2636","Riskk","Riskk",50050,"WILAYAH PERSEKUTUAN","Kuala Lumpur","NIL","NIL","N/A","N/A","N/A","N/A",null,null,null,"N/A"]
["DEQ","DEUTSCHE EQUITIES","03-2166 2636","03-2166 2636","Riskk","Riskk",50050,"WILAYAH PERSEKUTUAN","Kuala Lumpur","NIL","NIL","N/A","N/A","N/A","N/A",null,null,null,"N/A"]
["DES","DESJARDINS","03-2166 2636","03-2166 2636","Riskk","Riskk",50050,"WILAYAH PERSEKUTUAN","Kuala Lumpur","NIL","NIL","N/A","N/A","N/A","N/A",null,null,null,"N/A"]
["DEU","DEUTSCHE BANK","03-2166 2636","03-2166 2636","Riskk","Riskk",50050,"WILAYAH PERSEKUTUAN","Kuala Lumpur","NIL","NIL","N/A","N/A","N/A","N/A",null,null,null,"N/A"]
["DEUBNK","DEUTSCHE BANK (MALAYSIA) BERHAD",20748953,"03-20709387","Ms.Amalina / Mr. Abdullah Tahir","8th,Menara Maybank, 100 Jln Tun Perak,",50050,"WILAYAH PERSEKUTUAN","Kuala Lumpur","abdullah.tahir@maybank.com.my","NIL","N/A","N/A","N/A","N/A",null,null,null,"N/A"]
["DEUE","DEUTSCHE EQUITIES PVT LT","03-2166 2636","03-2166 2636","Riskk","Riskk",50050,"WILAYAH PERSEKUTUAN","Kuala Lumpur","NIL","NIL","N/A","N/A","N/A","N/A",null,null,null,"N/A"]
["DEUT","DEUTSCHE TRUSTEES MALAYSIA BERHAD",20748953,"+603 2053 7526","Lai Ching / Hema","8th,Menara Maybank, 100 Jln Tun Perak,",50050,"WILAYAH PERSEKUTUAN","Kuala Lumpur","cisops.dtmb@db.com & dbkl.dfsnomura@db.com","NIL","DEUTMYKLXXX","N/A","N/A","N/A",null,null,null,"N/A"]
["DG","DG SECUR0TIES","03-2166 2636","03-2166 2636","Riskk","Riskk",50050,"WILAYAH PERSEKUTUAN","Kuala Lumpur","NIL","NIL","N/A","N/A","N/A","N/A",null,null,null,"N/A"]
["DGS","DONGSUH SECURITIES CO.,LT","03-2166 2636","03-2166 2636","Riskk","Riskk",50050,"WILAYAH PERSEKUTUAN","Kuala Lumpur","NIL","NIL","N/A","N/A","N/A","N/A",null,null,null,"N/A"]
["DIA","DIRECT ACCESS BROKERAGE SVC","03-2166 2636","03-2166 2636","Riskk","Riskk",50050,"WILAYAH PERSEKUTUAN","Kuala Lumpur","NIL","NIL","N/A","N/A","N/A","N/A",null,null,null,"N/A"]
["DIE","ERSTE OESTER","03-2166 2636","03-2166 2636","Riskk","Riskk",50050,"WILAYAH PERSEKUTUAN","Kuala Lumpur","NIL","NIL","N/A","N/A","N/A","N/A",null,null,null,"N/A"]
["DIF","DIF MANAGEMENT B.V.","03-2166 2636","03-2166 2636","Riskk","Riskk",50050,"WILAYAH PERSEKUTUAN","Kuala Lumpur","NIL","NIL","N/A","N/A","N/A","N/A",null,null,null,"N/A"]
["DIM","DAIMAN SEC","03-2166 2636","03-2166 2636","Riskk","Riskk",50050,"WILAYAH PERSEKUTUAN","Kuala Lumpur","NIL","NIL","N/A","N/A","N/A","N/A",null,null,null,"N/A"]
["DIS","DAISEI SEC","03-2166 2636","03-2166 2636","Riskk","Riskk",50050,"WILAYAH PERSEKUTUAN","Kuala Lumpur","NIL","NIL","N/A","N/A","N/A","N/A",null,null,null,"N/A"]
["DK","DUFOUR-KERVERN ET CIE","03-2166 2636","03-2166 2636","Riskk","Riskk",50050,"WILAYAH PERSEKUTUAN","Kuala Lumpur","NIL","NIL","N/A","N/A","N/A","N/A",null,null,null,"N/A"]
["DLJ","DONALDSON, LUFKIN, JENRET","03-2166 2636","03-2166 2636","Riskk","Riskk",50050,"WILAYAH PERSEKUTUAN","Kuala Lumpur","NIL","NIL","N/A","N/A","N/A","N/A",null,null,null,"N/A"]
["DMX","D2MX PTY LTD","03-2166 2636","03-2166 2636","Riskk","Riskk",50050,"WILAYAH PERSEKUTUAN","Kuala Lumpur","NIL","NIL","N/A","N/A","N/A","N/A",null,null,null,"N/A"]
["DNB","DEN NORSKE BANK","03-2166 2636","03-2166 2636","Riskk","Riskk",50050,"WILAYAH PERSEKUTUAN","Kuala Lumpur","NIL","NIL","N/A","N/A","N/A","N/A",null,null,null,"N/A"]
["DP","DONGBANG PEREGRINE SECURI","03-2166 2636","03-2166 2636","Riskk","Riskk",50050,"WILAYAH PERSEKUTUAN","Kuala Lumpur","NIL","NIL","N/A","N/A","N/A","N/A",null,null,null,"N/A"]
["DRB","DRESDNER BANK FRANKFURT","03-2166 2636","03-2166 2636","Riskk","Riskk",50050,"WILAYAH PERSEKUTUAN","Kuala Lumpur","NIL","NIL","N/A","N/A","N/A","N/A",null,null,null,"N/A"]
["DRL","DILLON READ LTD.","03-2166 2636","03-2166 2636","Riskk","Riskk",50050,"WILAYAH PERSEKUTUAN","Kuala Lumpur","NIL","NIL","N/A","N/A","N/A","N/A",null,null,null,"N/A"]
["DS","DAIWA SECURITIES AMERICA","03-2166 2636","03-2166 2636","Riskk","Riskk",50050,"WILAYAH PERSEKUTUAN","Kuala Lumpur","NIL","NIL","N/A","N/A","N/A","N/A",null,null,null,"N/A"]
["DSK","DANSKE BANK","03-2166 2636","03-2166 2636","Riskk","Riskk",50050,"WILAYAH PERSEKUTUAN","Kuala Lumpur","NIL","NIL","N/A","N/A","N/A","N/A",null,null,null,"N/A"]
["DSN","DAISHIN SECURITIES CO.LTD","03-2166 2636","03-2166 2636","Riskk","Riskk",50050,"WILAYAH PERSEKUTUAN","Kuala Lumpur","NIL","NIL","N/A","N/A","N/A","N/A",null,null,null,"N/A"]
["DSP","DSP MERRILL LYNCH LIMITED","03-2166 2636","03-2166 2636","Riskk","Riskk",50050,"WILAYAH PERSEKUTUAN","Kuala Lumpur","NIL","NIL","N/A","N/A","N/A","N/A",null,null,null,"N/A"]
["DUMMY","DUMMY","03-2166 2636","03-2166 2636","Riskk","Riskk",50050,"WILAYAH PERSEKUTUAN","Kuala Lumpur","NIL","NIL","N/A","N/A","N/A","N/A",null,null,null,"N/A"]
["DUN","DUNDEE SECURITIES LTD","03-2166 2636","03-2166 2636","Riskk","Riskk",50050,"WILAYAH PERSEKUTUAN","Kuala Lumpur","NIL","NIL","N/A","N/A","N/A","N/A",null,null,null,"N/A"]
["DVY","DAVY STOCKBROKERS","03-2166 2636","03-2166 2636","Riskk","Riskk",50050,"WILAYAH PERSEKUTUAN","Kuala Lumpur","NIL","NIL","N/A","N/A","N/A","N/A",null,null,null,"N/A"]
["DWR","DEAN WITTER REYNOLDS, INC","03-2166 2636","03-2166 2636","Riskk","Riskk",50050,"WILAYAH PERSEKUTUAN","Kuala Lumpur","NIL","NIL","N/A","N/A","N/A","N/A",null,null,null,"N/A"]
["DWS","DONGWON SECURITIES","03-2166 2636","03-2166 2636","Riskk","Riskk",50050,"WILAYAH PERSEKUTUAN","Kuala Lumpur","NIL","NIL","N/A","N/A","N/A","N/A",null,null,null,"N/A"]
["DXB","DEXIA BANK","03-2166 2636","03-2166 2636","Riskk","Riskk",50050,"WILAYAH PERSEKUTUAN","Kuala Lumpur","NIL","NIL","N/A","N/A","N/A","N/A",null,null,null,"N/A"]
["EBP","EXANE BNP PARIBAS","03-2166 2636","03-2166 2636","Riskk","Riskk",50050,"WILAYAH PERSEKUTUAN","Kuala Lumpur","NIL","NIL","N/A","N/A","N/A","N/A",null,null,null,"N/A"]
["ECI","EVER CAPITAL INVESTMENTS","03-2166 2636","03-2166 2636","Riskk","Riskk",50050,"WILAYAH PERSEKUTUAN","Kuala Lumpur","NIL","NIL","N/A","N/A","N/A","N/A",null,null,null,"N/A"]
["ECM","ECM LIBRA","03-2166 2636","03-2166 2636","Riskk","Riskk",50050,"WILAYAH PERSEKUTUAN","Kuala Lumpur","NIL","NIL","N/A","N/A","N/A","N/A",null,null,null,"N/A"]
["EDE","EDELWEISS CAPITAL LTD","03-2166 2636","03-2166 2636","Riskk","Riskk",50050,"WILAYAH PERSEKUTUAN","Kuala Lumpur","NIL","NIL","N/A","N/A","N/A","N/A",null,null,null,"N/A"]
["EDEL","EDELWEISS CAPITAL LTD","03-2166 2636","03-2166 2636","Riskk","Riskk",50050,"WILAYAH PERSEKUTUAN","Kuala Lumpur","NIL","NIL","N/A","N/A","N/A","N/A",null,null,null,"N/A"]
["EDF","ED&F MAN CAPITAL MARKETS","03-2166 2636","03-2166 2636","Riskk","Riskk",50050,"WILAYAH PERSEKUTUAN","Kuala Lumpur","NIL","NIL","N/A","N/A","N/A","N/A",null,null,null,"N/A"]
["EF","EBERSTADT FLEMING","03-2166 2636","03-2166 2636","Riskk","Riskk",50050,"WILAYAH PERSEKUTUAN","Kuala Lumpur","NIL","NIL","N/A","N/A","N/A","N/A",null,null,null,"N/A"]
["EFG","EFG SECURITIES","03-2166 2636","03-2166 2636","Riskk","Riskk",50050,"WILAYAH PERSEKUTUAN","Kuala Lumpur","NIL","NIL","N/A","N/A","N/A","N/A",null,null,null,"N/A"]
["EGT","EPPLER, GUERIN & TURNER","03-2166 2636","03-2166 2636","Riskk","Riskk",50050,"WILAYAH PERSEKUTUAN","Kuala Lumpur","NIL","NIL","N/A","N/A","N/A","N/A",null,null,null,"N/A"]
["EKN","EKN","03-2166 2636","03-2166 2636","Riskk","Riskk",50050,"WILAYAH PERSEKUTUAN","Kuala Lumpur","NIL","NIL","N/A","N/A","N/A","N/A",null,null,null,"N/A"]
["ENA","ENAM SECURITIES PVT LTD","03-2166 2636","03-2166 2636","Riskk","Riskk",50050,"WILAYAH PERSEKUTUAN","Kuala Lumpur","NIL","NIL","N/A","N/A","N/A","N/A",null,null,null,"N/A"]
["ENL","EXECUTION NOBLE LIMITED","03-2166 2636","03-2166 2636","Riskk","Riskk",50050,"WILAYAH PERSEKUTUAN","Kuala Lumpur","NIL","NIL","N/A","N/A","N/A","N/A",null,null,null,"N/A"]
["EQT","EQUITA SIM S.P.A.","03-2166 2636","03-2166 2636","Riskk","Riskk",50050,"WILAYAH PERSEKUTUAN","Kuala Lumpur","NIL","NIL","N/A","N/A","N/A","N/A",null,null,null,"N/A"]
["ESP","ESPOSITO SECURITIES LLC","03-2166 2636","03-2166 2636","Riskk","Riskk",50050,"WILAYAH PERSEKUTUAN","Kuala Lumpur","NIL","NIL","N/A","N/A","N/A","N/A",null,null,null,"N/A"]
["ESS","ESPIRITO SANTOS","03-2166 2636","03-2166 2636","Riskk","Riskk",50050,"WILAYAH PERSEKUTUAN","Kuala Lumpur","NIL","NIL","N/A","N/A","N/A","N/A",null,null,null,"N/A"]
["ETS","ETS","03-2166 2636","03-2166 2636","Riskk","Riskk",50050,"WILAYAH PERSEKUTUAN","Kuala Lumpur","NIL","NIL","N/A","N/A","N/A","N/A",null,null,null,"N/A"]
["EUZ","EUROZ SECURITIES LIMITED","03-2166 2636","03-2166 2636","Riskk","Riskk",50050,"WILAYAH PERSEKUTUAN","Kuala Lumpur","NIL","NIL","N/A","N/A","N/A","N/A",null,null,null,"N/A"]
["EVA","EVANS AND PARTNERS PTY LTD","03-2166 2636","03-2166 2636","Riskk","Riskk",50050,"WILAYAH PERSEKUTUAN","Kuala Lumpur","NIL","NIL","N/A","N/A","N/A","N/A",null,null,null,"N/A"]
["EVC","EVERCORE GROUP LLC","03-2166 2636","03-2166 2636","Riskk","Riskk",50050,"WILAYAH PERSEKUTUAN","Kuala Lumpur","NIL","NIL","N/A","N/A","N/A","N/A",null,null,null,"N/A"]
["EVS","EVLI SECURITIES","03-2166 2636","03-2166 2636","Riskk","Riskk",50050,"WILAYAH PERSEKUTUAN","Kuala Lumpur","NIL","NIL","N/A","N/A","N/A","N/A",null,null,null,"N/A"]
["EXA","EXANE SA","03-2166 2636","03-2166 2636","Riskk","Riskk",50050,"WILAYAH PERSEKUTUAN","Kuala Lumpur","NIL","NIL","N/A","N/A","N/A","N/A",null,null,null,"N/A"]
["EXO","EXOTIX PARTNERS LLP","03-2166 2636","03-2166 2636","Riskk","Riskk",50050,"WILAYAH PERSEKUTUAN","Kuala Lumpur","NIL","NIL","N/A","N/A","N/A","N/A",null,null,null,"N/A"]
["FA","FIRST AUSTRIA","03-2166 2636","03-2166 2636","Riskk","Riskk",50050,"WILAYAH PERSEKUTUAN","Kuala Lumpur","NIL","NIL","N/A","N/A","N/A","N/A",null,null,null,"N/A"]
["FAN","FANO SECURITIES","03-2166 2636","03-2166 2636","Riskk","Riskk",50050,"WILAYAH PERSEKUTUAN","Kuala Lumpur","NIL","NIL","N/A","N/A","N/A","N/A",null,null,null,"N/A"]
["FBR","FRIEDMAN,BILLINGS,RAMSEY","03-2166 2636","03-2166 2636","Riskk","Riskk",50050,"WILAYAH PERSEKUTUAN","Kuala Lumpur","NIL","NIL","N/A","N/A","N/A","N/A",null,null,null,"N/A"]
["FCC","FIDELITY CLEARING CANADA","03-2166 2636","03-2166 2636","Riskk","Riskk",50050,"WILAYAH PERSEKUTUAN","Kuala Lumpur","NIL","NIL","N/A","N/A","N/A","N/A",null,null,null,"N/A"]
["FDA","FATOR DORIA ATHERINO S.A. C","03-2166 2636","03-2166 2636","Riskk","Riskk",50050,"WILAYAH PERSEKUTUAN","Kuala Lumpur","NIL","NIL","N/A","N/A","N/A","N/A",null,null,null,"N/A"]
["FDE","FIDENTIIS EQUITIES","03-2166 2636","03-2166 2636","Riskk","Riskk",50050,"WILAYAH PERSEKUTUAN","Kuala Lumpur","NIL","NIL","N/A","N/A","N/A","N/A",null,null,null,"N/A"]
["FGI","FG INVERSIONES BRUSATILES","03-2166 2636","03-2166 2636","Riskk","Riskk",50050,"WILAYAH PERSEKUTUAN","Kuala Lumpur","NIL","NIL","N/A","N/A","N/A","N/A",null,null,null,"N/A"]
["FIB","FIBA NORDIC SECS","03-2166 2636","03-2166 2636","Riskk","Riskk",50050,"WILAYAH PERSEKUTUAN","Kuala Lumpur","NIL","NIL","N/A","N/A","N/A","N/A",null,null,null,"N/A"]
["FID","FIDELITY INVESTMENTS","03-2166 2636","03-2166 2636","Riskk","Riskk",50050,"WILAYAH PERSEKUTUAN","Kuala Lumpur","NIL","NIL","N/A","N/A","N/A","N/A",null,null,null,"N/A"]
["FIE","FIELDSTONE","03-2166 2636","03-2166 2636","Riskk","Riskk",50050,"WILAYAH PERSEKUTUAN","Kuala Lumpur","NIL","NIL","N/A","N/A","N/A","N/A",null,null,null,"N/A"]
["FIN","FINACORP SECURITIES","03-2166 2636","03-2166 2636","Riskk","Riskk",50050,"WILAYAH PERSEKUTUAN","Kuala Lumpur","NIL","NIL","N/A","N/A","N/A","N/A",null,null,null,"N/A"]
["FIP","FINNCAP LTD","03-2166 2636","03-2166 2636","Riskk","Riskk",50050,"WILAYAH PERSEKUTUAN","Kuala Lumpur","NIL","NIL","N/A","N/A","N/A","N/A",null,null,null,"N/A"]
["FIV","FERRI INTERNATIONAL VAN H","03-2166 2636","03-2166 2636","Riskk","Riskk",50050,"WILAYAH PERSEKUTUAN","Kuala Lumpur","NIL","NIL","N/A","N/A","N/A","N/A",null,null,null,"N/A"]
["FKA","THE BANK OF FUKUOKA","03-2166 2636","03-2166 2636","Riskk","Riskk",50050,"WILAYAH PERSEKUTUAN","Kuala Lumpur","NIL","NIL","N/A","N/A","N/A","N/A",null,null,null,"N/A"]
["FLO","FLOW TRADERS","03-2166 2636","03-2166 2636","Riskk","Riskk",50050,"WILAYAH PERSEKUTUAN","Kuala Lumpur","NIL","NIL","N/A","N/A","N/A","N/A",null,null,null,"N/A"]
["FMC","FIRST MANHATTAN CO.","03-2166 2636","03-2166 2636","Riskk","Riskk",50050,"WILAYAH PERSEKUTUAN","Kuala Lumpur","NIL","NIL","N/A","N/A","N/A","N/A",null,null,null,"N/A"]
["FNI","FINANCIAL NETWORK INVESTMEN","03-2166 2636","03-2166 2636","Riskk","Riskk",50050,"WILAYAH PERSEKUTUAN","Kuala Lumpur","NIL","NIL","N/A","N/A","N/A","N/A",null,null,null,"N/A"]
["FOR","FORSYTH BARR LIMITED","03-2166 2636","03-2166 2636","Riskk","Riskk",50050,"WILAYAH PERSEKUTUAN","Kuala Lumpur","NIL","NIL","N/A","N/A","N/A","N/A",null,null,null,"N/A"]
["FORLUX","FORTIS BANK LUXEMBOURG","03-2166 2636","03-2166 2636","Riskk","Riskk",50050,"WILAYAH PERSEKUTUAN","Kuala Lumpur","NIL","NIL","N/A","N/A","N/A","N/A",null,null,null,"N/A"]
["FPK","FOA PITT KELTON INC","03-2166 2636","03-2166 2636","Riskk","Riskk",50050,"WILAYAH PERSEKUTUAN","Kuala Lumpur","NIL","NIL","N/A","N/A","N/A","N/A",null,null,null,"N/A"]
["FR","FRANCE BBL","03-2166 2636","03-2166 2636","Riskk","Riskk",50050,"WILAYAH PERSEKUTUAN","Kuala Lumpur","NIL","NIL","N/A","N/A","N/A","N/A",null,null,null,"N/A"]
["FRA","FRASER SECURITIES PTE LTD","03-2166 2636","03-2166 2636","Riskk","Riskk",50050,"WILAYAH PERSEKUTUAN","Kuala Lumpur","NIL","NIL","N/A","N/A","N/A","N/A",null,null,null,"N/A"]
["FRB","FORTIS BANK","03-2166 2636","03-2166 2636","Riskk","Riskk",50050,"WILAYAH PERSEKUTUAN","Kuala Lumpur","NIL","NIL","N/A","N/A","N/A","N/A",null,null,null,"N/A"]
["FRC","FBR","03-2166 2636","03-2166 2636","Riskk","Riskk",50050,"WILAYAH PERSEKUTUAN","Kuala Lumpur","NIL","NIL","N/A","N/A","N/A","N/A",null,null,null,"N/A"]
["FRS","FRUNK RUSSELL SECURITIES,","03-2166 2636","03-2166 2636","Riskk","Riskk",50050,"WILAYAH PERSEKUTUAN","Kuala Lumpur","NIL","NIL","N/A","N/A","N/A","N/A",null,null,null,"N/A"]
["FSC","FIRST SOUTHWEST COMPANY","03-2166 2636","03-2166 2636","Riskk","Riskk",50050,"WILAYAH PERSEKUTUAN","Kuala Lumpur","NIL","NIL","N/A","N/A","N/A","N/A",null,null,null,"N/A"]
["FSM","FURMAN SELZ MAGER DIETZ B","03-2166 2636","03-2166 2636","Riskk","Riskk",50050,"WILAYAH PERSEKUTUAN","Kuala Lumpur","NIL","NIL","N/A","N/A","N/A","N/A",null,null,null,"N/A"]
["FST","FIRST SECURITIES","03-2166 2636","03-2166 2636","Riskk","Riskk",50050,"WILAYAH PERSEKUTUAN","Kuala Lumpur","NIL","NIL","N/A","N/A","N/A","N/A",null,null,null,"N/A"]
["FTB","FIRST TENNESSEE BANK","03-2166 2636","03-2166 2636","Riskk","Riskk",50050,"WILAYAH PERSEKUTUAN","Kuala Lumpur","NIL","NIL","N/A","N/A","N/A","N/A",null,null,null,"N/A"]
["FTN","FTN FINANCIAL CM","03-2166 2636","03-2166 2636","Riskk","Riskk",50050,"WILAYAH PERSEKUTUAN","Kuala Lumpur","NIL","NIL","N/A","N/A","N/A","N/A",null,null,null,"N/A"]
["FTS","FIFTH THIRD SECURITIES INC","03-2166 2636","03-2166 2636","Riskk","Riskk",50050,"WILAYAH PERSEKUTUAN","Kuala Lumpur","NIL","NIL","N/A","N/A","N/A","N/A",null,null,null,"N/A"]
["FU","WACHOVIA SECURITIES INC","03-2166 2636","03-2166 2636","Riskk","Riskk",50050,"WILAYAH PERSEKUTUAN","Kuala Lumpur","NIL","NIL","N/A","N/A","N/A","N/A",null,null,null,"N/A"]
["FUB","FUBON SECURITIES","03-2166 2636","03-2166 2636","Riskk","Riskk",50050,"WILAYAH PERSEKUTUAN","Kuala Lumpur","NIL","NIL","N/A","N/A","N/A","N/A",null,null,null,"N/A"]
["FUC","FIRST UNION CAPITAL MARKET","03-2166 2636","03-2166 2636","Riskk","Riskk",50050,"WILAYAH PERSEKUTUAN","Kuala Lumpur","NIL","NIL","N/A","N/A","N/A","N/A",null,null,null,"N/A"]
["FUK","FUKUYAMA SEC","03-2166 2636","03-2166 2636","Riskk","Riskk",50050,"WILAYAH PERSEKUTUAN","Kuala Lumpur","NIL","NIL","N/A","N/A","N/A","N/A",null,null,null,"N/A"]
["GAM","GAM FUND MANAGEMENT LIMITED","03-2166 2636","03-2166 2636","Riskk","Riskk",50050,"WILAYAH PERSEKUTUAN","Kuala Lumpur","NIL","NIL","N/A","N/A","N/A","N/A",null,null,null,"N/A"]
["GBS","GOODBODY STOCK BROKERS","03-2166 2636","03-2166 2636","Riskk","Riskk",50050,"WILAYAH PERSEKUTUAN","Kuala Lumpur","NIL","NIL","N/A","N/A","N/A","N/A",null,null,null,"N/A"]
["GCI","THE GRISWOLD COMPANY INC","03-2166 2636","03-2166 2636","Riskk","Riskk",50050,"WILAYAH PERSEKUTUAN","Kuala Lumpur","NIL","NIL","N/A","N/A","N/A","N/A",null,null,null,"N/A"]
["GCM","GREENWICH CAPITAL","03-2166 2636","03-2166 2636","Riskk","Riskk",50050,"WILAYAH PERSEKUTUAN","Kuala Lumpur","NIL","NIL","N/A","N/A","N/A","N/A",null,null,null,"N/A"]
["GEL","GARBAN EQUITIES","03-2166 2636","03-2166 2636","Riskk","Riskk",50050,"WILAYAH PERSEKUTUAN","Kuala Lumpur","NIL","NIL","N/A","N/A","N/A","N/A",null,null,null,"N/A"]
["GEM","GEMINA","03-2166 2636","03-2166 2636","Riskk","Riskk",50050,"WILAYAH PERSEKUTUAN","Kuala Lumpur","NIL","NIL","N/A","N/A","N/A","N/A",null,null,null,"N/A"]
["GEN","CANACCORD GENUITY","03-2166 2636","03-2166 2636","Riskk","Riskk",50050,"WILAYAH PERSEKUTUAN","Kuala Lumpur","NIL","NIL","N/A","N/A","N/A","N/A",null,null,null,"N/A"]
["GFI","GFI GROUP INC","03-2166 2636","03-2166 2636","Riskk","Riskk",50050,"WILAYAH PERSEKUTUAN","Kuala Lumpur","NIL","NIL","N/A","N/A","N/A","N/A",null,null,null,"N/A"]
["GGE","GIROZENTRALE GILBERT ELIO","03-2166 2636","03-2166 2636","Riskk","Riskk",50050,"WILAYAH PERSEKUTUAN","Kuala Lumpur","NIL","NIL","N/A","N/A","N/A","N/A",null,null,null,"N/A"]
["GGG","GUGGENHEIM CAPITAL MARKETS","03-2166 2636","03-2166 2636","Riskk","Riskk",50050,"WILAYAH PERSEKUTUAN","Kuala Lumpur","NIL","NIL","N/A","N/A","N/A","N/A",null,null,null,"N/A"]
["GGS","GK GOH SECURITES LTD","03-2166 2636","03-2166 2636","Riskk","Riskk",50050,"WILAYAH PERSEKUTUAN","Kuala Lumpur","NIL","NIL","N/A","N/A","N/A","N/A",null,null,null,"N/A"]
["GHS","GLOBAL HUNTER SECURITIES","03-2166 2636","03-2166 2636","Riskk","Riskk",50050,"WILAYAH PERSEKUTUAN","Kuala Lumpur","NIL","NIL","N/A","N/A","N/A","N/A",null,null,null,"N/A"]
["GIF","GIFU BANK","03-2166 2636","03-2166 2636","Riskk","Riskk",50050,"WILAYAH PERSEKUTUAN","Kuala Lumpur","NIL","NIL","N/A","N/A","N/A","N/A",null,null,null,"N/A"]
["GK","<OLD> CIMB-GK (HK)","03-2166 2636","03-2166 2636","Riskk","Riskk",50050,"WILAYAH PERSEKUTUAN","Kuala Lumpur","NIL","NIL","N/A","N/A","N/A","N/A",null,null,null,"N/A"]
["GKM","GERARD KLAUER MATTISON &","03-2166 2636","03-2166 2636","Riskk","Riskk",50050,"WILAYAH PERSEKUTUAN","Kuala Lumpur","NIL","NIL","N/A","N/A","N/A","N/A",null,null,null,"N/A"]
["GLC","GLEACHER ＆ COMPANY","03-2166 2636","03-2166 2636","Riskk","Riskk",50050,"WILAYAH PERSEKUTUAN","Kuala Lumpur","NIL","NIL","N/A","N/A","N/A","N/A",null,null,null,"N/A"]
["GM","GUINNESS MAHON","03-2166 2636","03-2166 2636","Riskk","Riskk",50050,"WILAYAH PERSEKUTUAN","Kuala Lumpur","NIL","NIL","N/A","N/A","N/A","N/A",null,null,null,"N/A"]
["GMP","GMP SECURITIES LLC","03-2166 2636","03-2166 2636","Riskk","Riskk",50050,"WILAYAH PERSEKUTUAN","Kuala Lumpur","NIL","NIL","N/A","N/A","N/A","N/A",null,null,null,"N/A"]
["GN","GERRARD AND NATIONAL SECURI","03-2166 2636","03-2166 2636","Riskk","Riskk",50050,"WILAYAH PERSEKUTUAN","Kuala Lumpur","NIL","NIL","N/A","N/A","N/A","N/A",null,null,null,"N/A"]
["GNA","GENA SECURITIES","03-2166 2636","03-2166 2636","Riskk","Riskk",50050,"WILAYAH PERSEKUTUAN","Kuala Lumpur","NIL","NIL","N/A","N/A","N/A","N/A",null,null,null,"N/A"]
["GNG","GREENWICH NATWEST GILTS","03-2166 2636","03-2166 2636","Riskk","Riskk",50050,"WILAYAH PERSEKUTUAN","Kuala Lumpur","NIL","NIL","N/A","N/A","N/A","N/A",null,null,null,"N/A"]
["GOG","GOLUB OFFSHORE GP LTD","03-2166 2636","03-2166 2636","Riskk","Riskk",50050,"WILAYAH PERSEKUTUAN","Kuala Lumpur","NIL","NIL","N/A","N/A","N/A","N/A",null,null,null,"N/A"]
["GP","GREAT PACIFIC","03-2166 2636","03-2166 2636","Riskk","Riskk",50050,"WILAYAH PERSEKUTUAN","Kuala Lumpur","NIL","NIL","N/A","N/A","N/A","N/A",null,null,null,"N/A"]
["GPM","GRUPO MONEDA, S.A.DE C.V.","03-2166 2636","03-2166 2636","Riskk","Riskk",50050,"WILAYAH PERSEKUTUAN","Kuala Lumpur","NIL","NIL","N/A","N/A","N/A","N/A",null,null,null,"N/A"]
["GRF","GRIFFIN,KUBIK,ETC. INC","03-2166 2636","03-2166 2636","Riskk","Riskk",50050,"WILAYAH PERSEKUTUAN","Kuala Lumpur","NIL","NIL","N/A","N/A","N/A","N/A",null,null,null,"N/A"]
["GRM","GREENWELL MONTAGU","03-2166 2636","03-2166 2636","Riskk","Riskk",50050,"WILAYAH PERSEKUTUAN","Kuala Lumpur","NIL","NIL","N/A","N/A","N/A","N/A",null,null,null,"N/A"]
["GS","GOLDMAN SACHS","03-2166 2636","03-2166 2636","Riskk","Riskk",50050,"WILAYAH PERSEKUTUAN","Kuala Lumpur","NIL","NIL","N/A","N/A","N/A","N/A",null,null,null,"N/A"]
["GSA","GREEN STREET TRADING","03-2166 2636","03-2166 2636","Riskk","Riskk",50050,"WILAYAH PERSEKUTUAN","Kuala Lumpur","NIL","NIL","N/A","N/A","N/A","N/A",null,null,null,"N/A"]
["GSO","GSO CAPITAL PARTNERS LP","03-2166 2636","03-2166 2636","Riskk","Riskk",50050,"WILAYAH PERSEKUTUAN","Kuala Lumpur","NIL","NIL","N/A","N/A","N/A","N/A",null,null,null,"N/A"]
["GTA","GARANTIA","03-2166 2636","03-2166 2636","Riskk","Riskk",50050,"WILAYAH PERSEKUTUAN","Kuala Lumpur","NIL","NIL","N/A","N/A","N/A","N/A",null,null,null,"N/A"]
["GTJ","GUOTAI JUNAN SECURITIES","03-2166 2636","03-2166 2636","Riskk","Riskk",50050,"WILAYAH PERSEKUTUAN","Kuala Lumpur","NIL","NIL","N/A","N/A","N/A","N/A",null,null,null,"N/A"]
["GUC","GUZMAN AND COMPANY","03-2166 2636","03-2166 2636","Riskk","Riskk",50050,"WILAYAH PERSEKUTUAN","Kuala Lumpur","NIL","NIL","N/A","N/A","N/A","N/A",null,null,null,"N/A"]
["GUG","GUGGENHEIM","03-2166 2636","03-2166 2636","Riskk","Riskk",50050,"WILAYAH PERSEKUTUAN","Kuala Lumpur","NIL","NIL","N/A","N/A","N/A","N/A",null,null,null,"N/A"]
["HAA","HAUCK & AUFHAEUSER","03-2166 2636","03-2166 2636","Riskk","Riskk",50050,"WILAYAH PERSEKUTUAN","Kuala Lumpur","NIL","NIL","N/A","N/A","N/A","N/A",null,null,null,"N/A"]
["HAB","H.ALBERT DE BARY & CO","03-2166 2636","03-2166 2636","Riskk","Riskk",50050,"WILAYAH PERSEKUTUAN","Kuala Lumpur","NIL","NIL","N/A","N/A","N/A","N/A",null,null,null,"N/A"]
["HAI","HAITONG INTERNATIONAL SEC","03-2166 2636","03-2166 2636","Riskk","Riskk",50050,"WILAYAH PERSEKUTUAN","Kuala Lumpur","NIL","NIL","N/A","N/A","N/A","N/A",null,null,null,"N/A"]
["HAL","HALL SECURITIES","03-2166 2636","03-2166 2636","Riskk","Riskk",50050,"WILAYAH PERSEKUTUAN","Kuala Lumpur","NIL","NIL","N/A","N/A","N/A","N/A",null,null,null,"N/A"]
["HAM","HAMBRO CLEARING LTD.","03-2166 2636","03-2166 2636","Riskk","Riskk",50050,"WILAYAH PERSEKUTUAN","Kuala Lumpur","NIL","NIL","N/A","N/A","N/A","N/A",null,null,null,"N/A"]
["HAN","HARRIS NESBITT CORP","03-2166 2636","03-2166 2636","Riskk","Riskk",50050,"WILAYAH PERSEKUTUAN","Kuala Lumpur","NIL","NIL","N/A","N/A","N/A","N/A",null,null,null,"N/A"]
["HAQ","HAMBRECHT & QUIST","03-2166 2636","03-2166 2636","Riskk","Riskk",50050,"WILAYAH PERSEKUTUAN","Kuala Lumpur","NIL","NIL","N/A","N/A","N/A","N/A",null,null,null,"N/A"]
["HBM","HSBC BANK MALAYSIA","03-2166 2636","603 2179 6433","Treasury Operations","Riskk",50050,"WILAYAH PERSEKUTUAN","Kuala Lumpur","NIL","NIL","N/A","N/A","N/A","N/A",null,null,null,"N/A"]
["HC","HOENIG & CO.INC","03-2166 2636","03-2166 2636","Riskk","Riskk",50050,"WILAYAH PERSEKUTUAN","Kuala Lumpur","NIL","NIL","N/A","N/A","N/A","N/A",null,null,null,"N/A"]
["HCI","HENDERSON CROSTH WAIT","03-2166 2636","03-2166 2636","Riskk","Riskk",50050,"WILAYAH PERSEKUTUAN","Kuala Lumpur","NIL","NIL","N/A","N/A","N/A","N/A",null,null,null,"N/A"]
["HCL","HARVEST CAPITAL LLC","03-2166 2636","03-2166 2636","Riskk","Riskk",50050,"WILAYAH PERSEKUTUAN","Kuala Lumpur","NIL","NIL","N/A","N/A","N/A","N/A",null,null,null,"N/A"]
["HCS","DBJ SECURITIES CO., LTD","03-2166 2636","03-2166 2636","Riskk","Riskk",50050,"WILAYAH PERSEKUTUAN","Kuala Lumpur","NIL","NIL","N/A","N/A","N/A","N/A",null,null,null,"N/A"]
["HEA","HEIGHT SECURITIES LLC","03-2166 2636","03-2166 2636","Riskk","Riskk",50050,"WILAYAH PERSEKUTUAN","Kuala Lumpur","NIL","NIL","N/A","N/A","N/A","N/A",null,null,null,"N/A"]
["HF","HELLER FINANCIAL","03-2166 2636","03-2166 2636","Riskk","Riskk",50050,"WILAYAH PERSEKUTUAN","Kuala Lumpur","NIL","NIL","N/A","N/A","N/A","N/A",null,null,null,"N/A"]
["HFS","HUNT FINANCIAL SECURITIES","03-2166 2636","03-2166 2636","Riskk","Riskk",50050,"WILAYAH PERSEKUTUAN","Kuala Lumpur","NIL","NIL","N/A","N/A","N/A","N/A",null,null,null,"N/A"]
["HG","HOARE GOVETT","03-2166 2636","03-2166 2636","Riskk","Riskk",50050,"WILAYAH PERSEKUTUAN","Kuala Lumpur","NIL","NIL","N/A","N/A","N/A","N/A",null,null,null,"N/A"]
["HGL","HSBC GREENWELL","03-2166 2636","03-2166 2636","Riskk","Riskk",50050,"WILAYAH PERSEKUTUAN","Kuala Lumpur","NIL","NIL","N/A","N/A","N/A","N/A",null,null,null,"N/A"]
["HGS","HEDGESERV","03-2166 2636","03-2166 2636","Riskk","Riskk",50050,"WILAYAH PERSEKUTUAN","Kuala Lumpur","NIL","NIL","N/A","N/A","N/A","N/A",null,null,null,"N/A"]
["HIS","HANJIN INVESTMENT & SECS","03-2166 2636","03-2166 2636","Riskk","Riskk",50050,"WILAYAH PERSEKUTUAN","Kuala Lumpur","NIL","NIL","N/A","N/A","N/A","N/A",null,null,null,"N/A"]
["HLB","HONG LEONG INVESTMENT BANK","03-2166 2636","603-20831993","HLIB-TreasuryProcessing","Riskk",50050,"WILAYAH PERSEKUTUAN","Kuala Lumpur","NIL","NIL","N/A","N/A","N/A","N/A",null,0,null,"N/A"]
["HLI","HONG LEONG ISLAMIC BANK","03-2166 2636","03-2166 2636","Riskk","Riskk",50050,"WILAYAH PERSEKUTUAN","Kuala Lumpur","NIL","NIL","N/A","N/A","N/A","N/A","Hong Leong Islamic Bank Berhad","XXX",null,"IS"]
["HND","HINODE SEC.","03-2166 2636","03-2166 2636","Riskk","Riskk",50050,"WILAYAH PERSEKUTUAN","Kuala Lumpur","NIL","NIL","N/A","N/A","N/A","N/A",null,null,null,"N/A"]
["HON","HONG LEONG BANK","03-2166 2636","03-2166 2636","Riskk","Riskk",50050,"WILAYAH PERSEKUTUAN","Kuala Lumpur","NIL","NIL","N/A","N/A","N/A","N/A","HONG LEONG BANK",null,null,"N/A"]
["HPL","HARTLEY POYNTON LIMITED","03-2166 2636","03-2166 2636","Riskk","Riskk",50050,"WILAYAH PERSEKUTUAN","Kuala Lumpur","NIL","NIL","N/A","N/A","N/A","N/A",null,null,null,"N/A"]
["HS","HANSHIN SECURITIES","03-2166 2636","03-2166 2636","Riskk","Riskk",50050,"WILAYAH PERSEKUTUAN","Kuala Lumpur","NIL","NIL","N/A","N/A","N/A","N/A",null,null,null,"N/A"]
["HSB","HSBC SECURITIES INC","03-2166 2636","03-2166 2636","Riskk","Riskk",50050,"WILAYAH PERSEKUTUAN","Kuala Lumpur","NIL","NIL","N/A","N/A","N/A","N/A",null,null,null,"N/A"]
["HSBC","HSBC SECURITIES","03-2166 2636","03-2166 2636","Riskk","Riskk",50050,"WILAYAH PERSEKUTUAN","Kuala Lumpur","NIL","NIL","N/A","N/A","N/A","N/A",null,null,null,"N/A"]
["HSBCT","HSBC (MALAYSIA) TRUSTEE BERHAD",20748953,"03-20709387","Ms.Amalina / Mr. Abdullah Tahir","8th,Menara Maybank, 100 Jln Tun Perak,",50050,"WILAYAH PERSEKUTUAN","Kuala Lumpur","abdullah.tahir@maybank.com.my","NIL","HSTMMYKLXXX","N/A","N/A","N/A",null,null,null,"N/A"]
["HSI","HILLTOP SECURITIES INC.","03-2166 2636","03-2166 2636","Riskk","Riskk",50050,"WILAYAH PERSEKUTUAN","Kuala Lumpur","NIL","NIL","N/A","N/A","N/A","N/A",null,null,null,"N/A"]
["HSK","HSBC BANK","03-2166 2636","03-2166 2636","Riskk","Riskk",50050,"WILAYAH PERSEKUTUAN","Kuala Lumpur","NIL","NIL","N/A","N/A","N/A","N/A",null,null,null,"N/A"]
["HTB","HSBC TRINKAUS & BURKHARDT A","03-2166 2636","03-2166 2636","Riskk","Riskk",50050,"WILAYAH PERSEKUTUAN","Kuala Lumpur","NIL","NIL","N/A","N/A","N/A","N/A",null,null,null,"N/A"]
["HTF","HUATAI FINANCIAL HOLDINGS","03-2166 2636","03-2166 2636","Riskk","Riskk",50050,"WILAYAH PERSEKUTUAN","Kuala Lumpur","NIL","NIL","N/A","N/A","N/A","N/A",null,null,null,"N/A"]
["HVA","HELVEA","03-2166 2636","03-2166 2636","Riskk","Riskk",50050,"WILAYAH PERSEKUTUAN","Kuala Lumpur","NIL","NIL","N/A","N/A","N/A","N/A",null,null,null,"N/A"]
["HW","HWANG-DBS SECURITIES","03-2166 2636","03-2166 2636","Riskk","Riskk",50050,"WILAYAH PERSEKUTUAN","Kuala Lumpur","NIL","NIL","N/A","N/A","N/A","N/A",null,null,null,"N/A"]
["HWA","HANWHA SECURITIES","03-2166 2636","03-2166 2636","Riskk","Riskk",50050,"WILAYAH PERSEKUTUAN","Kuala Lumpur","NIL","NIL","N/A","N/A","N/A","N/A",null,null,null,"N/A"]
["HWL","HOWARD, WEIL, LABOUSSE","03-2166 2636","03-2166 2636","Riskk","Riskk",50050,"WILAYAH PERSEKUTUAN","Kuala Lumpur","NIL","NIL","N/A","N/A","N/A","N/A",null,null,null,"N/A"]
["HYS","HYUNDAI SECURITIES CO.,LT","03-2166 2636","03-2166 2636","Riskk","Riskk",50050,"WILAYAH PERSEKUTUAN","Kuala Lumpur","NIL","NIL","N/A","N/A","N/A","N/A",null,null,null,"N/A"]
["HYU","HYUNDAI SECURITIES","03-2166 2636","03-2166 2636","Riskk","Riskk",50050,"WILAYAH PERSEKUTUAN","Kuala Lumpur","NIL","NIL","N/A","N/A","N/A","N/A",null,null,null,"N/A"]
["HYV","BAYERISCHE HYPO UND VERIS L","03-2166 2636","03-2166 2636","Riskk","Riskk",50050,"WILAYAH PERSEKUTUAN","Kuala Lumpur","NIL","NIL","N/A","N/A","N/A","N/A",null,null,null,"N/A"]
["IAH","AFFIN ISLAMIC BANK BERHAD","03-2166 2636","03-2166 2636","Riskk","Riskk",50050,"WILAYAH PERSEKUTUAN","Kuala Lumpur","NIL","NIL","N/A","N/A","N/A","N/A",null,"XXX",null,"IS"]
["IBI","IBJ INT L","03-2166 2636","03-2166 2636","Riskk","Riskk",50050,"WILAYAH PERSEKUTUAN","Kuala Lumpur","NIL","NIL","N/A","N/A","N/A","N/A",null,null,null,"N/A"]
["IBR","INTERACTIVE BROKERS","03-2166 2636","03-2166 2636","Riskk","Riskk",50050,"WILAYAH PERSEKUTUAN","Kuala Lumpur","NIL","NIL","N/A","N/A","N/A","N/A",null,null,null,"N/A"]
["ICA","ICAP ELECTRONIC BROKING LLC","03-2166 2636","03-2166 2636","Riskk","Riskk",50050,"WILAYAH PERSEKUTUAN","Kuala Lumpur","NIL","NIL","N/A","N/A","N/A","N/A",null,null,null,"N/A"]
["ICB","IND&COMMERCIAL BK OF CHINA","03-2166 2636","03-2166 2636","Riskk","Riskk",50050,"WILAYAH PERSEKUTUAN","Kuala Lumpur","NIL","NIL","N/A","N/A","N/A","N/A",null,null,null,"N/A"]
["ICC","ICAP CORPORATES","03-2166 2636","03-2166 2636","Riskk","Riskk",50050,"WILAYAH PERSEKUTUAN","Kuala Lumpur","NIL","NIL","N/A","N/A","N/A","N/A",null,null,null,"N/A"]
["ICF","IND AND COMM BK CHN FIN SER","03-2166 2636","03-2166 2636","Riskk","Riskk",50050,"WILAYAH PERSEKUTUAN","Kuala Lumpur","NIL","NIL","N/A","N/A","N/A","N/A",null,null,null,"N/A"]
["ICH","ICHIYOSHI SEC","03-2166 2636","03-2166 2636","Riskk","Riskk",50050,"WILAYAH PERSEKUTUAN","Kuala Lumpur","NIL","NIL","N/A","N/A","N/A","N/A",null,null,null,"N/A"]
["ICI","ICICI SECURITIES LIMITED","03-2166 2636","03-2166 2636","Riskk","Riskk",50050,"WILAYAH PERSEKUTUAN","Kuala Lumpur","NIL","NIL","N/A","N/A","N/A","N/A",null,null,null,"N/A"]
["ICL","ISI CAPITAL, LLC","03-2166 2636","03-2166 2636","Riskk","Riskk",50050,"WILAYAH PERSEKUTUAN","Kuala Lumpur","NIL","NIL","N/A","N/A","N/A","N/A",null,null,null,"N/A"]
["ICM","ING CAPITAL MARKETS","03-2166 2636","03-2166 2636","Riskk","Riskk",50050,"WILAYAH PERSEKUTUAN","Kuala Lumpur","NIL","NIL","N/A","N/A","N/A","N/A",null,null,null,"N/A"]
["IDF","IDFC BANK LIMITED","03-2166 2636","03-2166 2636","Riskk","Riskk",50050,"WILAYAH PERSEKUTUAN","Kuala Lumpur","NIL","NIL","N/A","N/A","N/A","N/A",null,null,null,"N/A"]
["IEB","IEBA TRUST","03-2166 2636","03-2166 2636","Riskk","Riskk",50050,"WILAYAH PERSEKUTUAN","Kuala Lumpur","NIL","NIL","N/A","N/A","N/A","N/A",null,null,null,"N/A"]
["IFC","INTL FCSTONE","03-2166 2636","03-2166 2636","Riskk","Riskk",50050,"WILAYAH PERSEKUTUAN","Kuala Lumpur","NIL","NIL","N/A","N/A","N/A","N/A",null,null,null,"N/A"]
["IFF","IFF","03-2166 2636","03-2166 2636","Riskk","Riskk",50050,"WILAYAH PERSEKUTUAN","Kuala Lumpur","NIL","NIL","N/A","N/A","N/A","N/A",null,null,null,"N/A"]
["IIL","INDIA INFOLINE LTD","03-2166 2636","03-2166 2636","Riskk","Riskk",50050,"WILAYAH PERSEKUTUAN","Kuala Lumpur","NIL","NIL","N/A","N/A","N/A","N/A",null,null,null,"N/A"]
["IJL","INTERSTATE JOHNSON LANE","03-2166 2636","03-2166 2636","Riskk","Riskk",50050,"WILAYAH PERSEKUTUAN","Kuala Lumpur","NIL","NIL","N/A","N/A","N/A","N/A",null,null,null,"N/A"]
["IMI","BANCA IMI","03-2166 2636","03-2166 2636","Riskk","Riskk",50050,"WILAYAH PERSEKUTUAN","Kuala Lumpur","NIL","NIL","N/A","N/A","N/A","N/A",null,null,null,"N/A"]
["IMP","IMPERIAL CAPITAL","03-2166 2636","03-2166 2636","Riskk","Riskk",50050,"WILAYAH PERSEKUTUAN","Kuala Lumpur","NIL","NIL","N/A","N/A","N/A","N/A",null,null,null,"N/A"]
["INB","INVESTEC BANK PLC","03-2166 2636","03-2166 2636","Riskk","Riskk",50050,"WILAYAH PERSEKUTUAN","Kuala Lumpur","NIL","NIL","N/A","N/A","N/A","N/A",null,null,null,"N/A"]
["INF","ING FINANCIAL MARKETS LLC","03-2166 2636","03-2166 2636","Riskk","Riskk",50050,"WILAYAH PERSEKUTUAN","Kuala Lumpur","NIL","NIL","N/A","N/A","N/A","N/A",null,null,null,"N/A"]
["ING","ING BANK","03-2166 2636","03-2166 2636","Riskk","Riskk",50050,"WILAYAH PERSEKUTUAN","Kuala Lumpur","NIL","NIL","N/A","N/A","N/A","N/A",null,null,null,"N/A"]
["INS","INVESTEC SECURITIES LTD","03-2166 2636","03-2166 2636","Riskk","Riskk",50050,"WILAYAH PERSEKUTUAN","Kuala Lumpur","NIL","NIL","N/A","N/A","N/A","N/A",null,null,null,"N/A"]
["INT","INTESA SANPAOLO S.P.A.","03-2166 2636","03-2166 2636","Riskk","Riskk",50050,"WILAYAH PERSEKUTUAN","Kuala Lumpur","NIL","NIL","N/A","N/A","N/A","N/A",null,null,null,"N/A"]
["INV","INVESTCORP S.A.","03-2166 2636","03-2166 2636","Riskk","Riskk",50050,"WILAYAH PERSEKUTUAN","Kuala Lumpur","NIL","NIL","N/A","N/A","N/A","N/A",null,null,null,"N/A"]
["IS7","INSTINET NON-JP","03-2166 2636","03-2166 2636","Riskk","Riskk",50050,"WILAYAH PERSEKUTUAN","Kuala Lumpur","NIL","NIL","N/A","N/A","N/A","N/A",null,null,null,"N/A"]
["ISB","ICBC STANDARD BANK","03-2166 2636","03-2166 2636","Riskk","Riskk",50050,"WILAYAH PERSEKUTUAN","Kuala Lumpur","NIL","NIL","N/A","N/A","N/A","N/A",null,null,null,"N/A"]
["ISF","ISI FINANCIAL GROUP INC","03-2166 2636","03-2166 2636","Riskk","Riskk",50050,"WILAYAH PERSEKUTUAN","Kuala Lumpur","NIL","NIL","N/A","N/A","N/A","N/A",null,null,null,"N/A"]
["ISI","INTERNATIONAL STRATEGY&INVE","03-2166 2636","03-2166 2636","Riskk","Riskk",50050,"WILAYAH PERSEKUTUAN","Kuala Lumpur","NIL","NIL","N/A","N/A","N/A","N/A",null,null,null,"N/A"]
["ISM","BANK ISLAM","03-2166 2636","03-2166 2636","Riskk","Riskk",50050,"WILAYAH PERSEKUTUAN","Kuala Lumpur","NIL","NIL","N/A","N/A","BIMBMYKLXXX",1554020405,"BANK ISLAM","XXX",null,"IS"]
["ISN","INSTINET","03-2166 2636","03-2166 2636","Riskk","Riskk",50050,"WILAYAH PERSEKUTUAN","Kuala Lumpur","NIL","NIL","N/A","N/A","N/A","N/A",null,null,null,"N/A"]
["ISS","IS YATIRIM MENKUL DEGERLER","03-2166 2636","03-2166 2636","Riskk","Riskk",50050,"WILAYAH PERSEKUTUAN","Kuala Lumpur","NIL","NIL","N/A","N/A","N/A","N/A",null,null,null,"N/A"]
["ITG","INVESTMENT TECHNOLOGY GROUP","03-2166 2636","03-2166 2636","Riskk","Riskk",50050,"WILAYAH PERSEKUTUAN","Kuala Lumpur","NIL","NIL","N/A","N/A","N/A","N/A",null,null,null,"N/A"]
["ITU","ITAU ASIA SECURITIES LIMIT","03-2166 2636","03-2166 2636","Riskk","Riskk",50050,"WILAYAH PERSEKUTUAN","Kuala Lumpur","NIL","NIL","N/A","N/A","N/A","N/A",null,null,null,"N/A"]
["IVS","INVESTEC BANK","03-2166 2636","03-2166 2636","Riskk","Riskk",50050,"WILAYAH PERSEKUTUAN","Kuala Lumpur","NIL","NIL","N/A","N/A","N/A","N/A",null,null,null,"N/A"]
["JAA","JONES & ASSOCIATES,NEW YORK","03-2166 2636","03-2166 2636","Riskk","Riskk",50050,"WILAYAH PERSEKUTUAN","Kuala Lumpur","NIL","NIL","N/A","N/A","N/A","N/A",null,null,null,"N/A"]
["JAM","J.P.MORGAN ASSET MANAGEMENT","03-2166 2636","03-2166 2636","Riskk","Riskk",50050,"WILAYAH PERSEKUTUAN","Kuala Lumpur","NIL","NIL","N/A","N/A","N/A","N/A",null,null,null,"N/A"]
["JAN","JANNEY MONTGOMERY SCOTT","03-2166 2636","03-2166 2636","Riskk","Riskk",50050,"WILAYAH PERSEKUTUAN","Kuala Lumpur","NIL","NIL","N/A","N/A","N/A","N/A",null,null,null,"N/A"]
["JAS","JANE STREET","03-2166 2636","03-2166 2636","Riskk","Riskk",50050,"WILAYAH PERSEKUTUAN","Kuala Lumpur","NIL","NIL","N/A","N/A","N/A","N/A",null,null,null,"N/A"]
["JB","JULIUS BAR","03-2166 2636","03-2166 2636","Riskk","Riskk",50050,"WILAYAH PERSEKUTUAN","Kuala Lumpur","NIL","NIL","N/A","N/A","N/A","N/A",null,null,null,"N/A"]
["JBC","JB CAPITAL MARKETS","03-2166 2636","03-2166 2636","Riskk","Riskk",50050,"WILAYAH PERSEKUTUAN","Kuala Lumpur","NIL","NIL","N/A","N/A","N/A","N/A",null,null,null,"N/A"]
["JBT","JAPAN BANKERS TRUST COMPA","03-2166 2636","03-2166 2636","Riskk","Riskk",50050,"WILAYAH PERSEKUTUAN","Kuala Lumpur","NIL","NIL","N/A","N/A","N/A","N/A",null,null,null,"N/A"]
["JBW","J B WERE & SON","03-2166 2636","03-2166 2636","Riskk","Riskk",50050,"WILAYAH PERSEKUTUAN","Kuala Lumpur","NIL","NIL","N/A","N/A","N/A","N/A",null,null,null,"N/A"]
["JCV","J. CHEUVREUX D. BE VIRIUE","03-2166 2636","03-2166 2636","Riskk","Riskk",50050,"WILAYAH PERSEKUTUAN","Kuala Lumpur","NIL","NIL","N/A","N/A","N/A","N/A",null,null,null,"N/A"]
["JEF","JEFFERIES&CO","03-2166 2636","03-2166 2636","Riskk","Riskk",50050,"WILAYAH PERSEKUTUAN","Kuala Lumpur","NIL","NIL","N/A","N/A","N/A","N/A",null,null,null,"N/A"]
["JF","JARDINE FLEMING","03-2166 2636","03-2166 2636","Riskk","Riskk",50050,"WILAYAH PERSEKUTUAN","Kuala Lumpur","NIL","NIL","N/A","N/A","N/A","N/A",null,null,null,"N/A"]
["JFA","JF APEX","03-2166 2636","03-2166 2636","Riskk","Riskk",50050,"WILAYAH PERSEKUTUAN","Kuala Lumpur","NIL","NIL","N/A","N/A","N/A","N/A",null,null,null,"N/A"]
["JIS","JIS","03-2166 2636","03-2166 2636","Riskk","Riskk",50050,"WILAYAH PERSEKUTUAN","Kuala Lumpur","NIL","NIL","N/A","N/A","N/A","N/A",null,null,null,"N/A"]
["JL","JESUP & LAMONT DIV/EAGLE","03-2166 2636","03-2166 2636","Riskk","Riskk",50050,"WILAYAH PERSEKUTUAN","Kuala Lumpur","NIL","NIL","N/A","N/A","N/A","N/A",null,null,null,"N/A"]
["JMC","JMC","03-2166 2636","03-2166 2636","Riskk","Riskk",50050,"WILAYAH PERSEKUTUAN","Kuala Lumpur","NIL","NIL","N/A","N/A","N/A","N/A",null,null,null,"N/A"]
["JMF","JM FINN&CO","03-2166 2636","03-2166 2636","Riskk","Riskk",50050,"WILAYAH PERSEKUTUAN","Kuala Lumpur","NIL","NIL","N/A","N/A","N/A","N/A",null,null,null,"N/A"]
["JMP","JMP SECURITIES","03-2166 2636","03-2166 2636","Riskk","Riskk",50050,"WILAYAH PERSEKUTUAN","Kuala Lumpur","NIL","NIL","N/A","N/A","N/A","N/A",null,null,null,"N/A"]
["JMS","J.M. SASSOON","03-2166 2636","03-2166 2636","Riskk","Riskk",50050,"WILAYAH PERSEKUTUAN","Kuala Lumpur","NIL","NIL","N/A","N/A","N/A","N/A",null,null,null,"N/A"]
["JNK","JNK SECURITIES","03-2166 2636","03-2166 2636","Riskk","Riskk",50050,"WILAYAH PERSEKUTUAN","Kuala Lumpur","NIL","NIL","N/A","N/A","N/A","N/A",null,null,null,"N/A"]
["JOH","JOHNAN SHINKIN","03-2166 2636","03-2166 2636","Riskk","Riskk",50050,"WILAYAH PERSEKUTUAN","Kuala Lumpur","NIL","NIL","N/A","N/A","N/A","N/A",null,null,null,"N/A"]
["JPC","JP MORGAN CLEARING","03-2166 2636","03-2166 2636","Riskk","Riskk",50050,"WILAYAH PERSEKUTUAN","Kuala Lumpur","NIL","NIL","N/A","N/A","N/A","N/A",null,null,null,"N/A"]
["JPL","JP MORGAN CHASE BANK (LONDO","03-2166 2636","03-2166 2636","Riskk","Riskk",50050,"WILAYAH PERSEKUTUAN","Kuala Lumpur","NIL","NIL","N/A","N/A","N/A","N/A",null,null,null,"N/A"]
["JPM","J.P. MORGAN","03-2166 2636","03-2166 2636","Riskk","Riskk",50050,"WILAYAH PERSEKUTUAN","Kuala Lumpur","NIL","NIL","N/A","N/A","N/A","N/A",null,null,null,"N/A"]
["JRC","JOHNSON RICE & COMPANY L.L.","03-2166 2636","03-2166 2636","Riskk","Riskk",50050,"WILAYAH PERSEKUTUAN","Kuala Lumpur","NIL","NIL","N/A","N/A","N/A","N/A",null,null,null,"N/A"]
["JSE","JANE STREET EXECUTION SERVI","03-2166 2636","03-2166 2636","Riskk","Riskk",50050,"WILAYAH PERSEKUTUAN","Kuala Lumpur","NIL","NIL","N/A","N/A","N/A","N/A",null,null,null,"N/A"]
["JSW","JORDAN SANDMAN WERE LTD.","03-2166 2636","03-2166 2636","Riskk","Riskk",50050,"WILAYAH PERSEKUTUAN","Kuala Lumpur","NIL","NIL","N/A","N/A","N/A","N/A",null,null,null,"N/A"]
["JTI","JONES TRADING INSTITUTIONAL","03-2166 2636","03-2166 2636","Riskk","Riskk",50050,"WILAYAH PERSEKUTUAN","Kuala Lumpur","NIL","NIL","N/A","N/A","N/A","N/A",null,null,null,"N/A"]
["JWC","JW CHARLES SECURITIES INC","03-2166 2636","03-2166 2636","Riskk","Riskk",50050,"WILAYAH PERSEKUTUAN","Kuala Lumpur","NIL","NIL","N/A","N/A","N/A","N/A",null,null,null,"N/A"]
["KA","KITCAT & AITKEN & CO.","03-2166 2636","03-2166 2636","Riskk","Riskk",50050,"WILAYAH PERSEKUTUAN","Kuala Lumpur","NIL","NIL","N/A","N/A","N/A","N/A",null,null,null,"N/A"]
["KAF","KAF EQUITIES SDN BHD","03-2166 2636","03-2166 2636","Riskk","Riskk",50050,"WILAYAH PERSEKUTUAN","Kuala Lumpur","NIL","NIL","N/A","N/A","N/A","N/A",null,null,null,"N/A"]
["KAM","KANEMAN SECURITIES","03-2166 2636","03-2166 2636","Riskk","Riskk",50050,"WILAYAH PERSEKUTUAN","Kuala Lumpur","NIL","NIL","N/A","N/A","N/A","N/A",null,null,null,"N/A"]
["KAS","KAS-ASSOCIATIE-CVA(BK)","03-2166 2636","03-2166 2636","Riskk","Riskk",50050,"WILAYAH PERSEKUTUAN","Kuala Lumpur","NIL","NIL","N/A","N/A","N/A","N/A",null,null,null,"N/A"]
["KBC","KBC FINANCIAL","03-2166 2636","03-2166 2636","Riskk","Riskk",50050,"WILAYAH PERSEKUTUAN","Kuala Lumpur","NIL","NIL","N/A","N/A","N/A","N/A",null,null,null,"N/A"]
["KBI","DRESDNER KLEINWORT BENSON","03-2166 2636","03-2166 2636","Riskk","Riskk",50050,"WILAYAH PERSEKUTUAN","Kuala Lumpur","NIL","NIL","N/A","N/A","N/A","N/A",null,null,null,"N/A"]
["KBL","KBL","03-2166 2636","03-2166 2636","Riskk","Riskk",50050,"WILAYAH PERSEKUTUAN","Kuala Lumpur","NIL","NIL","N/A","N/A","N/A","N/A",null,null,null,"N/A"]
["KBS","KBC SECURITIES N.V.","03-2166 2636","03-2166 2636","Riskk","Riskk",50050,"WILAYAH PERSEKUTUAN","Kuala Lumpur","NIL","NIL","N/A","N/A","N/A","N/A",null,null,null,"N/A"]
["KBW","KEEFE BRUYETTE&WOODS","03-2166 2636","03-2166 2636","Riskk","Riskk",50050,"WILAYAH PERSEKUTUAN","Kuala Lumpur","NIL","NIL","N/A","N/A","N/A","N/A",null,null,null,"N/A"]
["KCG","KCG AMERICAS LLC","03-2166 2636","03-2166 2636","Riskk","Riskk",50050,"WILAYAH PERSEKUTUAN","Kuala Lumpur","NIL","NIL","N/A","N/A","N/A","N/A",null,null,null,"N/A"]
["KCL","KEPLER CAPITAL MARKETS","03-2166 2636","03-2166 2636","Riskk","Riskk",50050,"WILAYAH PERSEKUTUAN","Kuala Lumpur","NIL","NIL","N/A","N/A","N/A","N/A",null,null,null,"N/A"]
["KCM","KEYBANC CAPITAL MARKETS","03-2166 2636","03-2166 2636","Riskk","Riskk",50050,"WILAYAH PERSEKUTUAN","Kuala Lumpur","NIL","NIL","N/A","N/A","N/A","N/A",null,null,null,"N/A"]
["KDB","KDB SECURITIES CO.,LTD.","03-2166 2636","03-2166 2636","Riskk","Riskk",50050,"WILAYAH PERSEKUTUAN","Kuala Lumpur","NIL","NIL","N/A","N/A","N/A","N/A",null,null,null,"N/A"]
["KDT","KREDIET BANK","03-2166 2636","03-2166 2636","Riskk","Riskk",50050,"WILAYAH PERSEKUTUAN","Kuala Lumpur","NIL","NIL","N/A","N/A","N/A","N/A",null,null,null,"N/A"]
["KFH","KUWAIT FINANCE HOUSE","03-2166 2636","03-2166 2636","Riskk","Riskk",50050,"WILAYAH PERSEKUTUAN","Kuala Lumpur","NIL","NIL","N/A","N/A","N/A","N/A","KUWAIT FINANCE HOUSE","XXX",null,"IS"]
["KFP","KBC FINANCIAL PRODUCT","03-2166 2636","03-2166 2636","Riskk","Riskk",50050,"WILAYAH PERSEKUTUAN","Kuala Lumpur","NIL","NIL","N/A","N/A","N/A","N/A",null,null,null,"N/A"]
["KGI","KGI SECURITIES","03-2166 2636","03-2166 2636","Riskk","Riskk",50050,"WILAYAH PERSEKUTUAN","Kuala Lumpur","NIL","NIL","N/A","N/A","N/A","N/A",null,null,null,"N/A"]
["KGS","KLEIWORT GRIEVESON & CO","03-2166 2636","03-2166 2636","Riskk","Riskk",50050,"WILAYAH PERSEKUTUAN","Kuala Lumpur","NIL","NIL","N/A","N/A","N/A","N/A",null,null,null,"N/A"]
["KIM","KIMSG","03-2166 2636","03-2166 2636","Riskk","Riskk",50050,"WILAYAH PERSEKUTUAN","Kuala Lumpur","NIL","NIL","N/A","N/A","N/A","N/A",null,null,null,"N/A"]
["KIN","KINIGHT EQUITY MARKETS LP","03-2166 2636","03-2166 2636","Riskk","Riskk",50050,"WILAYAH PERSEKUTUAN","Kuala Lumpur","NIL","NIL","N/A","N/A","N/A","N/A",null,null,null,"N/A"]
["KIS","KIS","03-2166 2636","03-2166 2636","Riskk","Riskk",50050,"WILAYAH PERSEKUTUAN","Kuala Lumpur","NIL","NIL","N/A","N/A","N/A","N/A",null,null,null,"N/A"]
["KJC","UOB KAY HIAN","03-2166 2636","03-2166 2636","Riskk","Riskk",50050,"WILAYAH PERSEKUTUAN","Kuala Lumpur","NIL","NIL","N/A","N/A","N/A","N/A",null,null,null,"N/A"]
["KKS","MU MORGAN STANLEY","03-2166 2636","03-2166 2636","Riskk","Riskk",50050,"WILAYAH PERSEKUTUAN","Kuala Lumpur","NIL","NIL","N/A","N/A","N/A","N/A",null,null,null,"N/A"]
["KL;CASHDUMMY","KL;CASHDUMMY","03-2166 2636","03-2166 2636","Riskk","Riskk",50050,"WILAYAH PERSEKUTUAN","Kuala Lumpur","NIL","NIL","N/A","N/A","N/A","N/A",null,null,null,"N/A"]
["KNC","KEMPEN AND CO.","03-2166 2636","03-2166 2636","Riskk","Riskk",50050,"WILAYAH PERSEKUTUAN","Kuala Lumpur","NIL","NIL","N/A","N/A","N/A","N/A",null,null,null,"N/A"]
["KNG","KNIGHT SECURITIES","03-2166 2636","03-2166 2636","Riskk","Riskk",50050,"WILAYAH PERSEKUTUAN","Kuala Lumpur","NIL","NIL","N/A","N/A","N/A","N/A",null,null,null,"N/A"]
["KNK","KENANGA INVESTMENT BANK","03-2166 2636","03-2166 2636","Riskk","Riskk",50050,"WILAYAH PERSEKUTUAN","Kuala Lumpur","NIL","NIL","N/A","N/A","N/A","N/A",null,null,null,"N/A"]
["KNS","KNIGHT CAPITAL","03-2166 2636","03-2166 2636","Riskk","Riskk",50050,"WILAYAH PERSEKUTUAN","Kuala Lumpur","NIL","NIL","N/A","N/A","N/A","N/A",null,null,null,"N/A"]
["KOP","KANSALLIS OSAKE PANKKI","03-2166 2636","03-2166 2636","Riskk","Riskk",50050,"WILAYAH PERSEKUTUAN","Kuala Lumpur","NIL","NIL","N/A","N/A","N/A","N/A",null,null,null,"N/A"]
["KOS","KOSEI SECURITIES","03-2166 2636","03-2166 2636","Riskk","Riskk",50050,"WILAYAH PERSEKUTUAN","Kuala Lumpur","NIL","NIL","N/A","N/A","N/A","N/A",null,null,null,"N/A"]
["KOT","KOTAK SECURITIES LTD","03-2166 2636","03-2166 2636","Riskk","Riskk",50050,"WILAYAH PERSEKUTUAN","Kuala Lumpur","NIL","NIL","N/A","N/A","N/A","N/A",null,null,null,"N/A"]
["KP","KIDDER PEABODY & CO","03-2166 2636","03-2166 2636","Riskk","Riskk",50050,"WILAYAH PERSEKUTUAN","Kuala Lumpur","NIL","NIL","N/A","N/A","N/A","N/A",null,null,null,"N/A"]
["KPH","KBC PEEL HUNT","03-2166 2636","03-2166 2636","Riskk","Riskk",50050,"WILAYAH PERSEKUTUAN","Kuala Lumpur","NIL","NIL","N/A","N/A","N/A","N/A",null,null,null,"N/A"]
["KRY","KERRY SECURITIES LTD","03-2166 2636","03-2166 2636","Riskk","Riskk",50050,"WILAYAH PERSEKUTUAN","Kuala Lumpur","NIL","NIL","N/A","N/A","N/A","N/A",null,null,null,"N/A"]
["KSK","KSK","03-2166 2636","03-2166 2636","Riskk","Riskk",50050,"WILAYAH PERSEKUTUAN","Kuala Lumpur","NIL","NIL","N/A","N/A","N/A","N/A",null,null,null,"N/A"]
["KTB","CHEMICAL TRUST","03-2166 2636","03-2166 2636","Riskk","Riskk",50050,"WILAYAH PERSEKUTUAN","Kuala Lumpur","NIL","NIL","N/A","N/A","N/A","N/A",null,null,null,"N/A"]
["KTN","KANTONALBANK","03-2166 2636","03-2166 2636","Riskk","Riskk",50050,"WILAYAH PERSEKUTUAN","Kuala Lumpur","NIL","NIL","N/A","N/A","N/A","N/A",null,null,null,"N/A"]
["KTT","KOKUSAI TOUSIN TOUSIKOMON","03-2166 2636","03-2166 2636","Riskk","Riskk",50050,"WILAYAH PERSEKUTUAN","Kuala Lumpur","NIL","NIL","N/A","N/A","N/A","N/A",null,null,null,"N/A"]
["KYO","KYOKUTOH SEC","03-2166 2636","03-2166 2636","Riskk","Riskk",50050,"WILAYAH PERSEKUTUAN","Kuala Lumpur","NIL","NIL","N/A","N/A","N/A","N/A",null,null,null,"N/A"]
["LAR","LARRAIN VIAL","03-2166 2636","03-2166 2636","Riskk","Riskk",50050,"WILAYAH PERSEKUTUAN","Kuala Lumpur","NIL","NIL","N/A","N/A","N/A","N/A",null,null,null,"N/A"]
["LAS","LINK ASSET SERVICES","03-2166 2636","03-2166 2636","Riskk","Riskk",50050,"WILAYAH PERSEKUTUAN","Kuala Lumpur","NIL","NIL","N/A","N/A","N/A","N/A",null,null,null,"N/A"]
["LAZ","LAZARD","03-2166 2636","03-2166 2636","Riskk","Riskk",50050,"WILAYAH PERSEKUTUAN","Kuala Lumpur","NIL","NIL","N/A","N/A","N/A","N/A",null,null,null,"N/A"]
["LB","LEHMAN BROTHERS","03-2166 2636","03-2166 2636","Riskk","Riskk",50050,"WILAYAH PERSEKUTUAN","Kuala Lumpur","NIL","NIL","N/A","N/A","N/A","N/A",null,null,null,"N/A"]
["LBR","LIBERUM","03-2166 2636","03-2166 2636","Riskk","Riskk",50050,"WILAYAH PERSEKUTUAN","Kuala Lumpur","NIL","NIL","N/A","N/A","N/A","N/A",null,null,null,"N/A"]
["LBT","LADENBURG THALMANN & CO INC","03-2166 2636","03-2166 2636","Riskk","Riskk",50050,"WILAYAH PERSEKUTUAN","Kuala Lumpur","NIL","NIL","N/A","N/A","N/A","N/A",null,null,null,"N/A"]
["LC","LOOP CAPITAL MARKETS","03-2166 2636","03-2166 2636","Riskk","Riskk",50050,"WILAYAH PERSEKUTUAN","Kuala Lumpur","NIL","NIL","N/A","N/A","N/A","N/A",null,null,null,"N/A"]
["LCM","LAZARD CAPITAL MARKETS","03-2166 2636","03-2166 2636","Riskk","Riskk",50050,"WILAYAH PERSEKUTUAN","Kuala Lumpur","NIL","NIL","N/A","N/A","N/A","N/A",null,null,null,"N/A"]
["LEE","LEERINK SWANN AND COMPANY","03-2166 2636","03-2166 2636","Riskk","Riskk",50050,"WILAYAH PERSEKUTUAN","Kuala Lumpur","NIL","NIL","N/A","N/A","N/A","N/A",null,null,null,"N/A"]
["LEH","LEHMAN BROTHERS SECURITIES","03-2166 2636","03-2166 2636","Riskk","Riskk",50050,"WILAYAH PERSEKUTUAN","Kuala Lumpur","NIL","NIL","N/A","N/A","N/A","N/A",null,null,null,"N/A"]
["LEK","LEK SECURITIES CORPORATION","03-2166 2636","03-2166 2636","Riskk","Riskk",50050,"WILAYAH PERSEKUTUAN","Kuala Lumpur","NIL","NIL","N/A","N/A","N/A","N/A",null,null,null,"N/A"]
["LGB","LONGBOW SECURITIES LLC","03-2166 2636","03-2166 2636","Riskk","Riskk",50050,"WILAYAH PERSEKUTUAN","Kuala Lumpur","NIL","NIL","N/A","N/A","N/A","N/A",null,null,null,"N/A"]
["LIB","LIBERUM CAPITAL LIMITED","03-2166 2636","03-2166 2636","Riskk","Riskk",50050,"WILAYAH PERSEKUTUAN","Kuala Lumpur","NIL","NIL","N/A","N/A","N/A","N/A",null,null,null,"N/A"]
["LIP","LIPPO SECURITIES","03-2166 2636","03-2166 2636","Riskk","Riskk",50050,"WILAYAH PERSEKUTUAN","Kuala Lumpur","NIL","NIL","N/A","N/A","N/A","N/A",null,null,null,"N/A"]
["LIT","LIT AMERICA,INC","03-2166 2636","03-2166 2636","Riskk","Riskk",50050,"WILAYAH PERSEKUTUAN","Kuala Lumpur","NIL","NIL","N/A","N/A","N/A","N/A",null,null,null,"N/A"]
["LJR","LYNCH JONES & RYAN","03-2166 2636","03-2166 2636","Riskk","Riskk",50050,"WILAYAH PERSEKUTUAN","Kuala Lumpur","NIL","NIL","N/A","N/A","N/A","N/A",null,null,null,"N/A"]
["LKP","LKP SECURITIES LTD","03-2166 2636","03-2166 2636","Riskk","Riskk",50050,"WILAYAH PERSEKUTUAN","Kuala Lumpur","NIL","NIL","N/A","N/A","N/A","N/A",null,null,null,"N/A"]
["LKY","LG SECURITIES CO.,LTD","03-2166 2636","03-2166 2636","Riskk","Riskk",50050,"WILAYAH PERSEKUTUAN","Kuala Lumpur","NIL","NIL","N/A","N/A","N/A","N/A",null,null,null,"N/A"]
["LLOYDS","LLOYDS TSB","03-2166 2636","03-2166 2636","Riskk","Riskk",50050,"WILAYAH PERSEKUTUAN","Kuala Lumpur","NIL","NIL","N/A","N/A","N/A","N/A",null,null,null,"N/A"]
["LMW","LOVETT, MITCHELL, WEBB &","03-2166 2636","03-2166 2636","Riskk","Riskk",50050,"WILAYAH PERSEKUTUAN","Kuala Lumpur","NIL","NIL","N/A","N/A","N/A","N/A",null,null,null,"N/A"]
["LOU","LOUIS CAPITAL MARKETS","03-2166 2636","03-2166 2636","Riskk","Riskk",50050,"WILAYAH PERSEKUTUAN","Kuala Lumpur","NIL","NIL","N/A","N/A","N/A","N/A",null,null,null,"N/A"]
["LPC","LAURENCE, PRUST & CO","03-2166 2636","03-2166 2636","Riskk","Riskk",50050,"WILAYAH PERSEKUTUAN","Kuala Lumpur","NIL","NIL","N/A","N/A","N/A","N/A",null,null,null,"N/A"]
["LPL","LIBERTAS PARTNERS LLC","03-2166 2636","03-2166 2636","Riskk","Riskk",50050,"WILAYAH PERSEKUTUAN","Kuala Lumpur","NIL","NIL","N/A","N/A","N/A","N/A",null,null,null,"N/A"]
["LQN","LIQUIDNET EUROPE LIMITED","03-2166 2636","03-2166 2636","Riskk","Riskk",50050,"WILAYAH PERSEKUTUAN","Kuala Lumpur","NIL","NIL","N/A","N/A","N/A","N/A",null,null,null,"N/A"]
["LSI","LATINVEST SECURITIES, INC","03-2166 2636","03-2166 2636","Riskk","Riskk",50050,"WILAYAH PERSEKUTUAN","Kuala Lumpur","NIL","NIL","N/A","N/A","N/A","N/A",null,null,null,"N/A"]
["LTS","WARBURG DILLON READSECURI","03-2166 2636","03-2166 2636","Riskk","Riskk",50050,"WILAYAH PERSEKUTUAN","Kuala Lumpur","NIL","NIL","N/A","N/A","N/A","N/A",null,null,null,"N/A"]
["LUM","LUMINEX TRADING & ANALYTICS","03-2166 2636","03-2166 2636","Riskk","Riskk",50050,"WILAYAH PERSEKUTUAN","Kuala Lumpur","NIL","NIL","N/A","N/A","N/A","N/A",null,null,null,"N/A"]
["LWS","LINWAR SECURITIES PTY LTD","03-2166 2636","03-2166 2636","Riskk","Riskk",50050,"WILAYAH PERSEKUTUAN","Kuala Lumpur","NIL","NIL","N/A","N/A","N/A","N/A",null,null,null,"N/A"]
["MAA","MARKETAXESS","03-2166 2636","03-2166 2636","Riskk","Riskk",50050,"WILAYAH PERSEKUTUAN","Kuala Lumpur","NIL","NIL","N/A","N/A","N/A","N/A",null,null,null,"N/A"]
["MAB","MABON SECURITIES CORP","03-2166 2636","03-2166 2636","Riskk","Riskk",50050,"WILAYAH PERSEKUTUAN","Kuala Lumpur","NIL","NIL","N/A","N/A","N/A","N/A",null,null,null,"N/A"]
["MAC","MACQUARIE SECURITIES","03-2166 2636","03-2166 2636","Riskk","Riskk",50050,"WILAYAH PERSEKUTUAN","Kuala Lumpur","NIL","NIL","N/A","N/A","N/A","N/A",null,null,null,"N/A"]
["MAE","MAEDA SECURITIES","03-2166 2636","03-2166 2636","Riskk","Riskk",50050,"WILAYAH PERSEKUTUAN","Kuala Lumpur","NIL","NIL","N/A","N/A","N/A","N/A",null,null,null,"N/A"]
["MAF","MARUFUKU SECURITIES","03-2166 2636","03-2166 2636","Riskk","Riskk",50050,"WILAYAH PERSEKUTUAN","Kuala Lumpur","NIL","NIL","N/A","N/A","N/A","N/A",null,null,null,"N/A"]
["MAK","MARUKIN SECURITIES","03-2166 2636","03-2166 2636","Riskk","Riskk",50050,"WILAYAH PERSEKUTUAN","Kuala Lumpur","NIL","NIL","N/A","N/A","N/A","N/A",null,null,null,"N/A"]
["MAN","MANDIRI SEKURITAS","03-2166 2636","03-2166 2636","Riskk","Riskk",50050,"WILAYAH PERSEKUTUAN","Kuala Lumpur","NIL","NIL","N/A","N/A","N/A","N/A",null,null,null,"N/A"]
["MAP","MAP SECURITIES","03-2166 2636","03-2166 2636","Riskk","Riskk",50050,"WILAYAH PERSEKUTUAN","Kuala Lumpur","NIL","NIL","N/A","N/A","N/A","N/A",null,null,null,"N/A"]
["MAR","MARUHACHI SEC","03-2166 2636","03-2166 2636","Riskk","Riskk",50050,"WILAYAH PERSEKUTUAN","Kuala Lumpur","NIL","NIL","N/A","N/A","N/A","N/A",null,null,null,"N/A"]
["MAS","MARUSAN SECURITIES","03-2166 2636","03-2166 2636","Riskk","Riskk",50050,"WILAYAH PERSEKUTUAN","Kuala Lumpur","NIL","NIL","N/A","N/A","N/A","N/A",null,null,null,"N/A"]
["MAX","MAXWELL Y ESPINOSA","03-2166 2636","03-2166 2636","Riskk","Riskk",50050,"WILAYAH PERSEKUTUAN","Kuala Lumpur","NIL","NIL","N/A","N/A","N/A","N/A",null,null,null,"N/A"]
["MAY","MALAYAN BANKING BERHAD","03-2166 2636","03-2166 2636","Riskk","Riskk",50050,"WILAYAH PERSEKUTUAN","Kuala Lumpur","NIL","NIL","N/A","N/A","N/A","N/A",null,null,null,"N/A"]
["MB","MB","03-2166 2636","03-2166 2636","Riskk","Riskk",50050,"WILAYAH PERSEKUTUAN","Kuala Lumpur","NIL","NIL","N/A","N/A","N/A","N/A",null,null,null,"N/A"]
["MBB","MELLON BANK, N.A.","03-2166 2636","03-2166 2636","Riskk","Riskk",50050,"WILAYAH PERSEKUTUAN","Kuala Lumpur","NIL","NIL","N/A","N/A","N/A","N/A",null,null,null,"N/A"]
["MBBT","MALAYAN BANKING BHD",20748953,"03-20709387","Ms.Amalina / Mr. Abdullah Tahir","8th,Menara Maybank, 100 Jln Tun Perak,",50050,"WILAYAH PERSEKUTUAN","Kuala Lumpur","abdullah.tahir@maybank.com.my","NIL","MBBEMYKLCSD","N/A","N/A","N/A",null,null,null,"N/A"]
["MBG","MILLENIUM BROKERAGE GROUP","03-2166 2636","03-2166 2636","Riskk","Riskk",50050,"WILAYAH PERSEKUTUAN","Kuala Lumpur","NIL","NIL","N/A","N/A","N/A","N/A",null,null,null,"N/A"]
["MBI","MAYBANK ISLAMIC","03-2166 2636","03-2166 2636","Riskk","Riskk",50050,"WILAYAH PERSEKUTUAN","Kuala Lumpur","NIL","NIL","MBISMYKLXXX","N/A","N/A","MY71BNMA1554020544","MAYBANK ISLAMIC","XXXX",null,"IS"]
["MBS","MITSUBISHI TRUST SECURITI","03-2166 2636","03-2166 2636","Riskk","Riskk",50050,"WILAYAH PERSEKUTUAN","Kuala Lumpur","NIL","NIL","N/A","N/A","N/A","N/A",null,null,null,"N/A"]
["MCB","MACQUARIE BANK","03-2166 2636","03-2166 2636","Riskk","Riskk",50050,"WILAYAH PERSEKUTUAN","Kuala Lumpur","NIL","NIL","N/A","N/A","N/A","N/A",null,null,null,"N/A"]
["MCD","MCDONALDS & CO.","03-2166 2636","03-2166 2636","Riskk","Riskk",50050,"WILAYAH PERSEKUTUAN","Kuala Lumpur","NIL","NIL","N/A","N/A","N/A","N/A",null,null,null,"N/A"]
["MCH","MISCHLER FINANCIAL GROUP,","03-2166 2636","03-2166 2636","Riskk","Riskk",50050,"WILAYAH PERSEKUTUAN","Kuala Lumpur","NIL","NIL","N/A","N/A","N/A","N/A",null,null,null,"N/A"]
["MCI","MCINTOSH & COMPANY LIMITE","03-2166 2636","03-2166 2636","Riskk","Riskk",50050,"WILAYAH PERSEKUTUAN","Kuala Lumpur","NIL","NIL","N/A","N/A","N/A","N/A",null,null,null,"N/A"]
["MCQ","MACQUARIE CAPITAL INC","03-2166 2636","03-2166 2636","Riskk","Riskk",50050,"WILAYAH PERSEKUTUAN","Kuala Lumpur","NIL","NIL","N/A","N/A","N/A","N/A",null,null,null,"N/A"]
["MDL","MIDLAND BANK","03-2166 2636","03-2166 2636","Riskk","Riskk",50050,"WILAYAH PERSEKUTUAN","Kuala Lumpur","NIL","NIL","N/A","N/A","N/A","N/A",null,null,null,"N/A"]
["MDM","MIDLAND MONTAGU","03-2166 2636","03-2166 2636","Riskk","Riskk",50050,"WILAYAH PERSEKUTUAN","Kuala Lumpur","NIL","NIL","N/A","N/A","N/A","N/A",null,null,null,"N/A"]
["MED","MEDIOBANCA S.P.A.","03-2166 2636","03-2166 2636","Riskk","Riskk",50050,"WILAYAH PERSEKUTUAN","Kuala Lumpur","NIL","NIL","N/A","N/A","N/A","N/A",null,null,null,"N/A"]
["MELLON","The Bank of New York Mellon",20748953,"03-20709387","Ms.Amalina / Mr. Abdullah Tahir","8th,Menara Maybank, 100 Jln Tun Perak,",50050,"WILAYAH PERSEKUTUAN","Kuala Lumpur","abdullah.tahir@maybank.com.my","NIL","N/A","N/A","N/A","N/A",null,null,null,"N/A"]
["MEP","MERIDIAN EQUITY PARTNERS,IN","03-2166 2636","03-2166 2636","Riskk","Riskk",50050,"WILAYAH PERSEKUTUAN","Kuala Lumpur","NIL","NIL","N/A","N/A","N/A","N/A",null,null,null,"N/A"]
["MER","MERRILL LYNCH LTD","03-2166 2636","03-2166 2636","Riskk","Riskk",50050,"WILAYAH PERSEKUTUAN","Kuala Lumpur","NIL","NIL","N/A","N/A","N/A","N/A",null,null,null,"N/A"]
["MES","MESIROW FINANCE INC","03-2166 2636","03-2166 2636","Riskk","Riskk",50050,"WILAYAH PERSEKUTUAN","Kuala Lumpur","NIL","NIL","N/A","N/A","N/A","N/A",null,null,null,"N/A"]
["MET","METZLER","03-2166 2636","03-2166 2636","Riskk","Riskk",50050,"WILAYAH PERSEKUTUAN","Kuala Lumpur","NIL","NIL","N/A","N/A","N/A","N/A",null,null,null,"N/A"]
["MFB","MAINFIRST BANK AG FRANKFURT","03-2166 2636","03-2166 2636","Riskk","Riskk",50050,"WILAYAH PERSEKUTUAN","Kuala Lumpur","NIL","NIL","N/A","N/A","N/A","N/A",null,null,null,"N/A"]
["MFC","MUFG FUND SERVICES（CAYMAN）","03-2166 2636","03-2166 2636","Riskk","Riskk",50050,"WILAYAH PERSEKUTUAN","Kuala Lumpur","NIL","NIL","N/A","N/A","N/A","N/A",null,null,null,"N/A"]
["MFG","MF GLOBAL","03-2166 2636","03-2166 2636","Riskk","Riskk",50050,"WILAYAH PERSEKUTUAN","Kuala Lumpur","NIL","NIL","N/A","N/A","N/A","N/A",null,null,null,"N/A"]
["MFK","MASSONAUD FONTENEY KERVER","03-2166 2636","03-2166 2636","Riskk","Riskk",50050,"WILAYAH PERSEKUTUAN","Kuala Lumpur","NIL","NIL","N/A","N/A","N/A","N/A",null,null,null,"N/A"]
["MFR","MARIA FIORINI RAMIREZ SEC","03-2166 2636","03-2166 2636","Riskk","Riskk",50050,"WILAYAH PERSEKUTUAN","Kuala Lumpur","NIL","NIL","N/A","N/A","N/A","N/A",null,null,null,"N/A"]
["MGT","MORGAN GRENFELL TRUST","03-2166 2636","03-2166 2636","Riskk","Riskk",50050,"WILAYAH PERSEKUTUAN","Kuala Lumpur","NIL","NIL","N/A","N/A","N/A","N/A",null,null,null,"N/A"]
["MI;CASHDUMMY","MI;CASHDUMMY","N/A","N/A","N/A","N/A","N/A","WILAYAH PERSEKUTUAN","Kuala Lumpur","N/A","N/A","N/A","N/A","N/A","N/A","N/A","N/A","N/A","N/A"]
["MID","MIDWOOD SECURITIES","03-2166 2636","03-2166 2636","Riskk","Riskk",50050,"WILAYAH PERSEKUTUAN","Kuala Lumpur","NIL","NIL","N/A","N/A","N/A","N/A",null,null,null,"N/A"]
["MIL","MILLENNIUM ADVISORS LLC","03-2166 2636","03-2166 2636","Riskk","Riskk",50050,"WILAYAH PERSEKUTUAN","Kuala Lumpur","NIL","NIL","N/A","N/A","N/A","N/A",null,null,null,"N/A"]
["MIP","MIZUHO INTL PLC","03-2166 2636","03-2166 2636","Riskk","Riskk",50050,"WILAYAH PERSEKUTUAN","Kuala Lumpur","NIL","NIL","N/A","N/A","N/A","N/A",null,null,null,"N/A"]
["MIR","MIRAE ASSET SECURITIES CO.L","03-2166 2636","03-2166 2636","Riskk","Riskk",50050,"WILAYAH PERSEKUTUAN","Kuala Lumpur","NIL","NIL","N/A","N/A","N/A","N/A",null,null,null,"N/A"]
["MIRAE","MIRAE ASSET SECURITIES","03-2166 2636","03-2166 2636","Riskk","Riskk",50050,"WILAYAH PERSEKUTUAN","Kuala Lumpur","NIL","NIL","N/A","N/A","N/A","N/A",null,null,null,"N/A"]
["MIS","MUFJ INVESTOR SERVICES&BANK","03-2166 2636","03-2166 2636","Riskk","Riskk",50050,"WILAYAH PERSEKUTUAN","Kuala Lumpur","NIL","NIL","N/A","N/A","N/A","N/A",null,null,null,"N/A"]
["MIT","MUFG BANK, LTD.","03-2166 2636","03-2166 2636","Riskk","Riskk",50050,"WILAYAH PERSEKUTUAN","Kuala Lumpur","NIL","NIL","N/A","N/A","N/A","N/A",null,null,null,"N/A"]
["MIZ","MIZUHO SECURITIES ASIA LIMI","03-2166 2636","03-2166 2636","Riskk","Riskk",50050,"WILAYAH PERSEKUTUAN","Kuala Lumpur","NIL","NIL","N/A","N/A","N/A","N/A",null,null,null,"N/A"]
["MK","MORGAN KEEGAN & CO. INC","03-2166 2636","03-2166 2636","Riskk","Riskk",50050,"WILAYAH PERSEKUTUAN","Kuala Lumpur","NIL","NIL","N/A","N/A","N/A","N/A",null,null,null,"N/A"]
["MKD","MAKINDO SECURITIES","03-2166 2636","03-2166 2636","Riskk","Riskk",50050,"WILAYAH PERSEKUTUAN","Kuala Lumpur","NIL","NIL","N/A","N/A","N/A","N/A",null,null,null,"N/A"]
["MKM","MKM PARTNERS LLC","03-2166 2636","03-2166 2636","Riskk","Riskk",50050,"WILAYAH PERSEKUTUAN","Kuala Lumpur","NIL","NIL","N/A","N/A","N/A","N/A",null,null,null,"N/A"]
["ML","BOFA SECURITIES","03-2166 2636","03-2166 2636","Riskk","Riskk",50050,"WILAYAH PERSEKUTUAN","Kuala Lumpur","NIL","NIL","N/A","N/A","N/A","N/A",null,null,null,"N/A"]
["MLB","MALAYAN BANKING BHD","03-2166 2636","603 2072 3744","Cik Yuslailli / En Ahmad Fauzi (Yeop)","Riskk",50050,"WILAYAH PERSEKUTUAN","Kuala Lumpur","NIL","NIL","MBBEMYKLXXX","N/A","N/A","MY65BNMA1554010273",null,"N/A",null,"N/A"]
["MLC","MERRILL LYNCH PRO CLEARING","03-2166 2636","03-2166 2636","Riskk","Riskk",50050,"WILAYAH PERSEKUTUAN","Kuala Lumpur","NIL","NIL","N/A","N/A","N/A","N/A",null,null,null,"N/A"]
["MLP","ML PIERCE FENNER&SMITH","03-2166 2636","03-2166 2636","Riskk","Riskk",50050,"WILAYAH PERSEKUTUAN","Kuala Lumpur","NIL","NIL","N/A","N/A","N/A","N/A",null,null,null,"N/A"]
["MLT","MILLER TABAK & CO","03-2166 2636","03-2166 2636","Riskk","Riskk",50050,"WILAYAH PERSEKUTUAN","Kuala Lumpur","NIL","NIL","N/A","N/A","N/A","N/A",null,null,null,"N/A"]
["MOE","MOELIS & COMPANY","03-2166 2636","03-2166 2636","Riskk","Riskk",50050,"WILAYAH PERSEKUTUAN","Kuala Lumpur","NIL","NIL","N/A","N/A","N/A","N/A",null,null,null,"N/A"]
["MOT","MOTILAL OSWAL SECS LTD","03-2166 2636","03-2166 2636","Riskk","Riskk",50050,"WILAYAH PERSEKUTUAN","Kuala Lumpur","NIL","NIL","N/A","N/A","N/A","N/A",null,null,null,"N/A"]
["MRB","MIRABAUD SECURITIES LIMITED","03-2166 2636","03-2166 2636","Riskk","Riskk",50050,"WILAYAH PERSEKUTUAN","Kuala Lumpur","NIL","NIL","N/A","N/A","N/A","N/A",null,null,null,"N/A"]
["MS","MORGAN STANLEY","03-2166 2636","03-2166 2636","Riskk","Riskk",50050,"WILAYAH PERSEKUTUAN","Kuala Lumpur","NIL","NIL","N/A","N/A","N/A","N/A",null,null,null,"N/A"]
["MSC","MASTERLINK SECURITIES CORP","03-2166 2636","03-2166 2636","Riskk","Riskk",50050,"WILAYAH PERSEKUTUAN","Kuala Lumpur","NIL","NIL","N/A","N/A","N/A","N/A",null,null,null,"N/A"]
["MSI","MONTROSE SECURITIES INTL","03-2166 2636","03-2166 2636","Riskk","Riskk",50050,"WILAYAH PERSEKUTUAN","Kuala Lumpur","NIL","NIL","N/A","N/A","N/A","N/A",null,null,null,"N/A"]
["MSL","MORGAN STANLEY&CO,INT.PLC(L","03-2166 2636","03-2166 2636","Riskk","Riskk",50050,"WILAYAH PERSEKUTUAN","Kuala Lumpur","NIL","NIL","N/A","N/A","N/A","N/A",null,null,null,"N/A"]
["MSN","MORGAN STANLEY ,NY","03-2166 2636","03-2166 2636","Riskk","Riskk",50050,"WILAYAH PERSEKUTUAN","Kuala Lumpur","NIL","NIL","N/A","N/A","N/A","N/A",null,null,null,"N/A"]
["MSS","MAYBANK INVESTMENT BANK","03-2166 2636","03-2166 2636","Riskk","Riskk",50050,"WILAYAH PERSEKUTUAN","Kuala Lumpur","NIL","NIL","N/A","N/A","N/A","N/A",null,null,null,"N/A"]
["MT","MELLON TRUST","03-2166 2636","03-2166 2636","Riskk","Riskk",50050,"WILAYAH PERSEKUTUAN","Kuala Lumpur","NIL","NIL","N/A","N/A","N/A","N/A",null,null,null,"N/A"]
["MTO","MITO SEC","03-2166 2636","03-2166 2636","Riskk","Riskk",50050,"WILAYAH PERSEKUTUAN","Kuala Lumpur","NIL","NIL","N/A","N/A","N/A","N/A",null,null,null,"N/A"]
["MTR","MTRUSTEE BERHAD","03-2166 2636","03-2166 2636","Riskk","Riskk",50050,"WILAYAH PERSEKUTUAN","Kuala Lumpur","NIL","NIL","N/A","N/A","N/A","N/A",null,null,null,"N/A"]
["MTRUSTEE","MTRUSTEE BERHAD",20748953,"03-20709387","Ms.Amalina / Mr. Abdullah Tahir","8th,Menara Maybank, 100 Jln Tun Perak,",50050,"WILAYAH PERSEKUTUAN","Kuala Lumpur","abdullah.tahir@maybank.com.my","NIL","N/A","N/A","N/A","N/A",null,null,null,"N/A"]
["MTS","MITUI TRUST SECURITIES","03-2166 2636","03-2166 2636","Riskk","Riskk",50050,"WILAYAH PERSEKUTUAN","Kuala Lumpur","NIL","NIL","N/A","N/A","N/A","N/A",null,null,null,"N/A"]
["MUI","MUFJ IS&B LUX","03-2166 2636","03-2166 2636","Riskk","Riskk",50050,"WILAYAH PERSEKUTUAN","Kuala Lumpur","NIL","NIL","N/A","N/A","N/A","N/A",null,null,null,"N/A"]
["MUS","MUSASHINO BANK","03-2166 2636","03-2166 2636","Riskk","Riskk",50050,"WILAYAH PERSEKUTUAN","Kuala Lumpur","NIL","NIL","N/A","N/A","N/A","N/A",null,null,null,"N/A"]
["MUT","MITSUBISHI UFJ TRUST & BANK","03-2166 2636","03-2166 2636","Riskk","Riskk",50050,"WILAYAH PERSEKUTUAN","Kuala Lumpur","NIL","NIL","N/A","N/A","N/A","N/A",null,null,null,"N/A"]
["MXG","MAXIM GROUP","03-2166 2636","03-2166 2636","Riskk","Riskk",50050,"WILAYAH PERSEKUTUAN","Kuala Lumpur","NIL","NIL","N/A","N/A","N/A","N/A",null,null,null,"N/A"]
["MYS","MAYER & SCHWEITZER","03-2166 2636","03-2166 2636","Riskk","Riskk",50050,"WILAYAH PERSEKUTUAN","Kuala Lumpur","NIL","NIL","N/A","N/A","N/A","N/A",null,null,null,"N/A"]
["MZC","MIZUHO CORPORATE BANK","03-2166 2636","03-2166 2636","Riskk","Riskk",50050,"WILAYAH PERSEKUTUAN","Kuala Lumpur","NIL","NIL","N/A","N/A","N/A","N/A",null,null,null,"N/A"]
["MZH","MIZUHO HOLDINGS,INC","03-2166 2636","03-2166 2636","Riskk","Riskk",50050,"WILAYAH PERSEKUTUAN","Kuala Lumpur","NIL","NIL","N/A","N/A","N/A","N/A",null,null,null,"N/A"]
["MZS","MIZUHO SECURITIES","03-2166 2636","03-2166 2636","Riskk","Riskk",50050,"WILAYAH PERSEKUTUAN","Kuala Lumpur","NIL","NIL","N/A","N/A","N/A","N/A",null,null,null,"N/A"]
["MZT","MIZUHO TRUST & BANKING","03-2166 2636","03-2166 2636","Riskk","Riskk",50050,"WILAYAH PERSEKUTUAN","Kuala Lumpur","NIL","NIL","N/A","N/A","N/A","N/A",null,null,null,"N/A"]
["N/A","NOT APPLICABLE","03-2166 2636","03-20709387","N/A",null,50450,"WILAYAH PERSEKUTUAN","Kuala Lumpur",null,null,"N/A","N/A","N/A","N/A",null,"N/A",null,"N/A"]
["N08","NOMURA SEC INTNATL INC","03-2166 2636","03-2166 2636","Riskk","Riskk",50050,"WILAYAH PERSEKUTUAN","Kuala Lumpur","NIL","NIL","N/A","N/A","N/A","N/A",null,null,null,"N/A"]
["N18","INSTINET EUROPE LIMITED","03-2166 2636","03-2166 2636","Riskk","Riskk",50050,"WILAYAH PERSEKUTUAN","Kuala Lumpur","NIL","NIL","N/A","N/A","N/A","N/A",null,null,null,"N/A"]
["N19","INSTINET PACIFIC LIMITED","03-2166 2636","03-2166 2636","Riskk","Riskk",50050,"WILAYAH PERSEKUTUAN","Kuala Lumpur","NIL","NIL","N/A","N/A","N/A","N/A",null,null,null,"N/A"]
["N20","INSTINET SINGAPORE SERVICES","03-2166 2636","03-2166 2636","Riskk","Riskk",50050,"WILAYAH PERSEKUTUAN","Kuala Lumpur","NIL","NIL","N/A","N/A","N/A","N/A",null,null,null,"N/A"]
["N24","NOMURA FA & SEC. (IND) PRIV","03-2166 2636","03-2166 2636","Riskk","Riskk",50050,"WILAYAH PERSEKUTUAN","Kuala Lumpur","NIL","NIL","N/A","N/A","N/A","N/A",null,null,null,"N/A"]
["N25","NOMURA FINANCIAL INV. (KOR)","03-2166 2636","03-2166 2636","Riskk","Riskk",50050,"WILAYAH PERSEKUTUAN","Kuala Lumpur","NIL","NIL","N/A","N/A","N/A","N/A",null,null,null,"N/A"]
["NAB","NATIONAL AUSTRALIA BANK","03-2166 2636","03-2166 2636","Riskk","Riskk",50050,"WILAYAH PERSEKUTUAN","Kuala Lumpur","NIL","NIL","N/A","N/A","N/A","N/A",null,null,null,"N/A"]
["NAI","NAKAI SECURITIES","03-2166 2636","03-2166 2636","Riskk","Riskk",50050,"WILAYAH PERSEKUTUAN","Kuala Lumpur","NIL","NIL","N/A","N/A","N/A","N/A",null,null,null,"N/A"]
["NAK","NAKAHARA SEC","03-2166 2636","03-2166 2636","Riskk","Riskk",50050,"WILAYAH PERSEKUTUAN","Kuala Lumpur","NIL","NIL","N/A","N/A","N/A","N/A",null,null,null,"N/A"]
["NAM","NOMURA ASSET MANAGEMENT","03-2166 2636","03-2166 2636","Riskk","Riskk",50050,"WILAYAH PERSEKUTUAN","Kuala Lumpur","NIL","NIL","N/A","N/A","N/A","N/A",null,null,null,"N/A"]
["NAT","SMBC FRIEND SECURITIE","03-2166 2636","03-2166 2636","Riskk","Riskk",50050,"WILAYAH PERSEKUTUAN","Kuala Lumpur","NIL","NIL","N/A","N/A","N/A","N/A",null,null,null,"N/A"]
["NB","NATIONS BANK","03-2166 2636","03-2166 2636","Riskk","Riskk",50050,"WILAYAH PERSEKUTUAN","Kuala Lumpur","NIL","NIL","N/A","N/A","N/A","N/A",null,null,null,"N/A"]
["NBC","NATIONAL BANK OF CANADA FIN","03-2166 2636","03-2166 2636","Riskk","Riskk",50050,"WILAYAH PERSEKUTUAN","Kuala Lumpur","NIL","NIL","N/A","N/A","N/A","N/A",null,null,null,"N/A"]
["NBI","NOMURA BANK INTERNATIONAL","03-2166 2636","03-2166 2636","Riskk","Riskk",50050,"WILAYAH PERSEKUTUAN","Kuala Lumpur","NIL","NIL","N/A","N/A","N/A","N/A",null,null,null,"N/A"]
["NBP","NATIXIS","03-2166 2636","03-2166 2636","Riskk","Riskk",50050,"WILAYAH PERSEKUTUAN","Kuala Lumpur","NIL","NIL","N/A","N/A","N/A","N/A",null,null,null,"N/A"]
["NBS","NBS","03-2166 2636","03-2166 2636","Riskk","Riskk",50050,"WILAYAH PERSEKUTUAN","Kuala Lumpur","NIL","NIL","N/A","N/A","N/A","N/A",null,null,null,"N/A"]
["NCL","NBC CLEARING SERVICES INC.","03-2166 2636","03-2166 2636","Riskk","Riskk",50050,"WILAYAH PERSEKUTUAN","Kuala Lumpur","NIL","NIL","N/A","N/A","N/A","N/A",null,null,null,"N/A"]
["NCS","NORIN CHUKIN SECURITIES","03-2166 2636","03-2166 2636","Riskk","Riskk",50050,"WILAYAH PERSEKUTUAN","Kuala Lumpur","NIL","NIL","N/A","N/A","N/A","N/A",null,null,null,"N/A"]
["NDH","NEEDHAM","03-2166 2636","03-2166 2636","Riskk","Riskk",50050,"WILAYAH PERSEKUTUAN","Kuala Lumpur","NIL","NIL","N/A","N/A","N/A","N/A",null,null,null,"N/A"]
["NED","NEDGROUP PRIVATEWEALTH STBR","03-2166 2636","03-2166 2636","Riskk","Riskk",50050,"WILAYAH PERSEKUTUAN","Kuala Lumpur","NIL","NIL","N/A","N/A","N/A","N/A",null,null,null,"N/A"]
["NEU","NEUBERGER & BERMAN","03-2166 2636","03-2166 2636","Riskk","Riskk",50050,"WILAYAH PERSEKUTUAN","Kuala Lumpur","NIL","NIL","N/A","N/A","N/A","N/A",null,null,null,"N/A"]
["NFS","NATIONAL FINANCIAL SERVICES","03-2166 2636","03-2166 2636","Riskk","Riskk",50050,"WILAYAH PERSEKUTUAN","Kuala Lumpur","NIL","NIL","N/A","N/A","N/A","N/A",null,null,null,"N/A"]
["NIK","NIKKO SECURITIES","03-2166 2636","03-2166 2636","Riskk","Riskk",50050,"WILAYAH PERSEKUTUAN","Kuala Lumpur","NIL","NIL","N/A","N/A","N/A","N/A",null,null,null,"N/A"]
["NIS","NIHON SECURITIES","03-2166 2636","03-2166 2636","Riskk","Riskk",50050,"WILAYAH PERSEKUTUAN","Kuala Lumpur","NIL","NIL","N/A","N/A","N/A","N/A",null,null,null,"N/A"]
["NKO","SMBC NIKKO SECURITIES INC.","03-2166 2636","03-2166 2636","Riskk","Riskk",50050,"WILAYAH PERSEKUTUAN","Kuala Lumpur","NIL","NIL","N/A","N/A","N/A","N/A",null,null,null,"N/A"]
["NOMHK","NOMURA INTERNATIONAL","03-2166 2636","03-2166 2636","Riskk","Riskk",50050,"WILAYAH PERSEKUTUAN","Kuala Lumpur","NIL","NIL","N/A","N/A","N/A","N/A",null,null,null,"N/A"]
["NOMLN","NOMURA INTERNATIONAL","03-2166 2636","03-2166 2636","Riskk","Riskk",50050,"WILAYAH PERSEKUTUAN","Kuala Lumpur","NIL","NIL","N/A","N/A","N/A","N/A",null,null,null,"N/A"]
["NOMSHK","NOMURA SECURITIES","03-2166 2636","03-2166 2636","Riskk","Riskk",50050,"WILAYAH PERSEKUTUAN","Kuala Lumpur","NIL","NIL","N/A","N/A","N/A","N/A",null,null,null,"N/A"]
["NOMSTK","NOMURA SECURITIES","03-2166 2636","03-2166 2636","Riskk","Riskk",50050,"WILAYAH PERSEKUTUAN","Kuala Lumpur","NIL","NIL","N/A","N/A","N/A","N/A",null,null,null,"N/A"]
["NOMTW","NOMURA SECURITIES TAIPEI","03-2166 2636","03-2166 2636","Riskk","Riskk",50050,"WILAYAH PERSEKUTUAN","Kuala Lumpur","NIL","NIL","N/A","N/A","N/A","N/A",null,null,null,"N/A"]
["NOR","NORIN CENTRAL BANK","03-2166 2636","03-2166 2636","Riskk","Riskk",50050,"WILAYAH PERSEKUTUAN","Kuala Lumpur","NIL","NIL","N/A","N/A","N/A","N/A",null,null,null,"N/A"]
["NORDEA","NORDEA BANK","03-2166 2636","03-2166 2636","Riskk","Riskk",50050,"WILAYAH PERSEKUTUAN","Kuala Lumpur","NIL","NIL","N/A","N/A","N/A","N/A",null,null,null,"N/A"]
["NORT","THE NORTHERN TRUST COMPANY",20748953,"03-20709387","Ms.Amalina / Mr. Abdullah Tahir","8th,Menara Maybank, 100 Jln Tun Perak,",50050,"WILAYAH PERSEKUTUAN","Kuala Lumpur","abdullah.tahir@maybank.com.my","NIL","N/A","N/A","N/A","N/A",null,null,null,"N/A"]
["NSC","N+1 SINGER CAPITAL MARKETS","03-2166 2636","03-2166 2636","Riskk","Riskk",50050,"WILAYAH PERSEKUTUAN","Kuala Lumpur","NIL","NIL","N/A","N/A","N/A","N/A",null,null,null,"N/A"]
["NSD","NCB STOCKBROKERS DUBLIN","03-2166 2636","03-2166 2636","Riskk","Riskk",50050,"WILAYAH PERSEKUTUAN","Kuala Lumpur","NIL","NIL","N/A","N/A","N/A","N/A",null,null,null,"N/A"]
["NTC","NORTHERN TRUST COMPANY","03-2166 2636","03-2166 2636","Riskk","Riskk",50050,"WILAYAH PERSEKUTUAN","Kuala Lumpur","NIL","NIL","N/A","N/A","N/A","N/A",null,null,null,"N/A"]
["NTCLON","NTCLON","03-2166 2636","03-2166 2636","Riskk","Riskk",50050,"WILAYAH PERSEKUTUAN","Kuala Lumpur","NIL","NIL","N/A","N/A","N/A","N/A",null,null,null,"N/A"]
["NUS","NUMIS SECURITIES LIMITED","03-2166 2636","03-2166 2636","Riskk","Riskk",50050,"WILAYAH PERSEKUTUAN","Kuala Lumpur","NIL","NIL","N/A","N/A","N/A","N/A",null,null,null,"N/A"]
["NWC","NATWEST CAPITAL MARKETS","03-2166 2636","03-2166 2636","Riskk","Riskk",50050,"WILAYAH PERSEKUTUAN","Kuala Lumpur","NIL","NIL","N/A","N/A","N/A","N/A",null,null,null,"N/A"]
["OAS","OSK ASIA SECURITIES LIMITED","03-2166 2636","03-2166 2636","Riskk","Riskk",50050,"WILAYAH PERSEKUTUAN","Kuala Lumpur","NIL","NIL","N/A","N/A","N/A","N/A",null,null,null,"N/A"]
["OCB","OVERSEAS CHINESE BANKING","03-2166 2636","03-2166 2636","Riskk","Riskk",50050,"WILAYAH PERSEKUTUAN","Kuala Lumpur","NIL","NIL","N/A","N/A","N/A","N/A",null,null,null,"N/A"]
["OCT","OCTO FINANCES SA","03-2166 2636","03-2166 2636","Riskk","Riskk",50050,"WILAYAH PERSEKUTUAN","Kuala Lumpur","NIL","NIL","N/A","N/A","N/A","N/A",null,null,null,"N/A"]
["ODB","ODDO BHF","03-2166 2636","03-2166 2636","Riskk","Riskk",50050,"WILAYAH PERSEKUTUAN","Kuala Lumpur","NIL","NIL","N/A","N/A","N/A","N/A",null,null,null,"N/A"]
["ODC","ODDO & CIE","03-2166 2636","03-2166 2636","Riskk","Riskk",50050,"WILAYAH PERSEKUTUAN","Kuala Lumpur","NIL","NIL","N/A","N/A","N/A","N/A",null,null,null,"N/A"]
["ODD","DEMAND FOR PURCHASE BY IS","03-2166 2636","03-2166 2636","Riskk","Riskk",50050,"WILAYAH PERSEKUTUAN","Kuala Lumpur","NIL","NIL","N/A","N/A","N/A","N/A",null,null,null,"N/A"]
["ODE","ODEON CAPITAL GROUP LLC","03-2166 2636","03-2166 2636","Riskk","Riskk",50050,"WILAYAH PERSEKUTUAN","Kuala Lumpur","NIL","NIL","N/A","N/A","N/A","N/A",null,null,null,"N/A"]
["ODO","ODDO SECURITIES PARIS","03-2166 2636","03-2166 2636","Riskk","Riskk",50050,"WILAYAH PERSEKUTUAN","Kuala Lumpur","NIL","NIL","N/A","N/A","N/A","N/A",null,null,null,"N/A"]
["OEN","TERA MENKUL DEGERLER A.S.","03-2166 2636","03-2166 2636","Riskk","Riskk",50050,"WILAYAH PERSEKUTUAN","Kuala Lumpur","NIL","NIL","N/A","N/A","N/A","N/A",null,null,null,"N/A"]
["OKS","OKASAN SECURITIES","03-2166 2636","03-2166 2636","Riskk","Riskk",50050,"WILAYAH PERSEKUTUAN","Kuala Lumpur","NIL","NIL","N/A","N/A","N/A","N/A",null,null,null,"N/A"]
["OLI","OLIVETREE SECURITIES LTD","03-2166 2636","03-2166 2636","Riskk","Riskk",50050,"WILAYAH PERSEKUTUAN","Kuala Lumpur","NIL","NIL","N/A","N/A","N/A","N/A",null,null,null,"N/A"]
["OPH","OPPENHEIMER & CO INC","03-2166 2636","03-2166 2636","Riskk","Riskk",50050,"WILAYAH PERSEKUTUAN","Kuala Lumpur","NIL","NIL","N/A","N/A","N/A","N/A",null,null,null,"N/A"]
["OPT","OPTIVER","03-2166 2636","03-2166 2636","Riskk","Riskk",50050,"WILAYAH PERSEKUTUAN","Kuala Lumpur","NIL","NIL","N/A","N/A","N/A","N/A",null,null,null,"N/A"]
["ORD","ORD MINNETT","03-2166 2636","03-2166 2636","Riskk","Riskk",50050,"WILAYAH PERSEKUTUAN","Kuala Lumpur","NIL","NIL","N/A","N/A","N/A","N/A",null,null,null,"N/A"]
["ORI","ORIEL SECURITIES","03-2166 2636","03-2166 2636","Riskk","Riskk",50050,"WILAYAH PERSEKUTUAN","Kuala Lumpur","NIL","NIL","N/A","N/A","N/A","N/A",null,null,null,"N/A"]
["OSK","OSK INVESTMENT BANK BERHAD","03-2166 2636","03-2166 2636","Riskk","Riskk",50050,"WILAYAH PERSEKUTUAN","Kuala Lumpur","NIL","NIL","N/A","N/A","N/A","N/A",null,null,null,"N/A"]
["OTA","OTA LLC","03-2166 2636","03-2166 2636","Riskk","Riskk",50050,"WILAYAH PERSEKUTUAN","Kuala Lumpur","NIL","NIL","N/A","N/A","N/A","N/A",null,null,null,"N/A"]
["OTH","OTHERS","03-2166 2636","03-2166 2636","Riskk","Riskk",50050,"WILAYAH PERSEKUTUAN","Kuala Lumpur","NIL","NIL","N/A","N/A","N/A","N/A",null,null,null,"N/A"]
["OTR","OTR GLOBAL","03-2166 2636","03-2166 2636","Riskk","Riskk",50050,"WILAYAH PERSEKUTUAN","Kuala Lumpur","NIL","NIL","N/A","N/A","N/A","N/A",null,null,null,"N/A"]
["OYA","OYAK MENKUL DEGERELER A.S.","03-2166 2636","03-2166 2636","Riskk","Riskk",50050,"WILAYAH PERSEKUTUAN","Kuala Lumpur","NIL","NIL","N/A","N/A","N/A","N/A",null,null,null,"N/A"]
["PA","PHILIPPINE ASIA EQUITY SEC","03-2166 2636","03-2166 2636","Riskk","Riskk",50050,"WILAYAH PERSEKUTUAN","Kuala Lumpur","NIL","NIL","N/A","N/A","N/A","N/A",null,null,null,"N/A"]
["PAC","BANCO BTG PACTUAL S.A.","03-2166 2636","03-2166 2636","Riskk","Riskk",50050,"WILAYAH PERSEKUTUAN","Kuala Lumpur","NIL","NIL","N/A","N/A","N/A","N/A",null,null,null,"N/A"]
["PAN","PANMURE GORDON & CO","03-2166 2636","03-2166 2636","Riskk","Riskk",50050,"WILAYAH PERSEKUTUAN","Kuala Lumpur","NIL","NIL","N/A","N/A","N/A","N/A",null,null,null,"N/A"]
["PAP","PAREL PARIS","03-2166 2636","03-2166 2636","Riskk","Riskk",50050,"WILAYAH PERSEKUTUAN","Kuala Lumpur","NIL","NIL","N/A","N/A","N/A","N/A",null,null,null,"N/A"]
["PAR","PARETO SECURITIES","03-2166 2636","03-2166 2636","Riskk","Riskk",50050,"WILAYAH PERSEKUTUAN","Kuala Lumpur","NIL","NIL","N/A","N/A","N/A","N/A",null,null,null,"N/A"]
["PAV","PAVILION GLOBAL MARKETS LTD","03-2166 2636","03-2166 2636","Riskk","Riskk",50050,"WILAYAH PERSEKUTUAN","Kuala Lumpur","NIL","NIL","N/A","N/A","N/A","N/A",null,null,null,"N/A"]
["PB","PUBLIC BANK SECURITIES","03-2166 2636","03-2166 2636","Riskk","Riskk",50050,"WILAYAH PERSEKUTUAN","Kuala Lumpur","NIL","NIL","N/A","N/A","N/A","N/A",null,null,null,"N/A"]
["PBB","PB SECURITIES SDN BHD","03-2166 2636","03-2166 2636","Riskk","Riskk",50050,"WILAYAH PERSEKUTUAN","Kuala Lumpur","NIL","NIL","N/A","N/A","N/A","N/A",null,null,null,"N/A"]
["PBI","PBI SECURITIES","03-2166 2636","03-2166 2636","Riskk","Riskk",50050,"WILAYAH PERSEKUTUAN","Kuala Lumpur","NIL","NIL","N/A","N/A","N/A","N/A",null,null,null,"N/A"]
["PBK","PUBLIC BANK BERHAD","03-2166 2636","03-2166 2636","Riskk","Riskk",50050,"WILAYAH PERSEKUTUAN","Kuala Lumpur","NIL","NIL","PBBEMYKLXXX","N/A","N/A",1554010330,"PUBLIC BANK BERHAD","XXX",null,"N/A"]
["PBS","PRUDENTIAL SECURITIES","03-2166 2636","03-2166 2636","Riskk","Riskk",50050,"WILAYAH PERSEKUTUAN","Kuala Lumpur","NIL","NIL","N/A","N/A","N/A","N/A",null,null,null,"N/A"]
["PBT","PRESCOTT BALL & TURBIN","03-2166 2636","03-2166 2636","Riskk","Riskk",50050,"WILAYAH PERSEKUTUAN","Kuala Lumpur","NIL","NIL","N/A","N/A","N/A","N/A",null,null,null,"N/A"]
["PCF","PRUDENTIAL CAPITAL FUNDIN","03-2166 2636","03-2166 2636","Riskk","Riskk",50050,"WILAYAH PERSEKUTUAN","Kuala Lumpur","NIL","NIL","N/A","N/A","N/A","N/A",null,null,null,"N/A"]
["PCS","PCS SECURITIES","03-2166 2636","03-2166 2636","Riskk","Riskk",50050,"WILAYAH PERSEKUTUAN","Kuala Lumpur","NIL","NIL","N/A","N/A","N/A","N/A",null,null,null,"N/A"]
["PEH","PEEL HUNT","03-2166 2636","03-2166 2636","Riskk","Riskk",50050,"WILAYAH PERSEKUTUAN","Kuala Lumpur","NIL","NIL","N/A","N/A","N/A","N/A",null,null,null,"N/A"]
["PEN","PENSON FINANCIAL SERVICES","03-2166 2636","03-2166 2636","Riskk","Riskk",50050,"WILAYAH PERSEKUTUAN","Kuala Lumpur","NIL","NIL","N/A","N/A","N/A","N/A",null,null,null,"N/A"]
["PEP","PICKERING ENERGY PARTNERS I","03-2166 2636","03-2166 2636","Riskk","Riskk",50050,"WILAYAH PERSEKUTUAN","Kuala Lumpur","NIL","NIL","N/A","N/A","N/A","N/A",null,null,null,"N/A"]
["PER","PERSHING","03-2166 2636","03-2166 2636","Riskk","Riskk",50050,"WILAYAH PERSEKUTUAN","Kuala Lumpur","NIL","NIL","N/A","N/A","N/A","N/A",null,null,null,"N/A"]
["PET","PETERCAM","03-2166 2636","03-2166 2636","Riskk","Riskk",50050,"WILAYAH PERSEKUTUAN","Kuala Lumpur","NIL","NIL","N/A","N/A","N/A","N/A",null,null,null,"N/A"]
["PG","PARMURE GORDON LONDON","03-2166 2636","03-2166 2636","Riskk","Riskk",50050,"WILAYAH PERSEKUTUAN","Kuala Lumpur","NIL","NIL","N/A","N/A","N/A","N/A",null,null,null,"N/A"]
["PGS","PEREGRINE SECURITIES","03-2166 2636","03-2166 2636","Riskk","Riskk",50050,"WILAYAH PERSEKUTUAN","Kuala Lumpur","NIL","NIL","N/A","N/A","N/A","N/A",null,null,null,"N/A"]
["PHI","PHILLIP SECURITIES","03-2166 2636","03-2166 2636","Riskk","Riskk",50050,"WILAYAH PERSEKUTUAN","Kuala Lumpur","NIL","NIL","N/A","N/A","N/A","N/A",null,null,null,"N/A"]
["PHP","MEESPIERSON N.V.","03-2166 2636","03-2166 2636","Riskk","Riskk",50050,"WILAYAH PERSEKUTUAN","Kuala Lumpur","NIL","NIL","N/A","N/A","N/A","N/A",null,null,null,"N/A"]
["PIB","PUBLIC ISLAMIC BANK","03-2166 2636","03-2166 2636","Riskk","Riskk",50050,"WILAYAH PERSEKUTUAN","Kuala Lumpur","NIL","NIL","PIBEMYK1XXX","N/A","N/A","MY21BNMA1554020571","Public Islamic Bank Berhad","XXX",null,"IS"]
["PIC","PICTET & CIE","03-2166 2636","03-2166 2636","Riskk","Riskk",50050,"WILAYAH PERSEKUTUAN","Kuala Lumpur","NIL","NIL","N/A","N/A","N/A","N/A",null,null,null,"N/A"]
["PIM","PIMCO","03-2166 2636","03-2166 2636","Riskk","Riskk",50050,"WILAYAH PERSEKUTUAN","Kuala Lumpur","NIL","NIL","N/A","N/A","N/A","N/A",null,null,null,"N/A"]
["PIO","PICTET OVERSEAS INC","03-2166 2636","03-2166 2636","Riskk","Riskk",50050,"WILAYAH PERSEKUTUAN","Kuala Lumpur","NIL","NIL","N/A","N/A","N/A","N/A",null,null,null,"N/A"]
["PJC","PIPER JAFFRAY & CO","03-2166 2636","03-2166 2636","Riskk","Riskk",50050,"WILAYAH PERSEKUTUAN","Kuala Lumpur","NIL","NIL","N/A","N/A","N/A","N/A",null,null,null,"N/A"]
["PJH","PIPER JAFFRAY AND HOPWOOD","03-2166 2636","03-2166 2636","Riskk","Riskk",50050,"WILAYAH PERSEKUTUAN","Kuala Lumpur","NIL","NIL","N/A","N/A","N/A","N/A",null,null,null,"N/A"]
["PNC","PNC CAPITAL MARKETS LLC","03-2166 2636","03-2166 2636","Riskk","Riskk",50050,"WILAYAH PERSEKUTUAN","Kuala Lumpur","NIL","NIL","N/A","N/A","N/A","N/A",null,null,null,"N/A"]
["PND","PHILIPS & DREW","03-2166 2636","03-2166 2636","Riskk","Riskk",50050,"WILAYAH PERSEKUTUAN","Kuala Lumpur","NIL","NIL","N/A","N/A","N/A","N/A",null,null,null,"N/A"]
["PNS","PENSERRA","03-2166 2636","03-2166 2636","Riskk","Riskk",50050,"WILAYAH PERSEKUTUAN","Kuala Lumpur","NIL","NIL","N/A","N/A","N/A","N/A",null,null,null,"N/A"]
["POT","POTTER PARTNERS","03-2166 2636","03-2166 2636","Riskk","Riskk",50050,"WILAYAH PERSEKUTUAN","Kuala Lumpur","NIL","NIL","N/A","N/A","N/A","N/A",null,null,null,"N/A"]
["POW","POTTER WARBURG","03-2166 2636","03-2166 2636","Riskk","Riskk",50050,"WILAYAH PERSEKUTUAN","Kuala Lumpur","NIL","NIL","N/A","N/A","N/A","N/A",null,null,null,"N/A"]
["PP","PHILEO, PEREGRINE SECURITIE","03-2166 2636","03-2166 2636","Riskk","Riskk",50050,"WILAYAH PERSEKUTUAN","Kuala Lumpur","NIL","NIL","N/A","N/A","N/A","N/A",null,null,null,"N/A"]
["PPS","PIERPONT SECURITIES","03-2166 2636","03-2166 2636","Riskk","Riskk",50050,"WILAYAH PERSEKUTUAN","Kuala Lumpur","NIL","NIL","N/A","N/A","N/A","N/A",null,null,null,"N/A"]
["PRA","PROBURSA INTERNATIONAL IN","03-2166 2636","03-2166 2636","Riskk","Riskk",50050,"WILAYAH PERSEKUTUAN","Kuala Lumpur","NIL","NIL","N/A","N/A","N/A","N/A",null,null,null,"N/A"]
["PRI","PRINCERIDGE","03-2166 2636","03-2166 2636","Riskk","Riskk",50050,"WILAYAH PERSEKUTUAN","Kuala Lumpur","NIL","NIL","N/A","N/A","N/A","N/A",null,null,null,"N/A"]
["PRO","PROTOS STOCK BROKERS","03-2166 2636","03-2166 2636","Riskk","Riskk",50050,"WILAYAH PERSEKUTUAN","Kuala Lumpur","NIL","NIL","N/A","N/A","N/A","N/A",null,null,null,"N/A"]
["PS","PRYCE SECURITIES INC.","03-2166 2636","03-2166 2636","Riskk","Riskk",50050,"WILAYAH PERSEKUTUAN","Kuala Lumpur","NIL","NIL","N/A","N/A","N/A","N/A",null,null,null,"N/A"]
["PSL","PATERSONS SECURITIES LTD","03-2166 2636","03-2166 2636","Riskk","Riskk",50050,"WILAYAH PERSEKUTUAN","Kuala Lumpur","NIL","NIL","N/A","N/A","N/A","N/A",null,null,null,"N/A"]
["PT","PEREIRE TOD","03-2166 2636","03-2166 2636","Riskk","Riskk",50050,"WILAYAH PERSEKUTUAN","Kuala Lumpur","NIL","NIL","N/A","N/A","N/A","N/A",null,null,null,"N/A"]
["PTR","PETRA CAPITAL","03-2166 2636","03-2166 2636","Riskk","Riskk",50050,"WILAYAH PERSEKUTUAN","Kuala Lumpur","NIL","NIL","N/A","N/A","N/A","N/A",null,null,null,"N/A"]
["PVB","PRIVATBANKEN LIMITED","03-2166 2636","03-2166 2636","Riskk","Riskk",50050,"WILAYAH PERSEKUTUAN","Kuala Lumpur","NIL","NIL","N/A","N/A","N/A","N/A",null,null,null,"N/A"]
["PVL","PERUVAL S.A.","03-2166 2636","03-2166 2636","Riskk","Riskk",50050,"WILAYAH PERSEKUTUAN","Kuala Lumpur","NIL","NIL","N/A","N/A","N/A","N/A",null,null,null,"N/A"]
["PW","PAINE WEBBER","03-2166 2636","03-2166 2636","Riskk","Riskk",50050,"WILAYAH PERSEKUTUAN","Kuala Lumpur","NIL","NIL","N/A","N/A","N/A","N/A",null,null,null,"N/A"]
["PWY","PINAPTON WARGNY","03-2166 2636","03-2166 2636","Riskk","Riskk",50050,"WILAYAH PERSEKUTUAN","Kuala Lumpur","NIL","NIL","N/A","N/A","N/A","N/A",null,null,null,"N/A"]
["RAB","RABO BANK","03-2166 2636","03-2166 2636","Riskk","Riskk",50050,"WILAYAH PERSEKUTUAN","Kuala Lumpur","NIL","NIL","N/A","N/A","N/A","N/A",null,null,null,"N/A"]
["RAIF","RAIFFEISEN AUSTRIA","03-2166 2636","03-2166 2636","Riskk","Riskk",50050,"WILAYAH PERSEKUTUAN","Kuala Lumpur","NIL","NIL","N/A","N/A","N/A","N/A",null,null,null,"N/A"]
["RBC","ROYAL BANK OF CANADA","03-2166 2636","03-2166 2636","Riskk","Riskk",50050,"WILAYAH PERSEKUTUAN","Kuala Lumpur","NIL","NIL","N/A","N/A","N/A","N/A",null,null,null,"N/A"]
["RBCD","RBC DOMINION SECURITIES","03-2166 2636","03-2166 2636","Riskk","Riskk",50050,"WILAYAH PERSEKUTUAN","Kuala Lumpur","NIL","NIL","N/A","N/A","N/A","N/A",null,null,null,"N/A"]
["RBJ","RBS SECURITIES","03-2166 2636","03-2166 2636","Riskk","Riskk",50050,"WILAYAH PERSEKUTUAN","Kuala Lumpur","NIL","NIL","N/A","N/A","N/A","N/A",null,null,null,"N/A"]
["RBL","NATWEST (LDN)","03-2166 2636","03-2166 2636","Riskk","Riskk",50050,"WILAYAH PERSEKUTUAN","Kuala Lumpur","NIL","NIL","N/A","N/A","N/A","N/A",null,null,null,"N/A"]
["RBS","ROYAL BANK OF SCOTLAND FIN","03-2166 2636","03-2166 2636","Riskk","Riskk",50050,"WILAYAH PERSEKUTUAN","Kuala Lumpur","NIL","NIL","N/A","N/A","N/A","N/A",null,null,null,"N/A"]
["RBT","ROYAL BANK TRUST","03-2166 2636","03-2166 2636","Riskk","Riskk",50050,"WILAYAH PERSEKUTUAN","Kuala Lumpur","NIL","NIL","N/A","N/A","N/A","N/A",null,null,null,"N/A"]
["RC","ROBERTSON COLEMAN","03-2166 2636","03-2166 2636","Riskk","Riskk",50050,"WILAYAH PERSEKUTUAN","Kuala Lumpur","NIL","NIL","N/A","N/A","N/A","N/A",null,null,null,"N/A"]
["RCA","ROYAL BANK OF CANADA","03-2166 2636","03-2166 2636","Riskk","Riskk",50050,"WILAYAH PERSEKUTUAN","Kuala Lumpur","NIL","NIL","N/A","N/A","N/A","N/A",null,null,null,"N/A"]
["RCM","RELIGARE CAPITAL MARKET","03-2166 2636","03-2166 2636","Riskk","Riskk",50050,"WILAYAH PERSEKUTUAN","Kuala Lumpur","NIL","NIL","N/A","N/A","N/A","N/A",null,null,null,"N/A"]
["RCT","RBC TRUST CO.(OLD)","03-2166 2636","03-2166 2636","Riskk","Riskk",50050,"WILAYAH PERSEKUTUAN","Kuala Lumpur","NIL","NIL","N/A","N/A","N/A","N/A",null,null,null,"N/A"]
["RDI","RBC DEXIA INVESTOR SERVICES","03-2166 2636","03-2166 2636","Riskk","Riskk",50050,"WILAYAH PERSEKUTUAN","Kuala Lumpur","NIL","NIL","N/A","N/A","N/A","N/A",null,null,null,"N/A"]
["RED","REDBURN PARTNERS LLP","03-2166 2636","03-2166 2636","Riskk","Riskk",50050,"WILAYAH PERSEKUTUAN","Kuala Lumpur","NIL","NIL","N/A","N/A","N/A","N/A",null,null,null,"N/A"]
["REN","RENAISSANCE CAPITAL LTD","03-2166 2636","03-2166 2636","Riskk","Riskk",50050,"WILAYAH PERSEKUTUAN","Kuala Lumpur","NIL","NIL","N/A","N/A","N/A","N/A",null,null,null,"N/A"]
["REU","REUSCHEL & CO.","03-2166 2636","03-2166 2636","Riskk","Riskk",50050,"WILAYAH PERSEKUTUAN","Kuala Lumpur","NIL","NIL","N/A","N/A","N/A","N/A",null,null,null,"N/A"]
["RF","ROBERT FLEMING","03-2166 2636","03-2166 2636","Riskk","Riskk",50050,"WILAYAH PERSEKUTUAN","Kuala Lumpur","NIL","NIL","N/A","N/A","N/A","N/A",null,null,null,"N/A"]
["RGS","RGS","03-2166 2636","03-2166 2636","Riskk","Riskk",50050,"WILAYAH PERSEKUTUAN","Kuala Lumpur","NIL","NIL","N/A","N/A","N/A","N/A",null,null,null,"N/A"]
["RHD","RHD BANK BHD","03-2166 2636","03-2166 2636","Riskk","Riskk",50050,"WILAYAH PERSEKUTUAN","Kuala Lumpur","NIL","NIL","N/A","N/A","N/A","N/A",null,null,null,"N/A"]
["RHK","RHB BANK","03-2166 2636","03-2166 2636","Riskk","Riskk",50050,"WILAYAH PERSEKUTUAN","Kuala Lumpur","NIL","NIL","RHBBMYKLXXX","N/A","N/A","MY05BNMA15541010189 ","RHB BANK",null,null,"N/A"]
["RHS","RHB INVESTMENT BANK BERHAD","603-9287 3377","603-9287 3377","Treasry Operations","Riskk",50050,"WILAYAH PERSEKUTUAN","Kuala Lumpur","NIL","NIL","OSKIMYKLXXX","N/A","N/A","MY39BNMA 1554190773",null,"N/A",null,"N/A"]
["RIB","RHB ISLAMIC BANK","03-2166 2636","03-2166 2636","Riskk","Riskk",50050,"WILAYAH PERSEKUTUAN","Kuala Lumpur","NIL","NIL","RHBAMYKLXXX","N/A","N/A","MY40BNMA1554020423","RHB Islamic Bank Berhad","XXX",null,"IS"]
["RJA","RAYMOND JAMES & ASSOCIATE","03-2166 2636","03-2166 2636","Riskk","Riskk",50050,"WILAYAH PERSEKUTUAN","Kuala Lumpur","NIL","NIL","N/A","N/A","N/A","N/A",null,null,null,"N/A"]
["RJS","RAYMOND JAMES SECURITIES","03-2166 2636","03-2166 2636","Riskk","Riskk",50050,"WILAYAH PERSEKUTUAN","Kuala Lumpur","NIL","NIL","N/A","N/A","N/A","N/A",null,null,null,"N/A"]
["RMS","RENAISSANCE MACRO SECURTIES","03-2166 2636","03-2166 2636","Riskk","Riskk",50050,"WILAYAH PERSEKUTUAN","Kuala Lumpur","NIL","NIL","N/A","N/A","N/A","N/A",null,null,null,"N/A"]
["ROS","RHB OSK SECURITIES","03-2166 2636","03-2166 2636","Riskk","Riskk",50050,"WILAYAH PERSEKUTUAN","Kuala Lumpur","NIL","NIL","N/A","N/A","N/A","N/A",null,null,null,"N/A"]
["RRC","ROULSTON RESEACH CORP","03-2166 2636","03-2166 2636","Riskk","Riskk",50050,"WILAYAH PERSEKUTUAN","Kuala Lumpur","NIL","NIL","N/A","N/A","N/A","N/A",null,null,null,"N/A"]
["RRE","RREEF AMERICAS","03-2166 2636","03-2166 2636","Riskk","Riskk",50050,"WILAYAH PERSEKUTUAN","Kuala Lumpur","NIL","NIL","N/A","N/A","N/A","N/A",null,null,null,"N/A"]
["RRI","RRI","03-2166 2636","03-2166 2636","Riskk","Riskk",50050,"WILAYAH PERSEKUTUAN","Kuala Lumpur","NIL","NIL","N/A","N/A","N/A","N/A",null,null,null,"N/A"]
["RS","ROBERTSON STEPHENS & CO","03-2166 2636","03-2166 2636","Riskk","Riskk",50050,"WILAYAH PERSEKUTUAN","Kuala Lumpur","NIL","NIL","N/A","N/A","N/A","N/A",null,null,null,"N/A"]
["RSE","R SEELAUS","03-2166 2636","03-2166 2636","Riskk","Riskk",50050,"WILAYAH PERSEKUTUAN","Kuala Lumpur","NIL","NIL","N/A","N/A","N/A","N/A",null,null,null,"N/A"]
["RTC","RBC TRUST CO.","03-2166 2636","03-2166 2636","Riskk","Riskk",50050,"WILAYAH PERSEKUTUAN","Kuala Lumpur","NIL","NIL","N/A","N/A","N/A","N/A",null,null,null,"N/A"]
["RVS","REPUBLICA VALORES S.A.","03-2166 2636","03-2166 2636","Riskk","Riskk",50050,"WILAYAH PERSEKUTUAN","Kuala Lumpur","NIL","NIL","N/A","N/A","N/A","N/A",null,null,null,"N/A"]
["RWA","ROBERT WOOD,ANZ MACAUGHAN","03-2166 2636","03-2166 2636","Riskk","Riskk",50050,"WILAYAH PERSEKUTUAN","Kuala Lumpur","NIL","NIL","N/A","N/A","N/A","N/A",null,null,null,"N/A"]
["RWB","ROBERT W. BAIRD & CO.","03-2166 2636","03-2166 2636","Riskk","Riskk",50050,"WILAYAH PERSEKUTUAN","Kuala Lumpur","NIL","NIL","N/A","N/A","N/A","N/A",null,null,null,"N/A"]
["RWC","ROWE & CO","03-2166 2636","03-2166 2636","Riskk","Riskk",50050,"WILAYAH PERSEKUTUAN","Kuala Lumpur","NIL","NIL","N/A","N/A","N/A","N/A",null,null,null,"N/A"]
["RWD","R.W,DAY AND COMPANY LTD","03-2166 2636","03-2166 2636","Riskk","Riskk",50050,"WILAYAH PERSEKUTUAN","Kuala Lumpur","NIL","NIL","N/A","N/A","N/A","N/A",null,null,null,"N/A"]
["RWM","RBC WEALTH MANAGEMENT","03-2166 2636","03-2166 2636","Riskk","Riskk",50050,"WILAYAH PERSEKUTUAN","Kuala Lumpur","NIL","NIL","N/A","N/A","N/A","N/A",null,null,null,"N/A"]
["RWP","R.W.PRESSPRICH & CO","03-2166 2636","03-2166 2636","Riskk","Riskk",50050,"WILAYAH PERSEKUTUAN","Kuala Lumpur","NIL","NIL","N/A","N/A","N/A","N/A",null,null,null,"N/A"]
["RZB","RAIFFEISEN ZENTRALBANK","03-2166 2636","03-2166 2636","Riskk","Riskk",50050,"WILAYAH PERSEKUTUAN","Kuala Lumpur","NIL","NIL","N/A","N/A","N/A","N/A",null,null,null,"N/A"]
["S:CIMB","CIMB Bank Berhad",20748953,"3-20709387","Ms.Amalina / Mr. Abdullah Tahir","8th,Menara Maybank, 100 Jln Tun Perak,",50050,"WILAYAH PERSEKUTUAN","Kuala Lumpur","abdullah.tahir@maybank.com.my","NIL","N/A","N/A","N/A","N/A",null,null,null,"N/A"]
["S:CITI","Citibank Berhad",20748953,"3-20709387","Ms.Amalina / Mr. Abdullah Tahir","8th,Menara Maybank, 100 Jln Tun Perak,",50050,"WILAYAH PERSEKUTUAN","Kuala Lumpur","abdullah.tahir@maybank.com.my","NIL","N/A","N/A","N/A","N/A",null,null,null,"N/A"]
["S:DB","Deutsche Bank (Malaysia) Berhad",20748953,"3-20709387","Ms.Amalina / Mr. Abdullah Tahir","8th,Menara Maybank, 100 Jln Tun Perak,",50050,"WILAYAH PERSEKUTUAN","Kuala Lumpur","abdullah.tahir@maybank.com.my","NIL","N/A","N/A","N/A","N/A",null,null,null,"N/A"]
["S:MBB","Malayan Banking Berhad",20748953,"3-20709387","Ms.Amalina / Mr. Abdullah Tahir","8th,Menara Maybank, 100 Jln Tun Perak,",50050,"WILAYAH PERSEKUTUAN","Kuala Lumpur","abdullah.tahir@maybank.com.my","NIL","N/A","N/A","N/A","N/A",null,null,null,"N/A"]
["SA","STUDIO ALBERTINI","03-2166 2636","03-2166 2636","Riskk","Riskk",50050,"WILAYAH PERSEKUTUAN","Kuala Lumpur","NIL","NIL","N/A","N/A","N/A","N/A",null,null,null,"N/A"]
["SAL","STERNE, AGEE ＆ LEACH","03-2166 2636","03-2166 2636","Riskk","Riskk",50050,"WILAYAH PERSEKUTUAN","Kuala Lumpur","NIL","NIL","N/A","N/A","N/A","N/A",null,null,null,"N/A"]
["SAM","SAMSUNG SECURITIES","03-2166 2636","03-2166 2636","Riskk","Riskk",50050,"WILAYAH PERSEKUTUAN","Kuala Lumpur","NIL","NIL","N/A","N/A","N/A","N/A",null,null,null,"N/A"]
["SANT","BCO SANTANDER DE NEGOCIOS","03-2166 2636","03-2166 2636","Riskk","Riskk",50050,"WILAYAH PERSEKUTUAN","Kuala Lumpur","NIL","NIL","N/A","N/A","N/A","N/A",null,null,null,"N/A"]
["SAR","BANK SARASIN","03-2166 2636","03-2166 2636","Riskk","Riskk",50050,"WILAYAH PERSEKUTUAN","Kuala Lumpur","NIL","NIL","N/A","N/A","N/A","N/A",null,null,null,"N/A"]
["SAS","SASSOON","03-2166 2636","03-2166 2636","Riskk","Riskk",50050,"WILAYAH PERSEKUTUAN","Kuala Lumpur","NIL","NIL","N/A","N/A","N/A","N/A",null,null,null,"N/A"]
["SB","CITIGROUP GLOBAL MARKETS","03-2166 2636","03-2166 2636","Riskk","Riskk",50050,"WILAYAH PERSEKUTUAN","Kuala Lumpur","NIL","NIL","N/A","N/A","N/A","N/A",null,null,null,"N/A"]
["SBB","SBB SECURITIES","03-2166 2636","03-2166 2636","Riskk","Riskk",50050,"WILAYAH PERSEKUTUAN","Kuala Lumpur","NIL","NIL","N/A","N/A","N/A","N/A",null,null,null,"N/A"]
["SBC","SBCI SECURITIES","03-2166 2636","03-2166 2636","Riskk","Riskk",50050,"WILAYAH PERSEKUTUAN","Kuala Lumpur","NIL","NIL","N/A","N/A","N/A","N/A",null,null,null,"N/A"]
["SBF","SBCI FINANCE ASIA LTD.","03-2166 2636","03-2166 2636","Riskk","Riskk",50050,"WILAYAH PERSEKUTUAN","Kuala Lumpur","NIL","NIL","N/A","N/A","N/A","N/A",null,null,null,"N/A"]
["SBG","SBG SECURITIES","03-2166 2636","03-2166 2636","Riskk","Riskk",50050,"WILAYAH PERSEKUTUAN","Kuala Lumpur","NIL","NIL","N/A","N/A","N/A","N/A",null,null,null,"N/A"]
["SBR","SBERBANK CIB (UK) LIMITED","03-2166 2636","03-2166 2636","Riskk","Riskk",50050,"WILAYAH PERSEKUTUAN","Kuala Lumpur","NIL","NIL","N/A","N/A","N/A","N/A",null,null,null,"N/A"]
["SBT","SBT","03-2166 2636","03-2166 2636","Riskk","Riskk",50050,"WILAYAH PERSEKUTUAN","Kuala Lumpur","NIL","NIL","N/A","N/A","N/A","N/A",null,null,null,"N/A"]
["SBW","UBS SECURITIES","03-2166 2636","03-2166 2636","Riskk","Riskk",50050,"WILAYAH PERSEKUTUAN","Kuala Lumpur","NIL","NIL","N/A","N/A","N/A","N/A",null,null,null,"N/A"]
["SC","SCOTIA CAPITAL","03-2166 2636","03-2166 2636","Riskk","Riskk",50050,"WILAYAH PERSEKUTUAN","Kuala Lumpur","NIL","NIL","N/A","N/A","N/A","N/A",null,null,null,"N/A"]
["SCB","SANFORD C BERNSTEIN","03-2166 2636","03-2166 2636","Riskk","Riskk",50050,"WILAYAH PERSEKUTUAN","Kuala Lumpur","NIL","NIL","N/A","N/A","N/A","N/A",null,null,null,"N/A"]
["SCC","SAMCO CAPITAL MARKETS","03-2166 2636","03-2166 2636","Riskk","Riskk",50050,"WILAYAH PERSEKUTUAN","Kuala Lumpur","NIL","NIL","N/A","N/A","N/A","N/A",null,null,null,"N/A"]
["SCE","SOUTHERN CROSS EQUITIES LTD","03-2166 2636","03-2166 2636","Riskk","Riskk",50050,"WILAYAH PERSEKUTUAN","Kuala Lumpur","NIL","NIL","N/A","N/A","N/A","N/A",null,null,null,"N/A"]
["SCH","SOUTH CHINA SECURITIES LTD","03-2166 2636","03-2166 2636","Riskk","Riskk",50050,"WILAYAH PERSEKUTUAN","Kuala Lumpur","NIL","NIL","N/A","N/A","N/A","N/A",null,null,null,"N/A"]
["SCI","THE STANFORD COMPANY INC.","03-2166 2636","03-2166 2636","Riskk","Riskk",50050,"WILAYAH PERSEKUTUAN","Kuala Lumpur","NIL","NIL","N/A","N/A","N/A","N/A",null,null,null,"N/A"]
["SCL","SIDOTI & COMPANY","03-2166 2636","03-2166 2636","Riskk","Riskk",50050,"WILAYAH PERSEKUTUAN","Kuala Lumpur","NIL","NIL","N/A","N/A","N/A","N/A",null,null,null,"N/A"]
["SCM","STARBOARD CAPITAL MARKETS","03-2166 2636","03-2166 2636","Riskk","Riskk",50050,"WILAYAH PERSEKUTUAN","Kuala Lumpur","NIL","NIL","N/A","N/A","N/A","N/A",null,null,null,"N/A"]
["SCO","SCOTIABANK","03-2166 2636","03-2166 2636","Riskk","Riskk",50050,"WILAYAH PERSEKUTUAN","Kuala Lumpur","NIL","NIL","N/A","N/A","N/A","N/A",null,null,null,"N/A"]
["SCS","STANDARD CHARTER SECURITIES","03-2166 2636","03-2166 2636","Riskk","Riskk",50050,"WILAYAH PERSEKUTUAN","Kuala Lumpur","NIL","NIL","N/A","N/A","N/A","N/A",null,null,null,"N/A"]
["SDV","SA SOCIEDAD DE VALORES","03-2166 2636","03-2166 2636","Riskk","Riskk",50050,"WILAYAH PERSEKUTUAN","Kuala Lumpur","NIL","NIL","N/A","N/A","N/A","N/A",null,null,null,"N/A"]
["SEA","SEAMICO SECURITES","03-2166 2636","03-2166 2636","Riskk","Riskk",50050,"WILAYAH PERSEKUTUAN","Kuala Lumpur","NIL","NIL","N/A","N/A","N/A","N/A",null,null,null,"N/A"]
["SEB","SOCIETE EUROPEENE DE BANQ","03-2166 2636","03-2166 2636","Riskk","Riskk",50050,"WILAYAH PERSEKUTUAN","Kuala Lumpur","NIL","NIL","N/A","N/A","N/A","N/A",null,null,null,"N/A"]
["SEB1","SEB STOCKHOLM","03-2166 2636","03-2166 2636","Riskk","Riskk",50050,"WILAYAH PERSEKUTUAN","Kuala Lumpur","NIL","NIL","N/A","N/A","N/A","N/A",null,null,null,"N/A"]
["SEG","SEAPORT GROUP SECURITIES LL","03-2166 2636","03-2166 2636","Riskk","Riskk",50050,"WILAYAH PERSEKUTUAN","Kuala Lumpur","NIL","NIL","N/A","N/A","N/A","N/A",null,null,null,"N/A"]
["SEL","SELLIER SA","03-2166 2636","03-2166 2636","Riskk","Riskk",50050,"WILAYAH PERSEKUTUAN","Kuala Lumpur","NIL","NIL","N/A","N/A","N/A","N/A",null,null,null,"N/A"]
["SFC","STUART FRANKEL & CO.INC","03-2166 2636","03-2166 2636","Riskk","Riskk",50050,"WILAYAH PERSEKUTUAN","Kuala Lumpur","NIL","NIL","N/A","N/A","N/A","N/A",null,null,null,"N/A"]
["SFF","SCOTT & STRINGFELLOW FINANC","03-2166 2636","03-2166 2636","Riskk","Riskk",50050,"WILAYAH PERSEKUTUAN","Kuala Lumpur","NIL","NIL","N/A","N/A","N/A","N/A",null,null,null,"N/A"]
["SGC","SG COWEN SECURITIES CORP","03-2166 2636","03-2166 2636","Riskk","Riskk",50050,"WILAYAH PERSEKUTUAN","Kuala Lumpur","NIL","NIL","N/A","N/A","N/A","N/A",null,null,null,"N/A"]
["SGD","SOCIETE BOURSE GILBERT DUPO","03-2166 2636","03-2166 2636","Riskk","Riskk",50050,"WILAYAH PERSEKUTUAN","Kuala Lumpur","NIL","NIL","N/A","N/A","N/A","N/A",null,null,null,"N/A"]
["SGI","SUN GLOBAL INVESTMENTS LTD","03-2166 2636","03-2166 2636","Riskk","Riskk",50050,"WILAYAH PERSEKUTUAN","Kuala Lumpur","NIL","NIL","N/A","N/A","N/A","N/A",null,null,null,"N/A"]
["SGM","STATE STREET G MARKETS SG","03-2166 2636","03-2166 2636","Riskk","Riskk",50050,"WILAYAH PERSEKUTUAN","Kuala Lumpur","NIL","NIL","N/A","N/A","N/A","N/A",null,null,null,"N/A"]
["SGS","SEI GLOBAL SERVICES INC","03-2166 2636","03-2166 2636","Riskk","Riskk",50050,"WILAYAH PERSEKUTUAN","Kuala Lumpur","NIL","NIL","N/A","N/A","N/A","N/A",null,null,null,"N/A"]
["SGT","SOCIETE GENERALE PRIVATE BA","03-2166 2636","03-2166 2636","Riskk","Riskk",50050,"WILAYAH PERSEKUTUAN","Kuala Lumpur","NIL","NIL","N/A","N/A","N/A","N/A",null,null,null,"N/A"]
["SHE","SHENYIN WANGUO SECS LTD","03-2166 2636","03-2166 2636","Riskk","Riskk",50050,"WILAYAH PERSEKUTUAN","Kuala Lumpur","NIL","NIL","N/A","N/A","N/A","N/A",null,null,null,"N/A"]
["SHI","SHINSEI BANK","03-2166 2636","03-2166 2636","Riskk","Riskk",50050,"WILAYAH PERSEKUTUAN","Kuala Lumpur","NIL","NIL","N/A","N/A","N/A","N/A",null,null,null,"N/A"]
["SHK","SUN HUNG KAI","03-2166 2636","03-2166 2636","Riskk","Riskk",50050,"WILAYAH PERSEKUTUAN","Kuala Lumpur","NIL","NIL","N/A","N/A","N/A","N/A",null,null,null,"N/A"]
["SHN","SHINHAN INVESTMENT CORPORAT","03-2166 2636","03-2166 2636","Riskk","Riskk",50050,"WILAYAH PERSEKUTUAN","Kuala Lumpur","NIL","NIL","N/A","N/A","N/A","N/A",null,null,null,"N/A"]
["SHO","SHOKO CHUKIN BANK","03-2166 2636","03-2166 2636","Riskk","Riskk",50050,"WILAYAH PERSEKUTUAN","Kuala Lumpur","NIL","NIL","N/A","N/A","N/A","N/A",null,null,null,"N/A"]
["SHR","SCHRODER SECURITIES","03-2166 2636","03-2166 2636","Riskk","Riskk",50050,"WILAYAH PERSEKUTUAN","Kuala Lumpur","NIL","NIL","N/A","N/A","N/A","N/A",null,null,null,"N/A"]
["SHS","SHINSEI SECURITIES","03-2166 2636","03-2166 2636","Riskk","Riskk",50050,"WILAYAH PERSEKUTUAN","Kuala Lumpur","NIL","NIL","N/A","N/A","N/A","N/A",null,null,null,"N/A"]
["SHU","SHUAA CAPITAL PSC","03-2166 2636","03-2166 2636","Riskk","Riskk",50050,"WILAYAH PERSEKUTUAN","Kuala Lumpur","NIL","NIL","N/A","N/A","N/A","N/A",null,null,null,"N/A"]
["SHW","SHAW AND PARTNERS LIMITED","03-2166 2636","03-2166 2636","Riskk","Riskk",50050,"WILAYAH PERSEKUTUAN","Kuala Lumpur","NIL","NIL","N/A","N/A","N/A","N/A",null,null,null,"N/A"]
["SIM","SIMMONS AND COMPANY","03-2166 2636","03-2166 2636","Riskk","Riskk",50050,"WILAYAH PERSEKUTUAN","Kuala Lumpur","NIL","NIL","N/A","N/A","N/A","N/A",null,null,null,"N/A"]
["SIP","SIERRA PACIFIC SECURITIES","03-2166 2636","03-2166 2636","Riskk","Riskk",50050,"WILAYAH PERSEKUTUAN","Kuala Lumpur","NIL","NIL","N/A","N/A","N/A","N/A",null,null,null,"N/A"]
["SIS","GOOD MORNING SECURITIES","03-2166 2636","03-2166 2636","Riskk","Riskk",50050,"WILAYAH PERSEKUTUAN","Kuala Lumpur","NIL","NIL","N/A","N/A","N/A","N/A",null,null,null,"N/A"]
["SIX","SIX SIS AG","03-2166 2636","03-2166 2636","Riskk","Riskk",50050,"WILAYAH PERSEKUTUAN","Kuala Lumpur","NIL","NIL","N/A","N/A","N/A","N/A",null,null,null,"N/A"]
["SKA","SKA","03-2166 2636","03-2166 2636","Riskk","Riskk",50050,"WILAYAH PERSEKUTUAN","Kuala Lumpur","NIL","NIL","N/A","N/A","N/A","N/A",null,null,null,"N/A"]
["SKB","SHINKIN CENTRAL BANK","03-2166 2636","03-2166 2636","Riskk","Riskk",50050,"WILAYAH PERSEKUTUAN","Kuala Lumpur","NIL","NIL","N/A","N/A","N/A","N/A",null,null,null,"N/A"]
["SKI","IDFC SECURITIES LTD","03-2166 2636","03-2166 2636","Riskk","Riskk",50050,"WILAYAH PERSEKUTUAN","Kuala Lumpur","NIL","NIL","N/A","N/A","N/A","N/A",null,null,null,"N/A"]
["SKL","ENSKILDA SEC","03-2166 2636","03-2166 2636","Riskk","Riskk",50050,"WILAYAH PERSEKUTUAN","Kuala Lumpur","NIL","NIL","N/A","N/A","N/A","N/A",null,null,null,"N/A"]
["SKS","SHINKIN SECURITIES","03-2166 2636","03-2166 2636","Riskk","Riskk",50050,"WILAYAH PERSEKUTUAN","Kuala Lumpur","NIL","NIL","N/A","N/A","N/A","N/A",null,null,null,"N/A"]
["SKT","SHINKIN TRUST & BANKING","03-2166 2636","03-2166 2636","Riskk","Riskk",50050,"WILAYAH PERSEKUTUAN","Kuala Lumpur","NIL","NIL","N/A","N/A","N/A","N/A",null,null,null,"N/A"]
["SM","SBCI SAVORY MILLN LTD.","03-2166 2636","03-2166 2636","Riskk","Riskk",50050,"WILAYAH PERSEKUTUAN","Kuala Lumpur","NIL","NIL","N/A","N/A","N/A","N/A",null,null,null,"N/A"]
["SMG","SAMUEL MONTAGU AND CO","03-2166 2636","03-2166 2636","Riskk","Riskk",50050,"WILAYAH PERSEKUTUAN","Kuala Lumpur","NIL","NIL","N/A","N/A","N/A","N/A",null,null,null,"N/A"]
["SMI","SCOTIA MCLEOD","03-2166 2636","03-2166 2636","Riskk","Riskk",50050,"WILAYAH PERSEKUTUAN","Kuala Lumpur","NIL","NIL","N/A","N/A","N/A","N/A",null,null,null,"N/A"]
["SMR","SUMRIDGE PARTNERS","03-2166 2636","03-2166 2636","Riskk","Riskk",50050,"WILAYAH PERSEKUTUAN","Kuala Lumpur","NIL","NIL","N/A","N/A","N/A","N/A",null,null,null,"N/A"]
["SMT","SUMMIT SECURITIES GROUP","03-2166 2636","03-2166 2636","Riskk","Riskk",50050,"WILAYAH PERSEKUTUAN","Kuala Lumpur","NIL","NIL","N/A","N/A","N/A","N/A",null,null,null,"N/A"]
["SNC","SMITH NEW COURT","03-2166 2636","03-2166 2636","Riskk","Riskk",50050,"WILAYAH PERSEKUTUAN","Kuala Lumpur","NIL","NIL","N/A","N/A","N/A","N/A",null,null,null,"N/A"]
["SNK","SHINKOU SEC.","03-2166 2636","03-2166 2636","Riskk","Riskk",50050,"WILAYAH PERSEKUTUAN","Kuala Lumpur","NIL","NIL","N/A","N/A","N/A","N/A",null,null,null,"N/A"]
["SNO","SMBC NIKKO CAPITAL MARKETS","03-2166 2636","03-2166 2636","Riskk","Riskk",50050,"WILAYAH PERSEKUTUAN","Kuala Lumpur","NIL","NIL","N/A","N/A","N/A","N/A",null,null,null,"N/A"]
["SOC","SOCIETE GENERAL","03-2166 2636","03-2166 2636","Riskk","Riskk",50050,"WILAYAH PERSEKUTUAN","Kuala Lumpur","NIL","NIL","N/A","N/A","N/A","N/A",null,null,null,"N/A"]
["SOG","SOCIETE GENERALE","03-2166 2636","03-2166 2636","Riskk","Riskk",50050,"WILAYAH PERSEKUTUAN","Kuala Lumpur","NIL","NIL","N/A","N/A","N/A","N/A",null,null,null,"N/A"]
["SON","SANDLER, ONEILL & PARTNERS","03-2166 2636","03-2166 2636","Riskk","Riskk",50050,"WILAYAH PERSEKUTUAN","Kuala Lumpur","NIL","NIL","N/A","N/A","N/A","N/A",null,null,null,"N/A"]
["SOP","SAL OPPENHEIM JR. & CIE","03-2166 2636","03-2166 2636","Riskk","Riskk",50050,"WILAYAH PERSEKUTUAN","Kuala Lumpur","NIL","NIL","N/A","N/A","N/A","N/A",null,null,null,"N/A"]
["SOW","SOUTHWEST SECURITIES","03-2166 2636","03-2166 2636","Riskk","Riskk",50050,"WILAYAH PERSEKUTUAN","Kuala Lumpur","NIL","NIL","N/A","N/A","N/A","N/A",null,null,null,"N/A"]
["SPA","SPARK CAPITAL","03-2166 2636","03-2166 2636","Riskk","Riskk",50050,"WILAYAH PERSEKUTUAN","Kuala Lumpur","NIL","NIL","N/A","N/A","N/A","N/A",null,null,null,"N/A"]
["SPL","SPEAR LEEDS&KELLOGG","03-2166 2636","03-2166 2636","Riskk","Riskk",50050,"WILAYAH PERSEKUTUAN","Kuala Lumpur","NIL","NIL","N/A","N/A","N/A","N/A",null,null,null,"N/A"]
["SPS","SEAPORT SECURITIES","03-2166 2636","03-2166 2636","Riskk","Riskk",50050,"WILAYAH PERSEKUTUAN","Kuala Lumpur","NIL","NIL","N/A","N/A","N/A","N/A",null,null,null,"N/A"]
["SRA","SAMUEL A. RAMIREZ&CO INC","03-2166 2636","03-2166 2636","Riskk","Riskk",50050,"WILAYAH PERSEKUTUAN","Kuala Lumpur","NIL","NIL","N/A","N/A","N/A","N/A",null,null,null,"N/A"]
["SRB","SANTANDER INVESTMENT BOLSA","03-2166 2636","03-2166 2636","Riskk","Riskk",50050,"WILAYAH PERSEKUTUAN","Kuala Lumpur","NIL","NIL","N/A","N/A","N/A","N/A",null,null,null,"N/A"]
["SRG","SURUGA BANK","03-2166 2636","03-2166 2636","Riskk","Riskk",50050,"WILAYAH PERSEKUTUAN","Kuala Lumpur","NIL","NIL","N/A","N/A","N/A","N/A",null,null,null,"N/A"]
["SRS","SANTANDER INV SECURITIES","03-2166 2636","03-2166 2636","Riskk","Riskk",50050,"WILAYAH PERSEKUTUAN","Kuala Lumpur","NIL","NIL","N/A","N/A","N/A","N/A",null,null,null,"N/A"]
["SSB","STATE STREET BANK","03-2166 2636","03-2166 2636","Riskk","Riskk",50050,"WILAYAH PERSEKUTUAN","Kuala Lumpur","NIL","NIL","N/A","N/A","N/A","N/A",null,null,null,"N/A"]
["SSBT","STATE STREET BANK AND TRUST COMPANY",20748953,"03-20709387","Ms.Amalina / Mr. Abdullah Tahir","8th,Menara Maybank, 100 Jln Tun Perak,",50050,"WILAYAH PERSEKUTUAN","Kuala Lumpur","abdullah.tahir@maybank.com.my","NIL","N/A","N/A","N/A","N/A",null,null,null,"N/A"]
["SSC","SSC","03-2166 2636","03-2166 2636","Riskk","Riskk",50050,"WILAYAH PERSEKUTUAN","Kuala Lumpur","NIL","NIL","N/A","N/A","N/A","N/A",null,null,null,"N/A"]
["SSG","STATE STREET GCM CLEARING","03-2166 2636","03-2166 2636","Riskk","Riskk",50050,"WILAYAH PERSEKUTUAN","Kuala Lumpur","NIL","NIL","N/A","N/A","N/A","N/A",null,null,null,"N/A"]
["SSS","STANDARD CHARTERED SAADIQ","03-2166 2636","03-2166 2636","Riskk","Riskk",50050,"WILAYAH PERSEKUTUAN","Kuala Lumpur","NIL","NIL","N/A","N/A","N/A","N/A",null,"XXX",null,"N/A"]
["SST","STATE STREET TRUST AND BANK","03-2166 2636","03-2166 2636","Riskk","Riskk",50050,"WILAYAH PERSEKUTUAN","Kuala Lumpur","NIL","NIL","N/A","N/A","N/A","N/A",null,null,null,"N/A"]
["ST","STRAUSS TURNBULL","03-2166 2636","03-2166 2636","Riskk","Riskk",50050,"WILAYAH PERSEKUTUAN","Kuala Lumpur","NIL","NIL","N/A","N/A","N/A","N/A",null,null,null,"N/A"]
["STA","STANDARD CHARTERED BANK","03-2166 2636","603 2711 7774","Treasury Operations","Riskk",50050,"WILAYAH PERSEKUTUAN","Kuala Lumpur","NIL","NIL","SCBLMYKXXXX","N/A",1554010143,"N/A",null,"N/A",null,"N/A"]
["STB","SUMITOMO MITSUI TRUST BANK","03-2166 2636","03-2166 2636","Riskk","Riskk",50050,"WILAYAH PERSEKUTUAN","Kuala Lumpur","NIL","NIL","N/A","N/A","N/A","N/A",null,null,null,"N/A"]
["STD","STANDARD NEW YORK","03-2166 2636","03-2166 2636","Riskk","Riskk",50050,"WILAYAH PERSEKUTUAN","Kuala Lumpur","NIL","NIL","N/A","N/A","N/A","N/A",null,null,null,"N/A"]
["STE","STEPHENS INC","03-2166 2636","03-2166 2636","Riskk","Riskk",50050,"WILAYAH PERSEKUTUAN","Kuala Lumpur","NIL","NIL","N/A","N/A","N/A","N/A",null,null,null,"N/A"]
["STI","STIFEL NICOLAUS","03-2166 2636","03-2166 2636","Riskk","Riskk",50050,"WILAYAH PERSEKUTUAN","Kuala Lumpur","NIL","NIL","N/A","N/A","N/A","N/A",null,null,null,"N/A"]
["STR","SUNTRUST ROBINSON HUMPHREY","03-2166 2636","03-2166 2636","Riskk","Riskk",50050,"WILAYAH PERSEKUTUAN","Kuala Lumpur","NIL","NIL","N/A","N/A","N/A","N/A",null,null,null,"N/A"]
["STS","SUMITOMO TRUST SECURITIES","03-2166 2636","03-2166 2636","Riskk","Riskk",50050,"WILAYAH PERSEKUTUAN","Kuala Lumpur","NIL","NIL","N/A","N/A","N/A","N/A",null,null,null,"N/A"]
["STX","STX FIXED INCOME","03-2166 2636","03-2166 2636","Riskk","Riskk",50050,"WILAYAH PERSEKUTUAN","Kuala Lumpur","NIL","NIL","N/A","N/A","N/A","N/A",null,null,null,"N/A"]
["SUB","SUNTRUST BANK","03-2166 2636","03-2166 2636","Riskk","Riskk",50050,"WILAYAH PERSEKUTUAN","Kuala Lumpur","NIL","NIL","N/A","N/A","N/A","N/A",null,null,null,"N/A"]
["SUD","SUEDWESTBANK AG","03-2166 2636","03-2166 2636","Riskk","Riskk",50050,"WILAYAH PERSEKUTUAN","Kuala Lumpur","NIL","NIL","N/A","N/A","N/A","N/A",null,null,null,"N/A"]
["SUM","MITSUI SUMITOMO BANK","03-2166 2636","03-2166 2636","Riskk","Riskk",50050,"WILAYAH PERSEKUTUAN","Kuala Lumpur","NIL","NIL","N/A","N/A","N/A","N/A",null,null,null,"N/A"]
["SUN","SUNTRUST INVESTMENT SERVICE","03-2166 2636","03-2166 2636","Riskk","Riskk",50050,"WILAYAH PERSEKUTUAN","Kuala Lumpur","NIL","NIL","N/A","N/A","N/A","N/A",null,null,null,"N/A"]
["SUS","SUSQUEHANNA","03-2166 2636","03-2166 2636","Riskk","Riskk",50050,"WILAYAH PERSEKUTUAN","Kuala Lumpur","NIL","NIL","N/A","N/A","N/A","N/A",null,null,null,"N/A"]
["SV","SVENSKA INTERNATIONAL EQU","03-2166 2636","03-2166 2636","Riskk","Riskk",50050,"WILAYAH PERSEKUTUAN","Kuala Lumpur","NIL","NIL","N/A","N/A","N/A","N/A",null,null,null,"N/A"]
["SVC","STURDIVANT & CO.","03-2166 2636","03-2166 2636","Riskk","Riskk",50050,"WILAYAH PERSEKUTUAN","Kuala Lumpur","NIL","NIL","N/A","N/A","N/A","N/A",null,null,null,"N/A"]
["SVH","SVENSKA HANDELSBANKEN","03-2166 2636","03-2166 2636","Riskk","Riskk",50050,"WILAYAH PERSEKUTUAN","Kuala Lumpur","NIL","NIL","N/A","N/A","N/A","N/A",null,null,null,"N/A"]
["SW","SHENYIN WANGUO SEC","03-2166 2636","03-2166 2636","Riskk","Riskk",50050,"WILAYAH PERSEKUTUAN","Kuala Lumpur","NIL","NIL","N/A","N/A","N/A","N/A",null,null,null,"N/A"]
["SWB","SWEDBANK","03-2166 2636","03-2166 2636","Riskk","Riskk",50050,"WILAYAH PERSEKUTUAN","Kuala Lumpur","NIL","NIL","N/A","N/A","N/A","N/A",null,null,null,"N/A"]
["SWD","SWEDBANK MARKETS","03-2166 2636","03-2166 2636","Riskk","Riskk",50050,"WILAYAH PERSEKUTUAN","Kuala Lumpur","NIL","NIL","N/A","N/A","N/A","N/A",null,null,null,"N/A"]
["SWS","SHANGHAI SHENYIN SECURITIES","03-2166 2636","03-2166 2636","Riskk","Riskk",50050,"WILAYAH PERSEKUTUAN","Kuala Lumpur","NIL","NIL","N/A","N/A","N/A","N/A",null,null,null,"N/A"]
["SY","SUNKYONG SECURITIES","03-2166 2636","03-2166 2636","Riskk","Riskk",50050,"WILAYAH PERSEKUTUAN","Kuala Lumpur","NIL","NIL","N/A","N/A","N/A","N/A",null,null,null,"N/A"]
["SYD","SYD BANK","03-2166 2636","03-2166 2636","Riskk","Riskk",50050,"WILAYAH PERSEKUTUAN","Kuala Lumpur","NIL","NIL","N/A","N/A","N/A","N/A",null,null,null,"N/A"]
["SYO","SANKYO SEC","03-2166 2636","03-2166 2636","Riskk","Riskk",50050,"WILAYAH PERSEKUTUAN","Kuala Lumpur","NIL","NIL","N/A","N/A","N/A","N/A",null,null,null,"N/A"]
["SZK","THE SHIZUOKA BANK,LTD.","03-2166 2636","03-2166 2636","Riskk","Riskk",50050,"WILAYAH PERSEKUTUAN","Kuala Lumpur","NIL","NIL","N/A","N/A","N/A","N/A",null,null,null,"N/A"]
["TAC","TACHIBANA SECURITIES","03-2166 2636","03-2166 2636","Riskk","Riskk",50050,"WILAYAH PERSEKUTUAN","Kuala Lumpur","NIL","NIL","N/A","N/A","N/A","N/A",null,null,null,"N/A"]
["TAG","TELSEY ADVISORY GROUP","03-2166 2636","03-2166 2636","Riskk","Riskk",50050,"WILAYAH PERSEKUTUAN","Kuala Lumpur","NIL","NIL","N/A","N/A","N/A","N/A",null,null,null,"N/A"]
["TAK","TAKAGI SEC","03-2166 2636","03-2166 2636","Riskk","Riskk",50050,"WILAYAH PERSEKUTUAN","Kuala Lumpur","NIL","NIL","N/A","N/A","N/A","N/A",null,null,null,"N/A"]
["TBH","TIMBER HILL LLC","03-2166 2636","03-2166 2636","Riskk","Riskk",50050,"WILAYAH PERSEKUTUAN","Kuala Lumpur","NIL","NIL","N/A","N/A","N/A","N/A",null,null,null,"N/A"]
["TBN","TBN","03-2166 2636","03-2166 2636","Riskk","Riskk",50050,"WILAYAH PERSEKUTUAN","Kuala Lumpur","NIL","NIL","N/A","N/A","N/A","N/A",null,null,null,"N/A"]
["TBS","UFJ TSUBASA SEC.","03-2166 2636","03-2166 2636","Riskk","Riskk",50050,"WILAYAH PERSEKUTUAN","Kuala Lumpur","NIL","NIL","N/A","N/A","N/A","N/A",null,null,null,"N/A"]
["TCB","TRUST&CUSTODY SERVICES BANK","03-2166 2636","03-2166 2636","Riskk","Riskk",50050,"WILAYAH PERSEKUTUAN","Kuala Lumpur","NIL","NIL","N/A","N/A","N/A","N/A",null,null,null,"N/A"]
["TCM","TOKAI CAPITAL MARKETS","03-2166 2636","03-2166 2636","Riskk","Riskk",50050,"WILAYAH PERSEKUTUAN","Kuala Lumpur","NIL","NIL","N/A","N/A","N/A","N/A",null,null,null,"N/A"]
["TDB","TORONTO DOMINION","03-2166 2636","03-2166 2636","Riskk","Riskk",50050,"WILAYAH PERSEKUTUAN","Kuala Lumpur","NIL","NIL","N/A","N/A","N/A","N/A",null,null,null,"N/A"]
["TDE","TD SECURITIES","03-2166 2636","03-2166 2636","Riskk","Riskk",50050,"WILAYAH PERSEKUTUAN","Kuala Lumpur","NIL","NIL","N/A","N/A","N/A","N/A",null,null,null,"N/A"]
["TDI","TROIKA DIALOG","03-2166 2636","03-2166 2636","Riskk","Riskk",50050,"WILAYAH PERSEKUTUAN","Kuala Lumpur","NIL","NIL","N/A","N/A","N/A","N/A",null,null,null,"N/A"]
["TDS","TORONTO DOMINION SECURITIES","03-2166 2636","03-2166 2636","Riskk","Riskk",50050,"WILAYAH PERSEKUTUAN","Kuala Lumpur","NIL","NIL","N/A","N/A","N/A","N/A",null,null,null,"N/A"]
["TEB","TEB YATIRIM MENKUL DEGERLER","03-2166 2636","03-2166 2636","Riskk","Riskk",50050,"WILAYAH PERSEKUTUAN","Kuala Lumpur","NIL","NIL","N/A","N/A","N/A","N/A",null,null,null,"N/A"]
["TFB","TAIPEI FUBON COMMERCIAL BAN","03-2166 2636","03-2166 2636","Riskk","Riskk",50050,"WILAYAH PERSEKUTUAN","Kuala Lumpur","NIL","NIL","N/A","N/A","N/A","N/A",null,null,null,"N/A"]
["TFS","TOYOTA FINANCIAL SERVICE SE","03-2166 2636","03-2166 2636","Riskk","Riskk",50050,"WILAYAH PERSEKUTUAN","Kuala Lumpur","NIL","NIL","N/A","N/A","N/A","N/A",null,null,null,"N/A"]
["THO","T HOARE & CO","03-2166 2636","03-2166 2636","Riskk","Riskk",50050,"WILAYAH PERSEKUTUAN","Kuala Lumpur","NIL","NIL","N/A","N/A","N/A","N/A",null,null,null,"N/A"]
["TIC","TICONDEROGA SECURITIES","03-2166 2636","03-2166 2636","Riskk","Riskk",50050,"WILAYAH PERSEKUTUAN","Kuala Lumpur","NIL","NIL","N/A","N/A","N/A","N/A",null,null,null,"N/A"]
["TIR","TIEDEMANN INTERNATIONAL R","03-2166 2636","03-2166 2636","Riskk","Riskk",50050,"WILAYAH PERSEKUTUAN","Kuala Lumpur","NIL","NIL","N/A","N/A","N/A","N/A",null,null,null,"N/A"]
["TKS","TOKAI TOKYO SECURITIES","03-2166 2636","03-2166 2636","Riskk","Riskk",50050,"WILAYAH PERSEKUTUAN","Kuala Lumpur","NIL","NIL","N/A","N/A","N/A","N/A",null,null,null,"N/A"]
["TKY","TOKYO TANSHI","03-2166 2636","03-2166 2636","Riskk","Riskk",50050,"WILAYAH PERSEKUTUAN","Kuala Lumpur","NIL","NIL","N/A","N/A","N/A","N/A",null,null,null,"N/A"]
["TM","MITSUBISHI-TOKYO UFJ INTL","03-2166 2636","03-2166 2636","Riskk","Riskk",50050,"WILAYAH PERSEKUTUAN","Kuala Lumpur","NIL","NIL","N/A","N/A","N/A","N/A",null,null,null,"N/A"]
["TMS","THAMESWAY SECURITIES","03-2166 2636","03-2166 2636","Riskk","Riskk",50050,"WILAYAH PERSEKUTUAN","Kuala Lumpur","NIL","NIL","N/A","N/A","N/A","N/A",null,null,null,"N/A"]
["TMU","TOKYO MITSUBISHI INT","03-2166 2636","03-2166 2636","Riskk","Riskk",50050,"WILAYAH PERSEKUTUAN","Kuala Lumpur","NIL","NIL","N/A","N/A","N/A","N/A",null,null,null,"N/A"]
["TOB","TAKE OVER BID","03-2166 2636","03-2166 2636","Riskk","Riskk",50050,"WILAYAH PERSEKUTUAN","Kuala Lumpur","NIL","NIL","N/A","N/A","N/A","N/A",null,null,null,"N/A"]
["TPB","THIRD PARTY BROKER","03-2166 2636","03-2166 2636","Riskk","Riskk",50050,"WILAYAH PERSEKUTUAN","Kuala Lumpur","NIL","NIL","N/A","N/A","N/A","N/A",null,null,null,"N/A"]
["TRO","TROIKA DIALOG","03-2166 2636","03-2166 2636","Riskk","Riskk",50050,"WILAYAH PERSEKUTUAN","Kuala Lumpur","NIL","NIL","N/A","N/A","N/A","N/A",null,null,null,"N/A"]
["TSE","TOKYO STOCK EXCHANGE","03-2166 2636","03-2166 2636","Riskk","Riskk",50050,"WILAYAH PERSEKUTUAN","Kuala Lumpur","NIL","NIL","N/A","N/A","N/A","N/A",null,null,null,"N/A"]
["TW","TAIWAN SECURITIES","03-2166 2636","03-2166 2636","Riskk","Riskk",50050,"WILAYAH PERSEKUTUAN","Kuala Lumpur","NIL","NIL","N/A","N/A","N/A","N/A",null,null,null,"N/A"]
["TY","TONG YANG SECURITIES","03-2166 2636","03-2166 2636","Riskk","Riskk",50050,"WILAYAH PERSEKUTUAN","Kuala Lumpur","NIL","NIL","N/A","N/A","N/A","N/A",null,null,null,"N/A"]
["UB","UBS AG","03-2166 2636","03-2166 2636","Riskk","Riskk",50050,"WILAYAH PERSEKUTUAN","Kuala Lumpur","NIL","NIL","N/A","N/A","N/A","N/A",null,null,null,"N/A"]
["UBA","UNICREDIT BANK AUSTRIA AG","03-2166 2636","03-2166 2636","Riskk","Riskk",50050,"WILAYAH PERSEKUTUAN","Kuala Lumpur","NIL","NIL","N/A","N/A","N/A","N/A",null,null,null,"N/A"]
["UBB","UOB BANK","03-2166 2636","03-2166 2636","Riskk","Riskk",50050,"WILAYAH PERSEKUTUAN","Kuala Lumpur","NIL","NIL","UOVBMYKLXXX","N/A","N/A","MY17BNMA1554010264",null,null,null,"N/A"]
["UBN","US BANK NA","03-2166 2636","03-2166 2636","Riskk","Riskk",50050,"WILAYAH PERSEKUTUAN","Kuala Lumpur","NIL","NIL","N/A","N/A","N/A","N/A",null,null,null,"N/A"]
["UBS","UBS WARBURG","03-2166 2636","03-2166 2636","Riskk","Riskk",50050,"WILAYAH PERSEKUTUAN","Kuala Lumpur","NIL","NIL","N/A","N/A","N/A","N/A",null,null,null,"N/A"]
["UBT","UBS TRUST & BANKING","03-2166 2636","03-2166 2636","Riskk","Riskk",50050,"WILAYAH PERSEKUTUAN","Kuala Lumpur","NIL","NIL","N/A","N/A","N/A","N/A",null,null,null,"N/A"]
["UEY","UEDA YAGITANSHI","03-2166 2636","03-2166 2636","Riskk","Riskk",50050,"WILAYAH PERSEKUTUAN","Kuala Lumpur","NIL","NIL","N/A","N/A","N/A","N/A",null,null,null,"N/A"]
["UII","UNICREDITO ITALIANO SPA","03-2166 2636","03-2166 2636","Riskk","Riskk",50050,"WILAYAH PERSEKUTUAN","Kuala Lumpur","NIL","NIL","N/A","N/A","N/A","N/A",null,null,null,"N/A"]
["UIS","UIS","03-2166 2636","03-2166 2636","Riskk","Riskk",50050,"WILAYAH PERSEKUTUAN","Kuala Lumpur","NIL","NIL","N/A","N/A","N/A","N/A",null,null,null,"N/A"]
["UNB","UNIBANK","03-2166 2636","03-2166 2636","Riskk","Riskk",50050,"WILAYAH PERSEKUTUAN","Kuala Lumpur","NIL","NIL","N/A","N/A","N/A","N/A",null,null,null,"N/A"]
["UOB","UOB KAY HIAN PVT LTD","03-2166 2636","03-2166 2636","Riskk","Riskk",50050,"WILAYAH PERSEKUTUAN","Kuala Lumpur","NIL","NIL","N/A","N/A","N/A","N/A",null,null,null,"N/A"]
["USB","US BANCORP PIPER JEFFRAY","03-2166 2636","03-2166 2636","Riskk","Riskk",50050,"WILAYAH PERSEKUTUAN","Kuala Lumpur","NIL","NIL","N/A","N/A","N/A","N/A",null,null,null,"N/A"]
["USI","US BANCORP INVESTMENTS INC","03-2166 2636","03-2166 2636","Riskk","Riskk",50050,"WILAYAH PERSEKUTUAN","Kuala Lumpur","NIL","NIL","N/A","N/A","N/A","N/A",null,null,null,"N/A"]
["UTS","UTSUMIYA SEC","03-2166 2636","03-2166 2636","Riskk","Riskk",50050,"WILAYAH PERSEKUTUAN","Kuala Lumpur","NIL","NIL","N/A","N/A","N/A","N/A",null,null,null,"N/A"]
["VBC","VICKERS BALLAS + CO (S)","03-2166 2636","03-2166 2636","Riskk","Riskk",50050,"WILAYAH PERSEKUTUAN","Kuala Lumpur","NIL","NIL","N/A","N/A","N/A","N/A",null,null,null,"N/A"]
["VCG","VCG SECURITIES","03-2166 2636","03-2166 2636","Riskk","Riskk",50050,"WILAYAH PERSEKUTUAN","Kuala Lumpur","NIL","NIL","N/A","N/A","N/A","N/A",null,null,null,"N/A"]
["VCS","VIET CAPITAL SECURITIES","03-2166 2636","03-2166 2636","Riskk","Riskk",50050,"WILAYAH PERSEKUTUAN","Kuala Lumpur","NIL","NIL","N/A","N/A","N/A","N/A",null,null,null,"N/A"]
["VER","VEREINS UND WESTBANK AG","03-2166 2636","03-2166 2636","Riskk","Riskk",50050,"WILAYAH PERSEKUTUAN","Kuala Lumpur","NIL","NIL","N/A","N/A","N/A","N/A",null,null,null,"N/A"]
["VIS","VINING SPARKS","03-2166 2636","03-2166 2636","Riskk","Riskk",50050,"WILAYAH PERSEKUTUAN","Kuala Lumpur","NIL","NIL","N/A","N/A","N/A","N/A",null,null,null,"N/A"]
["VTB","VTB CAPITAL","03-2166 2636","03-2166 2636","Riskk","Riskk",50050,"WILAYAH PERSEKUTUAN","Kuala Lumpur","NIL","NIL","N/A","N/A","N/A","N/A",null,null,null,"N/A"]
["VTF","VIRTU FINANCIAL","03-2166 2636","03-2166 2636","Riskk","Riskk",50050,"WILAYAH PERSEKUTUAN","Kuala Lumpur","NIL","NIL","N/A","N/A","N/A","N/A",null,null,null,"N/A"]
["WAC","WOOD AND COMPANY","03-2166 2636","03-2166 2636","Riskk","Riskk",50050,"WILAYAH PERSEKUTUAN","Kuala Lumpur","NIL","NIL","N/A","N/A","N/A","N/A",null,null,null,"N/A"]
["WB","WILLIAM BLAIR & CO.","03-2166 2636","03-2166 2636","Riskk","Riskk",50050,"WILAYAH PERSEKUTUAN","Kuala Lumpur","NIL","NIL","N/A","N/A","N/A","N/A",null,null,null,"N/A"]
["WBS","WEDBUSH SECURITIES","03-2166 2636","03-2166 2636","Riskk","Riskk",50050,"WILAYAH PERSEKUTUAN","Kuala Lumpur","NIL","NIL","N/A","N/A","N/A","N/A",null,null,null,"N/A"]
["WCB","WACHOVIA BANK","03-2166 2636","03-2166 2636","Riskk","Riskk",50050,"WILAYAH PERSEKUTUAN","Kuala Lumpur","NIL","NIL","N/A","N/A","N/A","N/A",null,null,null,"N/A"]
["WCV","WACHOVIA SECURITIES","03-2166 2636","03-2166 2636","Riskk","Riskk",50050,"WILAYAH PERSEKUTUAN","Kuala Lumpur","NIL","NIL","N/A","N/A","N/A","N/A",null,null,null,"N/A"]
["WDL","WEST DEUTSCHE LANDE BANK","03-2166 2636","03-2166 2636","Riskk","Riskk",50050,"WILAYAH PERSEKUTUAN","Kuala Lumpur","NIL","NIL","N/A","N/A","N/A","N/A",null,null,null,"N/A"]
["WE","WEEDEN AND CO","03-2166 2636","03-2166 2636","Riskk","Riskk",50050,"WILAYAH PERSEKUTUAN","Kuala Lumpur","NIL","NIL","N/A","N/A","N/A","N/A",null,null,null,"N/A"]
["WES","WESTON GROUP","03-2166 2636","03-2166 2636","Riskk","Riskk",50050,"WILAYAH PERSEKUTUAN","Kuala Lumpur","NIL","NIL","N/A","N/A","N/A","N/A",null,null,null,"N/A"]
["WFB","WELLS FRAGO BANK,N.A.","03-2166 2636","03-2166 2636","Riskk","Riskk",50050,"WILAYAH PERSEKUTUAN","Kuala Lumpur","NIL","NIL","N/A","N/A","N/A","N/A",null,null,null,"N/A"]
["WFL","WINTERFLOOD SECURITIES","03-2166 2636","03-2166 2636","Riskk","Riskk",50050,"WILAYAH PERSEKUTUAN","Kuala Lumpur","NIL","NIL","N/A","N/A","N/A","N/A",null,null,null,"N/A"]
["WFS","WHEAT, FIRST SECURITIES INC","03-2166 2636","03-2166 2636","Riskk","Riskk",50050,"WILAYAH PERSEKUTUAN","Kuala Lumpur","NIL","NIL","N/A","N/A","N/A","N/A",null,null,null,"N/A"]
["WGC","CIBC WORLD MARKETS INC.","03-2166 2636","03-2166 2636","Riskk","Riskk",50050,"WILAYAH PERSEKUTUAN","Kuala Lumpur","NIL","NIL","N/A","N/A","N/A","N/A",null,null,null,"N/A"]
["WHC","WILLIAMS DE BROE HILL CHAPL","03-2166 2636","03-2166 2636","Riskk","Riskk",50050,"WILAYAH PERSEKUTUAN","Kuala Lumpur","NIL","NIL","N/A","N/A","N/A","N/A",null,null,null,"N/A"]
["WHP","WHP SECURITIES","03-2166 2636","03-2166 2636","Riskk","Riskk",50050,"WILAYAH PERSEKUTUAN","Kuala Lumpur","NIL","NIL","N/A","N/A","N/A","N/A",null,null,null,"N/A"]
["WIC","INDOSUEZ W.I. CARR SECURITI","03-2166 2636","03-2166 2636","Riskk","Riskk",50050,"WILAYAH PERSEKUTUAN","Kuala Lumpur","NIL","NIL","N/A","N/A","N/A","N/A",null,null,null,"N/A"]
["WIL","WILLIAM NOALL LIMITED.","03-2166 2636","03-2166 2636","Riskk","Riskk",50050,"WILAYAH PERSEKUTUAN","Kuala Lumpur","NIL","NIL","N/A","N/A","N/A","N/A",null,null,null,"N/A"]
["WIN","WINSTON WONG","03-2166 2636","03-2166 2636","Riskk","Riskk",50050,"WILAYAH PERSEKUTUAN","Kuala Lumpur","NIL","NIL","N/A","N/A","N/A","N/A",null,null,null,"N/A"]
["WIS","WILSON HTM","03-2166 2636","03-2166 2636","Riskk","Riskk",50050,"WILAYAH PERSEKUTUAN","Kuala Lumpur","NIL","NIL","N/A","N/A","N/A","N/A",null,null,null,"N/A"]
["WJB","WJB CAPITAL GROUP INC","03-2166 2636","03-2166 2636","Riskk","Riskk",50050,"WILAYAH PERSEKUTUAN","Kuala Lumpur","NIL","NIL","N/A","N/A","N/A","N/A",null,null,null,"N/A"]
["WLB","WESTLB SECURITIES PACIFIC","03-2166 2636","03-2166 2636","Riskk","Riskk",50050,"WILAYAH PERSEKUTUAN","Kuala Lumpur","NIL","NIL","N/A","N/A","N/A","N/A",null,null,null,"N/A"]
["WLF","WELLS FARGO SECURITIES","03-2166 2636","03-2166 2636","Riskk","Riskk",50050,"WILAYAH PERSEKUTUAN","Kuala Lumpur","NIL","NIL","N/A","N/A","N/A","N/A",null,null,null,"N/A"]
["WLL","THE WILLIAMS CAPITAL","03-2166 2636","03-2166 2636","Riskk","Riskk",50050,"WILAYAH PERSEKUTUAN","Kuala Lumpur","NIL","NIL","N/A","N/A","N/A","N/A",null,null,null,"N/A"]
["WLS","WUNDERLICH SECURITIES","03-2166 2636","03-2166 2636","Riskk","Riskk",50050,"WILAYAH PERSEKUTUAN","Kuala Lumpur","NIL","NIL","N/A","N/A","N/A","N/A",null,null,null,"N/A"]
["WOL","WOLFGANG STEUBING AG","03-2166 2636","03-2166 2636","Riskk","Riskk",50050,"WILAYAH PERSEKUTUAN","Kuala Lumpur","NIL","NIL","N/A","N/A","N/A","N/A",null,null,null,"N/A"]
["WOO","NH INVESTMENT & SECURITIES","03-2166 2636","03-2166 2636","Riskk","Riskk",50050,"WILAYAH PERSEKUTUAN","Kuala Lumpur","NIL","NIL","N/A","N/A","N/A","N/A",null,null,null,"N/A"]
["WOR","WORLD-NICHIEI SEC","03-2166 2636","03-2166 2636","Riskk","Riskk",50050,"WILAYAH PERSEKUTUAN","Kuala Lumpur","NIL","NIL","N/A","N/A","N/A","N/A",null,null,null,"N/A"]
["WPC","WESTPAC BANKING","03-2166 2636","03-2166 2636","Riskk","Riskk",50050,"WILAYAH PERSEKUTUAN","Kuala Lumpur","NIL","NIL","N/A","N/A","N/A","N/A",null,null,null,"N/A"]
["WPG","WEISS, PECK & GREER","03-2166 2636","03-2166 2636","Riskk","Riskk",50050,"WILAYAH PERSEKUTUAN","Kuala Lumpur","NIL","NIL","N/A","N/A","N/A","N/A",null,null,null,"N/A"]
["WRL","WRLAZARD & LAIDLAW INC","03-2166 2636","03-2166 2636","Riskk","Riskk",50050,"WILAYAH PERSEKUTUAN","Kuala Lumpur","NIL","NIL","N/A","N/A","N/A","N/A",null,null,null,"N/A"]
["WS","WERTHIEM SCHRODER","03-2166 2636","03-2166 2636","Riskk","Riskk",50050,"WILAYAH PERSEKUTUAN","Kuala Lumpur","NIL","NIL","N/A","N/A","N/A","N/A",null,null,null,"N/A"]
["WSA","WALL STREET ACCESS","03-2166 2636","03-2166 2636","Riskk","Riskk",50050,"WILAYAH PERSEKUTUAN","Kuala Lumpur","NIL","NIL","N/A","N/A","N/A","N/A",null,null,null,"N/A"]
["WST","WST","03-2166 2636","03-2166 2636","Riskk","Riskk",50050,"WILAYAH PERSEKUTUAN","Kuala Lumpur","NIL","NIL","N/A","N/A","N/A","N/A",null,null,null,"N/A"]
["WTC","WTC LONDON","03-2166 2636","03-2166 2636","Riskk","Riskk",50050,"WILAYAH PERSEKUTUAN","Kuala Lumpur","NIL","NIL","N/A","N/A","N/A","N/A",null,null,null,"N/A"]
["WTL","WILLIAMS TRADING, LLC","03-2166 2636","03-2166 2636","Riskk","Riskk",50050,"WILAYAH PERSEKUTUAN","Kuala Lumpur","NIL","NIL","N/A","N/A","N/A","N/A",null,null,null,"N/A"]
["WTR","WOLFE TRAHAN SECURITIES","03-2166 2636","03-2166 2636","Riskk","Riskk",50050,"WILAYAH PERSEKUTUAN","Kuala Lumpur","NIL","NIL","N/A","N/A","N/A","N/A",null,null,null,"N/A"]
["XPI","XP INVESTIMENTOS CCTVM SA","03-2166 2636","03-2166 2636","Riskk","Riskk",50050,"WILAYAH PERSEKUTUAN","Kuala Lumpur","NIL","NIL","N/A","N/A","N/A","N/A",null,null,null,"N/A"]
["YAA","YAMAWA SEC","03-2166 2636","03-2166 2636","Riskk","Riskk",50050,"WILAYAH PERSEKUTUAN","Kuala Lumpur","NIL","NIL","N/A","N/A","N/A","N/A",null,null,null,"N/A"]
["YAB","YAMABUN SEC","03-2166 2636","03-2166 2636","Riskk","Riskk",50050,"WILAYAH PERSEKUTUAN","Kuala Lumpur","NIL","NIL","N/A","N/A","N/A","N/A",null,null,null,"N/A"]
["YAK","YAMAKA SECURITIES","03-2166 2636","03-2166 2636","Riskk","Riskk",50050,"WILAYAH PERSEKUTUAN","Kuala Lumpur","NIL","NIL","N/A","N/A","N/A","N/A",null,null,null,"N/A"]
["YCP","YUANTA CORE PACIFIC SEC","03-2166 2636","03-2166 2636","Riskk","Riskk",50050,"WILAYAH PERSEKUTUAN","Kuala Lumpur","NIL","NIL","N/A","N/A","N/A","N/A",null,null,null,"N/A"]
["YES","YES BANK LIMITED","03-2166 2636","03-2166 2636","Riskk","Riskk",50050,"WILAYAH PERSEKUTUAN","Kuala Lumpur","NIL","NIL","N/A","N/A","N/A","N/A",null,null,null,"N/A"]
["YG","PACIFIC AMERICAN SEC, LLC","03-2166 2636","03-2166 2636","Riskk","Riskk",50050,"WILAYAH PERSEKUTUAN","Kuala Lumpur","NIL","NIL","N/A","N/A","N/A","N/A",null,null,null,"N/A"]
["YHT","YAHATA SECURITIES","03-2166 2636","03-2166 2636","Riskk","Riskk",50050,"WILAYAH PERSEKUTUAN","Kuala Lumpur","NIL","NIL","N/A","N/A","N/A","N/A",null,null,null,"N/A"]
["YOK","BANK OF YOKOHAMA","03-2166 2636","03-2166 2636","Riskk","Riskk",50050,"WILAYAH PERSEKUTUAN","Kuala Lumpur","NIL","NIL","N/A","N/A","N/A","N/A",null,null,null,"N/A"]
["YTS","YASUDA SIN SECURITIES","03-2166 2636","03-2166 2636","Riskk","Riskk",50050,"WILAYAH PERSEKUTUAN","Kuala Lumpur","NIL","NIL","N/A","N/A","N/A","N/A",null,null,null,"N/A"]
["YUA","YUANTA SECURITIES","03-2166 2636","03-2166 2636","Riskk","Riskk",50050,"WILAYAH PERSEKUTUAN","Kuala Lumpur","NIL","NIL","N/A","N/A","N/A","N/A",null,null,null,"N/A"]
["ZAC","ZACKS & COMPANY","03-2166 2636","03-2166 2636","Riskk","Riskk",50050,"WILAYAH PERSEKUTUAN","Kuala Lumpur","NIL","NIL","N/A","N/A","N/A","N/A",null,null,null,"N/A"]
["ZAL","ZALIK SECURITIES","03-2166 2636","03-2166 2636","Riskk","Riskk",50050,"WILAYAH PERSEKUTUAN","Kuala Lumpur","NIL","NIL","N/A","N/A","N/A","N/A",null,null,null,"N/A"]
["ZEN","ZENSHINREN BANK","03-2166 2636","03-2166 2636","Riskk","Riskk",50050,"WILAYAH PERSEKUTUAN","Kuala Lumpur","NIL","NIL","N/A","N/A","N/A","N/A",null,null,null,"N/A"]